Workbook

Sheet Guidance
B2: NV-GHG | E2: Version 2.3_en
E3: Updated 01.12.2020 | M3: Contacts for questions or comments about the tool:
H4: These greenhouse gas calculations were created by
H5: Name: | M5: Nye Veier: | N5: Maarten Lohne van der Eynden, | Q5: maarten.eynden@nyeveier.no
H6: Company: | M6: NIRAS Norge: | N6: Ragnhild Stamer Ekerholt, | Q6: raek@niras.com
H7: Position: | N7: Julie Gade Gørbitz, | Q7: jugg@niras.com
H8: Email:
H9: Telephone:
H10: Quality assurance by:
B13: Introduction
B14: NV-GHG is a tool for calculating greenhouse gas emissions from road projects at an early stage. The tool was developed by NIRAS Norge AS for Nye Veier AS. In case of ambiguity or contradictions between the Norwegian and English version of the tool, the Norwegian version prevails. The tool has three main purposes: - Baseline calculations (calculate baseline for new projects at the time the section is allocated to Nye Veier) - Budget calculations (greenhouse gas budget for planned built solution - for some sections this will be required from the contractor) - Result calculations (calculations of greenhouse gas emissions from the completed solution - for some sections this will be required from the contractor) The tool is intended to provide a good overview of the most important sources of the project's total greenhouse gas emissions, as well as convey emission-driving processes and activities in a clear way, so that measures can be implemented where the potential for emission reductions is the greatest. Great emphasis has been placed on the tool being user-friendly, both for the client, consultant and contractor. It is therefore only necessary to fill in data in the 'Project description and input' tab. If the user of the tool wants to enter project-specific values ​​in addition to this, this can be done in the tabs 'Transport and energy demand', 'Calculation factors' and 'Emission factors'. All tabs where it is possible to make changes have a green color. Blue tabs contain results.
B26: The different tabs
B27: Project description and input
B28: In this tab, information about lengths, areas and quantities is entered in order to be able to calculate greenhouse gas emissions in the project. The tool will be able to estimate greenhouse gas emissions based on the information in this tab alone. The table 'About the section' provides general information about the section required to be able to calculate total quantities. In the table 'Land use change' the percentage distribution between the different land types occupied in the project are entered. The sum of these should be 100%. In the table 'Input', more detailed information is entered about different constructions, mass handling, road types, etc. Units are selected from the drop-down menus.
B31: Results
B32: The results are presented in tables and graphs in the results tab. The numbers are retrieved from the calculations tab.
B34: Sensitivity analysis
B35: The sensitivity analysis shows what effect a percentage change in one or more input factors will have on total emissions. The sensitivity analysis thus provides a picture of which measures and changes will have the greatest impact on the total greenhouse gas emissions, both negatively and positively.
B37: Calculations
B38: The 'Calculations' tab collects all information from 'Project description and input' and the various unit and factor tabs. Here, quantities and activities are multiplied by emission factors so that we are left with greenhouse gas emissions related to the various main and sub-activities. The calculation tab distinguishes between construction phase and operation, so that it is clear which emissions are related to the construction period (year 0) and which are related to operation and maintenance throughout the analysis period. Values from the calculation tab are further used in the results tab.
B41: 13 unit tabs for the following categories: Main road, Secondary road, Construction road, Tunnel single tube, Tunnel double tube, Concrete bridge, Steel bridge, Culvert, Vegetation and land use change, Blasting, Additions road, Operation and maintenance, Re-asphalting
B42: The unit tabs are based on information from the calculation factor tab to calculate quantities and energy consumption for a given scalable unit. For example, the tunnel tabs are based on the selected tunnel cross-section profile to calculate quantities and energy consumption per meter, while the road tabs calculate per square meter so that these change dynamically with a change in road width. The unit tabs include materials, transport distances and construction work. Values from the unit tabs are further used in the calculation tab.
B45: Transport and energy demand
B46: The tab collects all calculation factors related to transport, such as working speeds for different machines, transport distances and energy consumption. All factors can be adapted to the project by entering project-specific values - remember to enter documentation in the column 'Documentation project-specific values'! The calculations always read values from the column 'Value used in calculations', which is linked to the column for default value and project-specific value. The default values are retrieved if the cell for project-specific values is empty. If a project-specific value is entered, this will overwrite the default value. It is also possible to distinguish between different fuels by changing the percentages of fossil diesel, biodiesel and electricity/hydrogen for the different machine types. Note that power consumption must be filled in if electrical machines are used.
B50: Emission factors
B51: The tab provides an overview of all emission factors used in the project. The emission factor tab is used by the calculation tab, where the factors are multiplied by quantities to give an overall result, produced in the results tab. All standard emission factors are intended to represent industry standards for each material, but due to different production methods and locations, this will vary between manufacturers and materials within the same material group. The factors can therefore be adapted to the project by entering project-specific values ​​- remember to enter documentation in the column 'Documentation project-specific values'! Pay attention to the unit of the emission factors when using project-specific values. If the unit of an emission factor is in kg CO2e/kg and you wish to use an emission factor with unit kg CO2e/m3, this must be converted to kg CO2/kg using the bulk density of the given material (refer to the calculation factor tab). The formula for conversion is as follows: Emission factor [kg CO2e/kg] = emission factor [kg CO2e/m3]/bulkt density [kg/m3]. The calculations always read values ​​from the column 'Value used in calculations', which is linked to the column for default value and project-specific value. The default values ​​are retrieved if the cell for project-specific values ​​is empty. If a project-specific value is entered, this will overwrite the default value. If project-specific emission factors are used, these must be documented with a valid EPD.
B58: Calculation factors
B59: The tab collects all calculation factors that are not related to transport, such as bulk densities, material thicknesses, lifetimes, etc. All factors can be adapted to the project by entering project-specific values - remember to enter documentation in the column 'Documentation project-specific values'! The calculations always read values from the column 'Value used in calculations', which is linked to the column for default value and project-specific value. The default values are retrieved if the cell for project-specific values is empty. If a project-specific value is entered, this will overwrite the default value.
B63: Units
B64: The following units are used in the tool:
B66: Abbreviation | C66: Meaning | D66: Category | E66: Comments
B67: AADT | C67: Annual Average Daily Traffic | D67: -
B68: km | C68: Kilometre | D68: Distance
B69: m | C69: Metre | D69: Distance
B70: h | C70: Hour | D70: Time
B71: t | C71: Tonne | D71: Weight
B72: kg | C72: Kilogram | D72: Weight
B73: tkm | C73: Tonne-kilometre | D73: Transport work | E73: One tonne-kilometre corresponds to trasporting one tonne of cargo one kilometre
B74: L | C74: Litre | D74: Volume
B75: m3 | C75: Cubic metre | D75: Volume
B76: m2 | C76: Square metre | D76: Area
B77: kWh | C77: Kilowatt hour | D77: Energy | E77: Electric energy
B78: kW | C78: Kilowatt | D78: Power | E78: Electric power
B79: p | C79: Piece | D79: Amount
B80: yr | C80: Year | D80: Time

Sheet Project description and input
B2: About the section | J2: Input
B3: Project information | C3: Amount | D3: Description | G3: Comments | J3: Calculation post (from cost estimation report) | K3: Description | L3: Amount | M3: Defined unit (choose from drop-down menu) | N3: Comments
B4: Length main section [m] | C4: =F35 -> 0 | D4: The sum of road, tunnels and bridges in the main section
B5: Average width of construction belt [m] | D5: To calculate vegetation removal
B6: Number of single tube tunnels | D6: To calculate tunnel portals
B7: Number of double tube tunnels | D7: To calculate tunnel portals
B8: Number of culverts | D8: To calculate construction work
B9: Average width of main road
B10: Average width of secondary road
B11: Average width of construction road
B12: Average width of concrete bridges
B13: Average width of steel bridges
B14: Analysis period [yr] | C14: 60 | D14: Default 60 years
B15: AADT | D15: Average AADT, originally
B16: Delta AADT | D16: Change in AADT from original section
B17: Lighting main road | C17: Yes | D17: Is the main road lit
B18: Lighting secondary road | C18: No | D18: Are the secondary roads lit
B20: Land use change
B21: Total land occupation [m2] | C21: =E35*C5 -> 0
B23: Nature type | C23: Share [%] | D23: Comments
B24: Forest - low site quality
B25: Forest - medium site quality
B26: Forest - high site quality
B27: Marsh
B28: Agricultural land
B29: Built land
B30: Sum | C30: =SUM(C24:C29) -> 0 | D30: Must be 100%! | V30: Removal of vegetation (m2) | W30: m2
B31: If the forest site quality is unknown, all forested areas should be listed as medium site quality | V31: Open-air blasting (m3) | W31: m3
V32: Tunnel blasting (m3) | W32: m3
B33: Percentages of tunnel, bridge and open road for main section | V33: Soil masses used in project (m3) | W33: m3
C34: Tunnel | D34: Bridge | E34: Open road | F34: Total | V34: Soil masses to landfill (m3) | W34: m3
B35: Length [m] | F35: =C35+D35+E35 -> 0 | V35: Rock masses used in project (m3) | W35: m3
B36: Share [%] | C36: =IFERROR(C35/C4,0) -> 0 | D36: =IFERROR(D35/C4,0) -> 0 | E36: =IFERROR(E35/(C4),0) -> 0 | F36: =C36+D36+E36 -> 0 | V36: Rock masses to landfill (m3) | W36: m3
V37: Rock masses used in project via crushing plant (m3) | W37: m3
V38: Main road (m) | W38: m
V39: Secondary road (m) | W39: m
V40: Construction road (m) | W40: m
V41: Concrete bridge (m) | W41: m2
V42: Steel bridge (m) | W42: m2
V43: Tunnel single tube (m) | W43: m
V44: Tunnel double tube (m) | W44: m
V45: Concrete culvert (m2) | W45: m2
V49: Belysning valg
V50: Yes
V51: No

Sheet Calculation factors
B2: Variable | C2: Unit | D2: Value used in calculations | E2: Default value | F2: Project-specific value | G2: Comments | H2: Documentation default value | I2: Possible link to documentation default value | J2: Documentation project-specific value | K2: Possible link for documentation
B3: Bulk densities
B4: Concrete | C4: kg/m3 | D4: =IF(F4="",E4,F4) -> 2400 | E4: 2400 | H4: Norsk betongforening Publikasjon 37: Lavkarbonbetong (2015)
B5: Steel, reinforcement steel | C5: kg/m3 | D5: 7850 | E5: 7850 | H5: "Metode for beregning av energiforbruk og klimagassutslipp for vegprosjekter", Hammervold (2009) p. 8, Engineering Toolbox | I5: https://www.engineeringtoolbox.com/metal-alloys-densities-d_50.html
B6: Stone mastic asphalt | C6: kg/m3 | D6: 2500 | E6: 2500 | H6: "Metode for beregning av energiforbruk og klimagassutslipp for vegprosjekter", Hammervold (2009) p. 34
B7: Asphalt concrete, surface | C7: kg/m3 | D7: 2500 | E7: 2500 | H7: "Metode for beregning av energiforbruk og klimagassutslipp for vegprosjekter", Hammervold (2009) p. 34
B8: Asphalt concrete, base | C8: kg/m3 | D8: 2400 | E8: 2400 | H8: Klimamodul EFFEKT 6.74
B9: Crushed stone/gravel frost protection | C9: kg/m3 | D9: 1550 | E9: 1550 | H9: Recommended value in coordination project, average of minimum and maximum value (1,4-1,7) in EPDs
B10: Crushed stone/gravel base layer | C10: kg/m3 | D10: 1550 | E10: 1550 | H10: Recommended value in coordination project, average of minimum and maximum value (1,4-1,7) in EPDs
B11: XPS | C11: kg/m3 | D11: 35 | E11: 35 | H11: VegLCA (communication with suppliers)
B12: XPS/concrete element for frost protection in tunnel | C12: kg/m3 | D12: 1808.75 | E12: 1808.75 | H12: EPD XPS-/concrete element Ølen betong
B13: Topeka | C13: kg/m3 | D13: 2500 | E13: 2500 | H13: "Metode for beregning av energiforbruk og klimagassutslipp for vegprosjekter", Hammervold (2009) p. 34, using the same as concrete asphalt
B14: Soil, gravel and clay from vegetation removal | C14: kg/m3 | D14: 1300 | E14: 1300 | H14: "Metode for beregning av energiforbruk og klimagassutslipp for vegprosjekter", Hammervold (2009) p. 32
B15: Marsh from vegetation removal | C15: kg/m3 | D15: 150 | E15: 150 | H15: Utredning myr, Hadsel kommune (Asplan Viak, 2017)
B16: Solid rock | C16: kg/m3 | D16: 2650 | E16: 2650 | H16: "Metode for beregning av energiforbruk og klimagassutslipp for vegprosjekter", Hammervold (2009) p. 32
B17: Masses from ditch clearing | C17: kg/m3 | D17: 1300 | E17: 1300 | H17: "Metode for beregning av energiforbruk og klimagassutslipp for vegprosjekter", Hammervold (2009) p. 32, assuming same type of masses as from vegetation removal
B18: Material thicknesses/amounts
B19: Wearing course thickness | C19: m | D19: =IF(F19="",E19,F19) -> 0.045 | E19: 0.045 | H19: Norwegian public roads administration handbook N200
B20: Binder course thickness | C20: m | D20: =IF(F20="",E20,F20) -> 0.035 | E20: 0.035 | H20: Norwegian public roads administration handbook N200
B21: Upper base course thickness | C21: m | D21: 0.13 | E21: 0.13 | H21: Norwegian public roads administration handbook N200
B22: Lower base course thickness | C22: m | D22: 0.45 | E22: 0.45 | H22: Norwegian public roads administration handbook N200
B23: Frost protection course thickness for open roads | C23: m | D23: 1.74 | E23: 1.74 | H23: Norwegian public roads administration handbook N200
B24: Topeka thickness | C24: m | D24: 0.012 | E24: 0.012 | H24: Norwegian public roads administration handbook R762
B25: Frost protection element thickness in tunnel | C25: m | D25: 0.2 | E25: 0.2 | H25: EPD XPS-/concrete element Ølen betong
B26: Concrete thickness for concrete bridge | C26: m | D26: =IF(F26="",E26,F26) -> 1.29 | E26: 1.29 | H26: "Metode for beregning av energiforbruk og klimagassutslipp for vegprosjekter", Hammervold (2009) p. 47, average for all concrete bridges, not weighted after bridge area
B27: Concrete thickness for steel bridge | C27: m | D27: =IF(F27="",E27,F27) -> 0.743 | E27: 0.743 | H27: "Metode for beregning av energiforbruk og klimagassutslipp for vegprosjekter", Hammervold (2009) p. 47, average for all steel bridges, not weighted after bridge area
B28: Reinforcement steel for concrete bridge | C28: kg/m2 | D28: =IF(F28="",E28,F28) -> 231 | E28: 231 | H28: "Metode for beregning av energiforbruk og klimagassutslipp for vegprosjekter", Hammervold (2009) p. 47, average for all concrete bridges, not weighted after bridge area
B29: Reinforcement steel for steel bridge | C29: kg/m2 | D29: 125 | E29: 125 | H29: "Metode for beregning av energiforbruk og klimagassutslipp for vegprosjekter", Hammervold (2009) p. 47, average for all steel bridges, not weighted after bridge area
B30: Construction steel for concrete bridge | C30: kg/m2 | D30: 0 | E30: 0 | H30: "Metode for beregning av energiforbruk og klimagassutslipp for vegprosjekter", Hammervold (2009) p. 47, average for all concrete bridges, not weighted after bridge area
B31: Construction steel for steel bridge | C31: kg/m2 | D31: 219 | E31: 219 | H31: "Metode for beregning av energiforbruk og klimagassutslipp for vegprosjekter", Hammervold (2009) p. 47, average for all steel bridges, not weighted after bridge area
B32: Safety bolts for tunnel | C32: kg/m | D32: 44 | E32: 44 | H32: "Metode for beregning av energiforbruk og klimagassutslipp for vegprosjekter", Hammervold (2009) p. 8 in Appendix 1
B33: Explosives for open-air blasting | C33: kg/fm3 | D33: 1 | E33: 1 | G33: EFFEKT and "Metoderapport" do not specify which source has been used, and the value should therefore be documented better in all tools | H33: "Metode for beregning av energiforbruk og klimagassutslipp for vegprosjekter", Hammervold (2009) and dokumentasjon EFFEKT 2015 (SVV Rapport 358)
B34: Explosives for tunnel blasting | C34: kg/fm3 | D34: 2.2 | E34: 2.2 | G34: EFFEKT and "Metoderapport" do not specify which source has been used, and the value should therefore be documented better in all tools | H34: "Metode for beregning av energiforbruk og klimagassutslipp for vegprosjekter", Hammervold (2009) and dokumentasjon EFFEKT 2015 (SVV Rapport 358)
B35: Culverts
B36: Concrete thickness culvert elements | C36: m | D36: =IF(F36="",E36,F36) -> 0.24 | E36: 0.24 | H36: Prefabrikkerte kulvertelementer, Statens vegvesen | I36: https://www.vegvesen.no/fag/teknologi/bruer/bruprosjektering/prefabrikkerte-kulvertelementer/_attachment/1361322?_ts=15d081de438&fast_title=Grunnlag%2C+beregningsforutsetninger+og+eksempel.pdf
B37: Height of culverts | C37: m | D37: =IF(F37="",E37,F37) -> 3.2 | E37: 3.2 | H37: Prefabrikkerte kulvertelementer, Statens vegvesen | I37: https://www.vegvesen.no/fag/teknologi/bruer/bruprosjektering/prefabrikkerte-kulvertelementer/_attachment/1361322?_ts=15d081de438&fast_title=Grunnlag%2C+beregningsforutsetninger+og+eksempel.pdf
B38: Average with of culverts | C38: m | D38: 10 | E38: 10 | H38: NIRAS' experience.
B39: Ratio between concrete and reinforcement | C39: kg/kg | D39: 13 | E39: 13 | H39: Based on "Metode for beregning av energiforbruk og klimagassutslipp for vegprosjekter", Hammervold (2009), p. 8 in Appendix 1, where the share of concrete is 13 times higher than the share of reinforcement for the same volume.
B40: Working speed tower crane | C40: h/p | D40: =IF(F40="",E40,F40) -> 18 | E40: 18 | H40: NIRAS' experience
B41: Tunnels | M41: Tunnel cross section | N41: Teoretisk sprengningsprofil | P41: Normalprofil | R41: Veibredder
B42: Tunnel cross section single tube | C42: - | D42: =IF(F42="",E42,F42) -> 10.5 | E42: 10.5 | H42: Typical tunnel crossection profile | N42: Areal [m2] | O42: Buelengde [m] | P42: Areal [m2] | Q42: Buelengde [m] | R42: Kjørebane [m] | S42: Skulder [m]
B43: Tunnel cross section double tube | C43: - | D43: =IF(F43="",E43,F43) -> 9.5 | E43: 9.5 | H43: Typical tunnel crossection profile | M43: 4 | N43: 20.32 | O43: 12.13 | P43: 13.57 | Q43: 9.85 | R43: 3 | S43: 1
B44: Amount of concrete per portal single tube | C44: m3/p | D44: 357.6140684 | E44: =VLOOKUP(D42,M43:O53,3,FALSE)/O47*340 -> 357.6140684 | H44: "Metode for beregning av energiforbruk og klimagassutslipp for vegprosjekter", Hammervold (2009), p. 8 in Appendix 1. | M44: 5.5 | N44: 39.1 | O44: 17.12 | P44: 29.72 | Q44: 14.55 | R44: 3.5 | S44: 2
B45: Amount of concrete per portal double tube | C45: m3/p | D45: 340 | E45: =VLOOKUP(D43,M43:O53,3,FALSE)/O47*340 -> 340 | H45: "Metode for beregning av energiforbruk og klimagassutslipp for vegprosjekter", Hammervold (2009), p. 8 in Appendix 1. | M45: 7.5 | N45: 51.56 | O45: 18.88 | P45: 40.46 | Q45: 16.3 | R45: 5 | S45: 2.5
B46: Reinforcement per portal single tube | C46: kg/p | D46: 65211.97719 | E46: =VLOOKUP(D42,M43:O53,3,FALSE)/O47*62000 -> 65211.97719 | H46: "Metode for beregning av energiforbruk og klimagassutslipp for vegprosjekter", Hammervold (2009), p. 8 in Appendix 1. | M46: 8.5 | N46: 61.92 | O46: 20.56 | P46: 49.66 | Q46: 17.99 | R46: 6.5 | S46: 2
B47: Reinforcement per portal double tube | C47: kg/p | D47: 62000 | E47: =VLOOKUP(D43,M43:O53,3,FALSE)/O47*62000 -> 62000 | H47: Metode for beregning av energiforbruk og klimagassutslipp for vegprosjekter, Hammervold (2009), p. 8 in Appendix 1. | M47: 9.5 | N47: 66.62 | O47: 21.04 | P47: 53.61 | Q47: 18.46 | R47: 7 | S47: 2.5
B48: Share below sea for single tube tunnel | C48: % | D48: =IF(F48="",E48,F48) -> 0 | E48: 0 | G48: For calculation of power consumption fans and pumps | H48: - | M48: 10.5 | N48: 74.59 | O48: 22.13 | P48: 60.64 | Q48: 19.55 | R48: 8 | S48: 2.5
B49: Share below sea for double tube tunnel | C49: % | D49: =IF(F49="",E49,F49) -> 0 | E49: 0 | G49: For calculation of power consumption fans and pumps | H49: - | M49: 11.5 | N49: 85.92 | O49: 23.75 | P49: 70.89 | Q49: 21.18 | R49: 9.5 | S49: 2
B50: Operation and maintenance intervals | M50: 12.5 | N50: 91.32 | O50: 24.32 | P50: 75.49 | Q50: 21.73 | R50: 10 | S50: 2.5
B51: Replacement interval re-asphalting | C51: yr | D51: =IF(F51="",E51,F51) -> 7 | E51: 7 | H51: NIRAS' experience. | M51: 13 | N51: 95.69 | O51: 24.86 | P51: 79.39 | Q51: 22.28 | R51: 10.5 | S51: 2.5
B52: Replacement interval guard rail | C52: yr | D52: 30 | E52: 30 | H52: Handbook N101 Safety fences og vegens sideområder (2014) p. 63 | M52: 13.5 | N52: 100.52 | O52: 25.46 | P52: 83.73 | Q52: 22.88 | R52: 11 | S52: 2.5
B53: Replacement interval lamp posts | C53: yr | D53: 30 | E53: 30 | H53: Handbook V124 (2014) table 4.5 p. 51 | M53: 14 | N53: 104.58 | O53: 25.96 | P53: 87.35 | Q53: 23.88 | R53: 11.5 | S53: 2.5
B54: Operation interval roadside mowing | C54: yr | D54: 1 | E54: 1 | H54: NIRAS' experience.
B55: Operation interval ditch clearing | C55: yr | D55: 3 | E55: 3 | H55: NIRAS' experience.
B56: Operation interval sweeping | C56: yr | D56: 1 | E56: 1 | H56: NIRAS' experience.
B57: Operation interval salting | C57: yr | D57: 1 | E57: 1 | H57: NIRAS' experience.
B58: Operation interval ploughing | C58: yr | D58: 1 | E58: 1 | H58: NIRAS' experience.
B59: Re-asphalting, operation and maintenance
B60: Share that's re-asphalted | C60: % | D60: =IF(F60="",E60,F60) -> 0.6 | E60: 0.6 | H60: NIRAS' experience.
B61: Electricity consumption lighting open road | C61: kWh/(p*yr) | D61: =IF(F61="",E61,F61) -> 1600 | E61: 1600 | H61: Coordination project. Based on Handbook V124 - teknisk planlegging av veg- og tunnelbelysning. Consumption: 400 W, 4100 lit hours/yr. Conservative, more representative for high AADT.
B62: Electricity consumption lighting tunnel | C62: kWh/(lm*yr) | D62: =IF(F62="",E62,F62) -> 34 | E62: 34 | H62: Antar likt som for vei in dagen basert på at det er det som gjøres in "Metode for beregning av energiforbruk og klimagassutslipp for vegprosjekter", Hammervold (2009) og dokumentasjon for EFFEKT 6.6
B63: Electricity consumption fans single tube tunnel above sea | C63: kWh/(AADT*km*yr) | D63: =IF(F63="",E63,F63) -> 3.7 | E63: 3.7 | G63: Using same formula as tunnel double tube | H63: "Metode for beregning av energiforbruk og klimagassutslipp for vegprosjekter", Hammervold (2009) p. 46
B64: Electricity consumption fans underwater single tube tunnel | C64: kWh/(AADT*km*yr) | D64: 14.6 | E64: 14.6 | G64: Using same formula as tunnel double tube | H64: "Metode for beregning av energiforbruk og klimagassutslipp for vegprosjekter", Hammervold (2009) p. 46
B65: Electricity consumption fans double tube tunnel above sea | C65: kWh/(AADT*km*yr) | D65: 3.7 | E65: 3.7 | H65: "Metode for beregning av energiforbruk og klimagassutslipp for vegprosjekter", Hammervold (2009) p. 46
B66: Electricity consumption fans underwater double tube tunnel | C66: kWh/(AADT*km*yr) | D66: 14.6 | E66: 14.6 | H66: "Metode for beregning av energiforbruk og klimagassutslipp for vegprosjekter", Hammervold (2009) p. 46
B67: Electricity consumption pumps tunnel above sea | C67: kWh/(m*yr) | D67: 0 | E67: 0 | G67: Per tunnel tube | H67: "Metode for beregning av energiforbruk og klimagassutslipp for vegprosjekter", Hammervold (2009) p. 45/46
B68: Electricity consumption pumps underwater tunnel | C68: kWh/(m*yr) | D68: 18 | E68: 18 | G68: Per tunnel tube | H68: "Metode for beregning av energiforbruk og klimagassutslipp for vegprosjekter", Hammervold (2009) p. 45/46
B69: Salt consumption | C69: tonn/(km*yr) | D69: =IF(F69="",E69,F69) -> 10.5 | E69: 10.5 | H69: Mengderapportering vinteren 2018/2019, SVV rapport 362. Average over the country for 'riksvei'
B70: Km ploughing per km road per year | C70: km/(km*yr) | D70: =IF(F70="",E70,F70) -> 724.7 | E70: 724.7 | H70: Mengderapportering vinteren 2018/2019, SVV rapport 362. Average over the country for 'riksvei'
B71: Km salting per km road per year for two-lane road | C71: km/(km*yr) | D71: =IF(F71="",E71,F71) -> 100 | E71: 100 | G71: Salts two lanes on each trip | H71: NIRAS' experience.
B72: Cleared volume from ditch clearing | C72: m3/m | D72: =IF(F72="",E72,F72) -> 0.133 | E72: 0.133 | H72: NIRAS' experience.
B73: Other
B74: Lamp posts including foundation | C74: kg/p | D74: =IF(F74="",E74,F74) -> 227 | E74: 227 | H74: Producer information fra Vik Ørsta AS. Produktkatalog 2020 p. 17 og p. 44
B75: Number of lamp posts per lighting row per km main road | C75: p/km | D75: =IF('Project description and input'!C17="No",0,IF(F75="",E75,F75)) -> 21.25 | E75: 21.25 | H75: Source lighting class: Handbook V124 (2014) table 3.2, p. 25. Source historical power consumption: Handbook 264 (2008) table 7.1 p. 66
B76: Number of lamp posts per lighting row per km secondary road | C76: p/km | D76: =IF('Project description and input'!C18="No",0,IF(F76="",E76,F76)) -> 0 | E76: 21.25 | H76: Source lighting class: Handbook V124 (2014) table 3.2, p. 25. Source historical power consumption: Handbook 264 (2008) table 7.1 p. 66
B77: Guard rail | C77: kg/m | D77: =IF(F77="",E77,F77) -> 16.5 | E77: 16.5 | G77: The steel has strength requirements, but the degree of recycling and supplier can vary as they buy steel in bulk in a large steel market. No "finer" quality of the steel for the safety fence than the steel on the guard rail. For four-lane roads, the safety fence quantity must be multiplied by 4. | H77: Assuming strength class H1 according to table 3.1 and note on safety fence for speed limit 110 km/h. Simplifies to calculate with the same safety fence standard on bridges. Based on Vik Ørsta W3 'siderekkverk' , with weight 12.5 kg/m + 16 kg per post. cf. telephone call with representative from Ørsta Vik in December 2016. Safety fence Vik EP H1 CC4 has a post distance of 4 m -> Total weight will be 12.5 + 16/4 = 16.5 kg/m.
B78: Number of lanes single tube tunnel | C78: p | D78: 2 | E78: 2 | H78: NIRAS' experience.
B79: Number of lanes double tube tunnel | C79: p | D79: 4 | E79: 4 | H79: NIRAS' experience.
B80: Number of lanes main road | C80: p | D80: 4 | E80: 4 | H80: NIRAS' experience.
B81: Number of lanes secondary road | C81: p | D81: 2 | E81: 2 | H81: NIRAS' experience.
B82: Number of lighting rows main road | C82: p | D82: 2 | E82: 2 | H82: NIRAS' experience.
B83: Number of lighting rows secondary road | C83: p | D83: 1 | E83: 1 | H83: NIRAS' experience.
B84: Number of guard rails main road | C84: p | D84: 4 | E84: 4 | H84: NIRAS' experience.
B85: Number of guard rails secondary road | C85: p | D85: 2 | E85: 2 | H85: NIRAS' experience.
B86: Number of ditches main road | C86: p | D86: 3 | E86: 3 | H86: NIRAS' experience.
B87: Number of ditches secondary road | C87: p | D87: 2 | E87: 2 | H87: NIRAS' experience.
B88: Number of road markings main road | C88: p | D88: 5 | E88: 5 | H88: NIRAS' experience.
B89: Number of road markings secondary road | C89: p | D89: 3 | E89: 3 | H89: NIRAS' experience.
B90: Thicknesss of vegetation cover that is removed | C90: m | D90: 0.3 | E90: 0.3 | H90: NIRAS' experience.

Sheet Transport and energy demand
B2: Variable | C2: Unit | D2: Value used in calculations | E2: Default value | F2: Project-specific value | G2: Unit | H2: Value used in calculations | I2: Default value | J2: Project-specific values | K2: Unit | L2: Share elec./ hydrogen | M2: Share biodiesel | N2: Share diesel | O2: Comments | P2: Documentation default value | Q2: Documentation project-specific values | R2: Possible link for documentation
B3: Transport distances materials [tour/detour]
B4: Transport within project | C4: km | D4: =IF(F4="",E4,F4) -> 1 | E4: 1 | O4: These values are very general and it is recommended to use project-specific values as far as possible | P4: Estimated based on experience
B5: Transport to landfill/storage | C5: km | D5: =IF(F5="",E5,F5) -> 15 | E5: 15 | P5: Estimated based on experience
B6: Transport to crushing plant | C6: km | D6: 15 | E6: 15 | P6: Estimated based on experience
B7: Asphalt concrete, surface (Agb) | C7: km | D7: 30 | E7: 30 | P7: Estimated based on experience
B8: Asphalt concrete, base (Ag) | C8: km | D8: 30 | E8: 30 | P8: Estimated based on experience
B9: Crushed rock for frost protection and base layer | C9: km | D9: 15 | E9: 15 | P9: Estimated based on experience
B10: Concrete | C10: km | D10: 40 | E10: 40 | P10: Estimated based on experience
B11: Steel | C11: km | D11: 400 | E11: 400 | P11: Estimated based on experience
B12: Reinforcement steel | C12: km | D12: 400 | E12: 400 | P12: Estimated based on experience
B13: Moisture protection bridge (Topeka) | C13: km | D13: 70 | E13: 70 | P13: Estimated based on experience
B14: Frost protection elements tunnel | C14: km | D14: 70 | E14: 70 | P14: Estimated based on experience
B15: Salt | C15: km | D15: 500 | E15: 500 | P15: Same value as VegLCA. Loosely based on typical salt import countries. SaltImportøren mainly imports from Europe and the Mediterranean, CG Rieber from Germany, the Netherlands and Israel and Mesta from Tunisia, Italy, Denmark and Morocco, among others. | R15: SaltImport: https://produktguiden.veier24.no/products/62-saltimport-asCG Rieber: https://www.gcrieber-salt.no/markeder/veivedlikehold/ Mesta: https://www.miljoklagenemnda.no/assets/files/Sak_2014_2_mesta.pdf
B16: Energy demand and sources mass transport | C16: Diesel (litre pr. km /load size in tonnes) | G16: Electricity (kWh pr. km /load size in tonnes) | K16: Allocation between fuels
B17: Mass transport within project | C17: L/tkm | D17: =IF(F17="",E17,F17) -> 0.02 | E17: 0.02 | G17: kWh/tkm | H17: =IF(J17="",0,J17) -> 0 | I17: No default value | K17: % | L17: 0 | M17: 0.07 | N17: =1-L17-M17 -> 0.93 | O17: Corresponds, for example, to a load capacity of 30 tonnes and a consumption of 0.6 L/km. Unless otherwise stated, use the distribution 93% fossil diesel and 7% biodiesel | P17: NIRAS' experience.
B18: Mass transport to landfill/storage | C18: L/tkm | D18: =IF(F18="",E18,F18) -> 0.02 | E18: 0.02 | G18: kWh/tkm | H18: =IF(J18="",0,J18) -> 0 | I18: No default value | K18: % | L18: 0 | M18: 0.07 | N18: =1-L18-M18 -> 0.93 | O18: Corresponds, for example, to a load capacity of 30 tonnes and a consumption of 0.6 L/km. Unless otherwise stated, use the distribution 93% fossil diesel and 7% biodiesel | P18: NIRAS' experience.
B19: Mass transport to crushing plant | C19: L/tkm | D19: 0.02 | E19: 0.02 | G19: kWh/tkm | H19: 0 | I19: No default value | K19: % | L19: 0 | M19: 0.07 | N19: 0.93 | O19: Corresponds, for example, to a load capacity of 30 tonnes and a consumption of 0.6 L/km. Unless otherwise stated, use the distribution 93% fossil diesel and 7% biodiesel | P19: NIRAS' experience.
B20: Asphalt concrete, surface (Agb) | C20: L/tkm | D20: 0.02 | E20: 0.02 | G20: kWh/tkm | H20: 0 | I20: No default value | K20: % | L20: 0 | M20: 0.07 | N20: 0.93 | O20: Corresponds, for example, to a load capacity of 30 tonnes and a consumption of 0.6 L/km. Unless otherwise stated, use the distribution 93% fossil diesel and 7% biodiesel | P20: NIRAS' experience.
B21: Asphalt concrete, base (Ag) | C21: L/tkm | D21: =IF(F21="",E21,F21) -> 0.02 | E21: 0.02 | G21: kWh/tkm | H21: 0 | I21: No default value | K21: % | L21: 0 | M21: 0.07 | N21: 0.93 | O21: Corresponds, for example, to a load capacity of 30 tonnes and a consumption of 0.6 L/km. Unless otherwise stated, use the distribution 93% fossil diesel and 7% biodiesel | P21: NIRAS' experience.
B22: Crushed rock for frost protection and base layer | C22: L/tkm | D22: 0.02 | E22: 0.02 | G22: kWh/tkm | H22: =IF(J22="",0,J22) -> 0 | I22: No default value | K22: % | L22: 0 | M22: 0.07 | N22: 0.93 | O22: Corresponds, for example, to a load capacity of 30 tonnes and a consumption of 0.6 L/km. Unless otherwise stated, use the distribution 93% fossil diesel and 7% biodiesel | P22: NIRAS' experience.
B23: Energy demand and sources material transport | C23: Diesel (litre pr. km /load size in tonnes) | G23: Electricity (kWh pr. km /load size in tonnes) | K23: Allocation between fuels
B24: Concrete | C24: L/tkm | D24: =IF(F24="",E24,F24) -> 0.02 | E24: 0.02 | G24: kWh/tkm | H24: =IF(J24="",0,J24) -> 0 | I24: No default value | K24: % | L24: 0 | M24: 0.07 | N24: 0.93 | O24: Corresponds, for example, to a load capacity of 30 tonnes and a consumption of 0.6 L/km. Unless otherwise stated, use the distribution 93% fossil diesel and 7% biodiesel | P24: NIRAS' experience.
B25: Steel | C25: L/tkm | D25: =IF(F25="",E25,F25) -> 0.02 | E25: 0.02 | G25: kWh/tkm | H25: =IF(J25="",0,J25) -> 0 | I25: No default value | K25: % | L25: 0 | M25: 0.07 | N25: 0.93 | O25: Corresponds, for example, to a load capacity of 30 tonnes and a consumption of 0.6 L/km. Unless otherwise stated, use the distribution 93% fossil diesel and 7% biodiesel | P25: NIRAS' experience.
B26: Reinforcement steel | C26: L/tkm | D26: =IF(F26="",E26,F26) -> 0.02 | E26: 0.02 | G26: kWh/tkm | H26: 0 | I26: No default value | K26: % | L26: 0 | M26: 0.07 | N26: 0.93 | O26: Corresponds, for example, to a load capacity of 30 tonnes and a consumption of 0.6 L/km. Unless otherwise stated, use the distribution 93% fossil diesel and 7% biodiesel | P26: NIRAS' experience.
B27: Topeka | C27: L/tkm | D27: =IF(F27="",E27,F27) -> 0.02 | E27: 0.02 | G27: kWh/tkm | H27: 0 | I27: No default value | K27: % | L27: 0 | M27: 0.07 | N27: 0.93 | O27: Corresponds, for example, to a load capacity of 30 tonnes and a consumption of 0.6 L/km. Unless otherwise stated, use the distribution 93% fossil diesel and 7% biodiesel | P27: NIRAS' experience.
B28: Frost protection ements tunnel | C28: L/tkm | D28: 0.02 | E28: 0.02 | G28: kWh/tkm | H28: 0 | I28: No default value | K28: % | L28: 0 | M28: 0.07 | N28: 0.93 | O28: Corresponds, for example, to a load capacity of 30 tonnes and a consumption of 0.6 L/km. Unless otherwise stated, use the distribution 93% fossil diesel and 7% biodiesel | P28: NIRAS' experience.
B29: Transport of other masses/materials by lorry | C29: L/tkm | D29: 0.02 | E29: =0.6/30 -> 0.02 | G29: kWh/tkm | H29: =IF(J29="",0,J29) -> 0 | I29: No default value | K29: % | L29: 0 | M29: 0.07 | N29: =1-L29-M29 -> 0.93 | O29: Corresponds, for example, to a load capacity of 30 tonnes and a consumption of 0.6 L/km. Unless otherwise stated, use the distribution 93% fossil diesel and 7% biodiesel | P29: NIRAS' experience.
B30: Energy demand and sources construction work | C30: Diesel | G30: Electricity | K30: Allocation between fuels
B31: Energy demand steamroller | C31: L/h | D31: =IF(F31="",E31,F31) -> 3 | E31: 3 | G31: kW | H31: =IF(J31="",0,J31) -> 0 | I31: No default value | K31: % | L31: 0 | M31: 0.07 | N31: =1-M31-L31 -> 0.93 | O31: Unless otherwise stated, use the distribution 93% fossil diesel and 7% biodiesel | P31: NIRAS' experience.
B32: Energy demand tractor | C32: L/h | D32: 5 | E32: 5 | G32: kW | H32: =IF(J32="",0,J32) -> 0 | I32: No default value | K32: % | L32: 0 | M32: 0.07 | N32: =1-M32-L32 -> 0.93 | O32: Unless otherwise stated, use the distribution 93% fossil diesel and 7% biodiesel | P32: NIRAS' experience.
B33: Energy demand paver | C33: L/h | D33: 3 | E33: 3 | G33: kW | H33: 0 | I33: No default value | K33: % | L33: 0 | M33: 0.07 | N33: 0.93 | O33: Unless otherwise stated, use the distribution 93% fossil diesel and 7% biodiesel | P33: NIRAS' experience.
B34: Energy demand excavator | C34: L/h | D34: 20 | E34: 20 | G34: kW | H34: 0 | I34: No default value | K34: % | L34: 0 | M34: 0.07 | N34: 0.93 | O34: Unless otherwise stated, use the distribution 93% fossil diesel and 7% biodiesel | P34: NIRAS' experience.
B35: Energy demand coarse crusher | C35: L/h | D35: 25 | E35: 25 | G35: kW | H35: 0 | I35: No default value | K35: % | L35: 0 | M35: 0.07 | N35: 0.93 | O35: Unless otherwise stated, use the distribution 93% fossil diesel and 7% biodiesel | P35: NIRAS' experience.
B36: Energy demand fine crusher | C36: L/h | D36: =IF(F36="",E36,F36) -> 25 | E36: 25 | G36: kW | H36: 0 | I36: No default value | K36: % | L36: 0 | M36: 0.07 | N36: 0.93 | O36: Unless otherwise stated, use the distribution 93% fossil diesel and 7% biodiesel | P36: NIRAS' experience.
B37: Energy demand tower crane for bridge and culvert | C37: L/h | D37: =IF(F37="",0,F37) -> 0 | E37: No default value | G37: kW | H37: =IF(J37="",I37,J37) -> 48.6 | I37: 48.6 | K37: % | L37: 1 | M37: 0 | N37: =1-M37-L37 -> 0 | O37: Unless otherwise stated, use 100% elec. | P37: Dataseet Potain MDT 178 - 54 kVA. Assuming PF 0,9.
B38: Energy demand road marking | C38: L/m | D38: =IF(F38="",E38,F38) -> 0.0059 | E38: 0.0059 | G38: kW | H38: =IF(J38="",0,J38) -> 0 | I38: No default value | K38: % | L38: 0 | M38: 0.07 | N38: 0.93 | O38: Unless otherwise stated, use the distribution 93% fossil diesel and 7% biodiesel | P38: NIRAS' experience.
B39: Energy demand crating ditches | C39: L/m | D39: 40 | E39: 40 | G39: kWh/m | H39: 0 | I39: No default value | K39: % | L39: 0 | M39: 0.07 | N39: 0.93 | O39: Unless otherwise stated, use 100% elec. | P39: Straume, Krogsæter, NOTAT: Utredning og kravspesifikasjon til EFFEKT 6.6, Del 3: Videreutvikling av Klimamodulen. Lukket grøft til drenering "Grave grøfteprofil, nedsetting kummer, planering for rør i grøft og stikkrenner, omfylling og gjenfylling. 1 maskintime pr meter grøft"
B40: Energy demand construction work guard rail | C40: L/m | D40: 0.4 | E40: 0.4 | G40: kWh/m | H40: =IF(J40="",0,J40) -> 0 | I40: No default value | K40: % | L40: 0 | M40: 0.07 | N40: 0.93 | O40: Unless otherwise stated, use the distribution 93% fossil diesel and 7% biodiesel | P40: Assuming that the aggregate at the back of a lorry spends 4 L/h on the deployment of the guard rail, and that 80 m of guard rail is mounted per day for a four-lane road. One day is defined as 8 hours. This gives 32 liters of diesel/day. 32 liters of diesel per day/80 m guard rail per day => 0.4 liters of diesel/m. The number has been verified by Marianne Gjerde in Arvid Gjerde AS, who per email communication on 14.04.20 says that their piling rig uses 0.42 liters per meter mounted safety fence on average in one year.
B41: Energy demand loading shovel/tractor for roadside mowing | C41: L/h | D41: 7.5 | E41: 7.5 | G41: kW | H41: =IF(J41="",0,J41) -> 0 | I41: No default value | K41: % | L41: 0 | M41: 0.07 | N41: =1-M41-L41 -> 0.93 | O41: Value should be verified with more sources. Unless otherwise stated, use the distribution 93% fossil diesel and 7% biodiesel | P41: NIRAS' experience.
B42: Energy demand loading shovel/tractor for sweeping | C42: L/h | D42: =IF(F42="",E42,F42) -> 7.5 | E42: 7.5 | G42: kW | H42: =IF(J42="",0,J42) -> 0 | I42: No default value | K42: % | L42: 0 | M42: 0.07 | N42: =1-M42-L42 -> 0.93 | O42: Value should be verified with more sources. Forbruk er per felt. Unless otherwise stated, use the distribution 93% fossil diesel and 7% biodiesel. | P42: NIRAS' experience.
B43: Energy demand salting vehicle | C43: L/km | D43: 0.64 | E43: 0.64 | G43: kWh/km | H43: =IF(J43="",0,J43) -> 0 | I43: No default value | K43: % | L43: 0 | M43: 0.07 | N43: =1-M43-L43 -> 0.93 | O43: Consumption is per two lanes. Unless otherwise stated, use the distribution 93% fossil diesel and 7% biodiesel | P43: Average for winter maintenance equipment from "Life cycle assessment of winter road maintenance", Vignisdottir et. Al, The International Journal of Life Cycle Assessment (2020)
B44: Energy demand snowplough | C44: L/km | D44: 0.64 | E44: 0.64 | G44: kWh/km | H44: =IF(J44="",0,J44) -> 0 | I44: No default value | K44: % | L44: 0 | M44: 0.07 | N44: =1-M44-L44 -> 0.93 | O44: Forbruk is per round of ploughing. Unless otherwise stated, use the distribution 93% fossil diesel and 7% biodiesel | P44: Average for winter maintenance equipment from "Life cycle assessment of winter road maintenance", Vignisdottir et. Al, The International Journal of Life Cycle Assessment (2020)
B45: Working speed construction machinery
B46: Working speed steamroller | C46: t/h | D46: =IF(F46="",E46,F46) -> 75 | E46: 75 | O46: The factor is set to get approx. same diesel consumption as in VegLCA: 0.04 L/m2 asphalt laid. | P46: Coordination project between NV-GHG og VegLCA
B47: Working speed tractor | C47: t/h | D47: 300 | E47: 300 | P47: NIRAS' experience.
B48: Working speed paver | C48: t/h | D48: 3.75 | E48: 3.75 | O48: The factor is set to get approx. same diesel consumption as in VegLCA: 0.8 L/tonne of asphalt laid. | P48: Coordination project between NV-GHG og VegLCA
B49: Working speed excavator | C49: t/h | D49: 150 | E49: 150 | P49: NIRAS' experience.
B50: Working speed coarse crusher | C50: t/h | D50: 125 | E50: 125 | P50: NIRAS' experience.
B51: Working speed fine crusher | C51: t/h | D51: 250 | E51: 250 | P51: NIRAS' experience.
B52: Working speed crane first 400 m2 of bridge | C52: m2/h | D52: 1.666666667 | E52: =400/240 -> 1.666666667 | O52: Value should be verified with more sources. Large variations depending on the bridge type, foundation conditions (geology) and the size of the bridge. The factor can probably vary by plus/minus 60% depending on the conditions | P52: NIRAS' experience.
B53: Working speed crane rest of bridge | C53: m2/h | D53: 3.333333333 | E53: =400/120 -> 3.333333333 | O53: Value should be verified with more sources. Large variations depending on the bridge type, foundation conditions (geology) and the size of the bridge. The factor can probably vary by plus/minus 60% depending on the conditions | P53: NIRAS' experience.
B54: Working speed crane culvert | C54: h/p | D54: 18 | E54: 18 | O54: For a prefabricated element culvert approx. 10 hours. For a cast-in-place approx. 25 hours. Using 18 hours as an average. Value should be verified with more sources. | P54: NIRAS' experience.
B55: Working speed excavator ditch clearing | C55: m/h | D55: 300 | E55: 300 | P55: NIRAS' experience.
B56: Working speed tractor/loading shovel sweeping | C56: m/h | D56: 2000 | E56: 2000 | P56: NIRAS' experience.
B57: Working speed tractor/loading shovel roadside mowing | C57: m/h | D57: 7500 | E57: =1000/(8/60) -> 7500 | P57: The working speed is the average of values given by Maskinimportøren on the 15.04.20, who say that their tractor for roadside mowing spends approx. 8 minutes on mowing 1-1,25 m out from the roadside for 1 km

Sheet Emission factors
B2: Production factor | C2: Unit | D2: Emission factor used in calculations | E2: Standard emission factor | F2: Project-specific emission factor | G2: Comments | H2: Documentation default value | I2: Documentation project-specific value
B3: Materials
B4: Aluminium | C4: kg CO2e/kg | D4: =IF(F4="",E4,F4) -> - | E4: - | G4: Not used in this version
B5: Reinforcement steel | C5: kg CO2e/kg | D5: =IF(F5="",E5,F5) -> 0.6186 | E5: 0.6186 | H5: Average of three EPDs from the Norwegian market: NEPD-2084-939-EN (A1-A4), NEPD-2083-939-EN (A1-A4) og NEPD-2082-939-EN (A1-A4)
B6: Asphalt concrete, surface (Agb) | C6: kg CO2e/kg | D6: 0.0512 | E6: 0.0512 | H6: NEPD-1390-456-NO (A1-A3). Industry average, EPD made by EBA (Entreprenørforeningen Bygg og Anlegg) represented by Lemminkainen Norge AS, Skanska Asphalt AS, Peab Asphalt AS, NCC Industry and Veidekke Industri AS
B7: Stone mastic asphalt (Ska) | C7: kg CO2e/kg | D7: =IF(F7="",E7,F7) -> 0.0657 | E7: 0.0657 | H7: NEPD-1391-456-NO (A1-A3). Industry average, EPD made by EBA (Entreprenørforeningen Bygg og Anlegg) represented by Lemminkainen Norge AS, Skanska Asphalt AS, Peab Asphalt AS, NCC Industry and Veidekke Industri AS
B8: Asphalt concrete, base (Ag) | C8: kg CO2e/kg | D8: 0.0488 | E8: 0.0488 | H8: NEPD-1489-456-NO (A1-A3). Industry average, EPD made by EBA (Entreprenørforeningen Bygg og Anlegg) represented by Lemminkainen Norge AS, Skanska Asphalt AS, Peab Asphalt AS, NCC Industry and Veidekke Industri AS
B9: Topeka | C9: kg CO2e/kg | D9: =IF(F9="",E9,F9) -> 0.184 | E9: 0.184 | H9: Assumed the same as mastic asphalt; 'Mastic asphalt' taken from ecoinvent v3 with Nordic electricity mix 2012-2016 for production. Same as VegLCA.
B10: Concrete | C10: kg CO2e/kg | D10: 0.1375 | E10: 0.1375 | G10: Baseline: =410/2400 | H10: NB 37 (2019). Industry reference for B35. NB 37 says that when converting from kg/kg to kg/m3, a density of 2400 kg/m3 should be used.
B11: PE foam | C11: kg CO2e/kg | D11: - | E11: - | G11: Not used in this version
B12: Salt | C12: kg CO2e/kg | D12: 0.179 | E12: 0.179 | H12: EcoInvent; "Sodium chloride, powder {RER} | production | Conseq, U"
B13: Sprayed concrete | C13: kg CO2e/kg | D13: 0.2524 | E13: 0.2524 | H13: NEPD-1509-512-EN (A1-A4).
B14: Steel | C14: kg CO2e/kg | D14: 2.1235 | E14: 2.1235 | H14: Average of three EPDs from the Norwegian market: NEPD-1914-839-EN (A1-A4), NEPD-1915-839-EN (A1-A4) og NEPD-1928-851-SE (A1-A4)
B15: XPS | C15: kg CO2e/kg | D15: 3.711 | E15: 3.711 | H15: NEPD-396-274-NO (A1-A4). Sundolitt, Brødrene Sunde AS. 33mm thickness
B16: XPS/concrete element | C16: kg CO2e/m2 | D16: 66.815 | E16: 66.815 | H16: NEPD-351-243-NO (A1-A4). The elements consist of 150mm concrete and 50mm XPS kpa insulation, in total a thickness of 200mm.
B17: Energy
B18: Biodiesel (WTT) | C18: kg CO2e/litre | D18: 1.92 | E18: 1.92 | H18: NS-EN 16258:2012. Table A.1 Biodiesel "well to tank"
B19: Fossil diesel combustion (TTW) | C19: kg CO2e/litre | D19: 2.67 | E19: 2.67 | H19: NS-EN 16258:2012. Table A.1 Diesel "tank to wheel"
B20: Fossil diesel (WTW) | C20: kg CO2e/litre | D20: 3.24 | E20: 3.24 | H20: NS-EN 16258-2012. Table A.1 Diesel "well to wheel"
B21: Explosives (CTG) | C21: kg CO2e/kg | D21: 2.678 | E21: 2.678 | H21: NEPD-1591-615-EN (A1-A4).
B22: Explosives detonation | C22: kg CO2e/kg | D22: 0.152 | E22: 0.152 | H22: NEPD-1591-615-EN (A5-2).
B23: Electricity construction phase, Norwegian mix | C23: kg CO2e/kWh | D23: =IF(F23="",E23,F23) -> 0.02638 | E23: 0.02638 | H23: NS 3720: 2018. Emissions for the year 2020 are estimated on the basis of emissions for 2015, where it is assumed that the annual reduction is linear until 2050.
B24: Electricity 55 years, European mix | C24: kg CO2e/kWh | D24: =IF(F24="",E24,F24) -> 0.136 | E24: 0.136 | H24: NS 3720:2018. Estimated emission in year 2075.
B25: Land use change
B26: Forest - low site quality | C26: kg CO2e/m2 | D26: =IF(F26="",E26,F26) -> 60.4 | E26: =12+48.4 -> 60.4 | H26: "Metode for beregning av CO2-utslipp knyttet til arealbeslag ved vegbygging" (Asplan Viak, 2015). Table 3
B27: Forest - medium site quality | C27: kg CO2e/m2 | D27: =IF(F27="",E27,F27) -> 68.7 | E27: =20.3+48.4 -> 68.7 | H27: "Metode for beregning av CO2-utslipp knyttet til arealbeslag ved vegbygging" (Asplan Viak, 2015). Table 3
B28: Forest - high site quality | C28: kg CO2e/m2 | D28: =IF(F28="",E28,F28) -> 80.3 | E28: =31.9+48.4 -> 80.3 | H28: "Metode for beregning av CO2-utslipp knyttet til arealbeslag ved vegbygging" (Asplan Viak, 2015). Table 3
B29: Marsh | C29: kg CO2e/m2 | D29: =IF(F29="",E29,F29) -> 201.9 | E29: =201.9 -> 201.9 | H29: "Metode for beregning av CO2-utslipp knyttet til arealbeslag ved vegbygging" (Asplan Viak, 2015). Table 3
B30: Agricultural land | C30: kg CO2e/m2 | D30: =IF(F30="",E30,F30) -> 55.1 | E30: =55.1 -> 55.1 | H30: "Metode for beregning av CO2-utslipp knyttet til arealbeslag ved vegbygging" (Asplan Viak, 2015). Table 3

Sheet Results
B3: Table 1: Emissions over the life cycle in tonnes CO2e
B4: Category | C4: Total for the analysis period | D4: Year in the life cycle
D5: 0 | E5: 1 | F5: 2 | G5: 3 | H5: 4 | I5: 5 | J5: 6 | K5: 7 | L5: 8 | M5: 9 | N5: 10 | O5: 11 | P5: 12 | Q5: 13 | R5: 14 | S5: 15 | T5: 16 | U5: 17 | V5: 18 | W5: 19 | X5: 20 | Y5: 21 | Z5: 22 | AA5: 23 | AB5: 24 | AC5: 25 | AD5: 26 | AE5: 27 | AF5: 28 | AG5: 29 | AH5: 30 | AI5: 31 | AJ5: 32 | AK5: 33 | AL5: 34 | AM5: 35 | AN5: 36 | AO5: 37 | AP5: 38 | AQ5: 39 | AR5: 40 | AS5: 41 | AT5: 42 | AU5: 43 | AV5: 44 | AW5: 45 | AX5: 46 | AY5: 47 | AZ5: 48 | BA5: 49 | BB5: 50 | BC5: 51 | BD5: 52 | BE5: 53 | BF5: 54 | BG5: 55 | BH5: 56 | BI5: 57 | BJ5: 58 | BK5: 59 | BL5: 60
B6: Construction phase | C6: =SUMIF($D$5:$BL$5,"<=" & 'Project description and input'!$C$14,D6:BL6) -> 0 | D6: =IFERROR(SUMIF(Calculations!G:G,"Year 0",Calculations!M:M),"Ikke definert") -> 0 | E6: 0 | F6: 0 | G6: 0 | H6: 0 | I6: 0 | J6: 0 | K6: 0 | L6: 0 | M6: 0 | N6: 0 | O6: 0 | P6: 0 | Q6: 0 | R6: 0 | S6: 0 | T6: 0 | U6: 0 | V6: 0 | W6: 0 | X6: 0 | Y6: 0 | Z6: 0 | AA6: 0 | AB6: 0 | AC6: 0 | AD6: 0 | AE6: 0 | AF6: 0 | AG6: 0 | AH6: 0 | AI6: 0 | AJ6: 0 | AK6: 0 | AL6: 0 | AM6: 0 | AN6: 0 | AO6: 0 | AP6: 0 | AQ6: 0 | AR6: 0 | AS6: 0 | AT6: 0 | AU6: 0 | AV6: 0 | AW6: 0 | AX6: 0 | AY6: 0 | AZ6: 0 | BA6: 0 | BB6: 0 | BC6: 0 | BD6: 0 | BE6: 0 | BF6: 0 | BG6: 0 | BH6: 0 | BI6: 0 | BJ6: 0 | BK6: 0 | BL6: 0
B7: Land use change | C7: =SUMIF($D$5:$BL$5,"<=" & 'Project description and input'!$C$14,D7:BL7) -> 0 | D7: =C147 -> 0 | E7: 0 | F7: 0 | G7: 0 | H7: 0 | I7: 0 | J7: 0 | K7: 0 | L7: 0 | M7: 0 | N7: 0 | O7: 0 | P7: 0 | Q7: 0 | R7: 0 | S7: 0 | T7: 0 | U7: 0 | V7: 0 | W7: 0 | X7: 0 | Y7: 0 | Z7: 0 | AA7: 0 | AB7: 0 | AC7: 0 | AD7: 0 | AE7: 0 | AF7: 0 | AG7: 0 | AH7: 0 | AI7: 0 | AJ7: 0 | AK7: 0 | AL7: 0 | AM7: 0 | AN7: 0 | AO7: 0 | AP7: 0 | AQ7: 0 | AR7: 0 | AS7: 0 | AT7: 0 | AU7: 0 | AV7: 0 | AW7: 0 | AX7: 0 | AY7: 0 | AZ7: 0 | BA7: 0 | BB7: 0 | BC7: 0 | BD7: 0 | BE7: 0 | BF7: 0 | BG7: 0 | BH7: 0 | BI7: 0 | BJ7: 0 | BK7: 0 | BL7: 0
B8: Operation | C8: =SUMIF($D$5:$BL$5,"<=" & 'Project description and input'!$C$14,D8:BL8) -> 0 | D8: 0 | E8: =SUMIFS(Calculations!O$126:O$311,Calculations!$H$126:$H$311,Results!$B8) -> 0 | F8: =SUMIFS(Calculations!P$126:P$311,Calculations!$H$126:$H$311,Results!$B8) -> 0 | G8: =SUMIFS(Calculations!Q$126:Q$311,Calculations!$H$126:$H$311,Results!$B8) -> 0 | H8: =SUMIFS(Calculations!R$126:R$311,Calculations!$H$126:$H$311,Results!$B8) -> 0 | I8: =SUMIFS(Calculations!S$126:S$311,Calculations!$H$126:$H$311,Results!$B8) -> 0 | J8: =SUMIFS(Calculations!T$126:T$311,Calculations!$H$126:$H$311,Results!$B8) -> 0 | K8: =SUMIFS(Calculations!U$126:U$311,Calculations!$H$126:$H$311,Results!$B8) -> 0 | L8: =SUMIFS(Calculations!V$126:V$311,Calculations!$H$126:$H$311,Results!$B8) -> 0 | M8: =SUMIFS(Calculations!W$126:W$311,Calculations!$H$126:$H$311,Results!$B8) -> 0 | N8: =SUMIFS(Calculations!X$126:X$311,Calculations!$H$126:$H$311,Results!$B8) -> 0 | O8: =SUMIFS(Calculations!Y$126:Y$311,Calculations!$H$126:$H$311,Results!$B8) -> 0 | P8: =SUMIFS(Calculations!Z$126:Z$311,Calculations!$H$126:$H$311,Results!$B8) -> 0 | Q8: =SUMIFS(Calculations!AA$126:AA$311,Calculations!$H$126:$H$311,Results!$B8) -> 0 | R8: =SUMIFS(Calculations!AB$126:AB$311,Calculations!$H$126:$H$311,Results!$B8) -> 0 | S8: =SUMIFS(Calculations!AC$126:AC$311,Calculations!$H$126:$H$311,Results!$B8) -> 0 | T8: =SUMIFS(Calculations!AD$126:AD$311,Calculations!$H$126:$H$311,Results!$B8) -> 0 | U8: =SUMIFS(Calculations!AE$126:AE$311,Calculations!$H$126:$H$311,Results!$B8) -> 0 | V8: =SUMIFS(Calculations!AF$126:AF$311,Calculations!$H$126:$H$311,Results!$B8) -> 0 | W8: =SUMIFS(Calculations!AG$126:AG$311,Calculations!$H$126:$H$311,Results!$B8) -> 0 | X8: =SUMIFS(Calculations!AH$126:AH$311,Calculations!$H$126:$H$311,Results!$B8) -> 0 | Y8: =SUMIFS(Calculations!AI$126:AI$311,Calculations!$H$126:$H$311,Results!$B8) -> 0 | Z8: =SUMIFS(Calculations!AJ$126:AJ$311,Calculations!$H$126:$H$311,Results!$B8) -> 0 | AA8: =SUMIFS(Calculations!AK$126:AK$311,Calculations!$H$126:$H$311,Results!$B8) -> 0 | AB8: =SUMIFS(Calculations!AL$126:AL$311,Calculations!$H$126:$H$311,Results!$B8) -> 0 | AC8: =SUMIFS(Calculations!AM$126:AM$311,Calculations!$H$126:$H$311,Results!$B8) -> 0 | AD8: =SUMIFS(Calculations!AN$126:AN$311,Calculations!$H$126:$H$311,Results!$B8) -> 0 | AE8: =SUMIFS(Calculations!AO$126:AO$311,Calculations!$H$126:$H$311,Results!$B8) -> 0 | AF8: =SUMIFS(Calculations!AP$126:AP$311,Calculations!$H$126:$H$311,Results!$B8) -> 0 | AG8: =SUMIFS(Calculations!AQ$126:AQ$311,Calculations!$H$126:$H$311,Results!$B8) -> 0 | AH8: =SUMIFS(Calculations!AR$126:AR$311,Calculations!$H$126:$H$311,Results!$B8) -> 0 | AI8: =SUMIFS(Calculations!AS$126:AS$311,Calculations!$H$126:$H$311,Results!$B8) -> 0 | AJ8: =SUMIFS(Calculations!AT$126:AT$311,Calculations!$H$126:$H$311,Results!$B8) -> 0 | AK8: =SUMIFS(Calculations!AU$126:AU$311,Calculations!$H$126:$H$311,Results!$B8) -> 0 | AL8: =SUMIFS(Calculations!AV$126:AV$311,Calculations!$H$126:$H$311,Results!$B8) -> 0 | AM8: =SUMIFS(Calculations!AW$126:AW$311,Calculations!$H$126:$H$311,Results!$B8) -> 0 | AN8: =SUMIFS(Calculations!AX$126:AX$311,Calculations!$H$126:$H$311,Results!$B8) -> 0 | AO8: =SUMIFS(Calculations!AY$126:AY$311,Calculations!$H$126:$H$311,Results!$B8) -> 0 | AP8: =SUMIFS(Calculations!AZ$126:AZ$311,Calculations!$H$126:$H$311,Results!$B8) -> 0 | AQ8: =SUMIFS(Calculations!BA$126:BA$311,Calculations!$H$126:$H$311,Results!$B8) -> 0 | AR8: =SUMIFS(Calculations!BB$126:BB$311,Calculations!$H$126:$H$311,Results!$B8) -> 0 | AS8: =SUMIFS(Calculations!BC$126:BC$311,Calculations!$H$126:$H$311,Results!$B8) -> 0 | AT8: =SUMIFS(Calculations!BD$126:BD$311,Calculations!$H$126:$H$311,Results!$B8) -> 0 | AU8: =SUMIFS(Calculations!BE$126:BE$311,Calculations!$H$126:$H$311,Results!$B8) -> 0 | AV8: =SUMIFS(Calculations!BF$126:BF$311,Calculations!$H$126:$H$311,Results!$B8) -> 0 | AW8: =SUMIFS(Calculations!BG$126:BG$311,Calculations!$H$126:$H$311,Results!$B8) -> 0 | AX8: =SUMIFS(Calculations!BH$126:BH$311,Calculations!$H$126:$H$311,Results!$B8) -> 0 | AY8: =SUMIFS(Calculations!BI$126:BI$311,Calculations!$H$126:$H$311,Results!$B8) -> 0 | AZ8: =SUMIFS(Calculations!BJ$126:BJ$311,Calculations!$H$126:$H$311,Results!$B8) -> 0 | BA8: =SUMIFS(Calculations!BK$126:BK$311,Calculations!$H$126:$H$311,Results!$B8) -> 0 | BB8: =SUMIFS(Calculations!BL$126:BL$311,Calculations!$H$126:$H$311,Results!$B8) -> 0 | BC8: =SUMIFS(Calculations!BM$126:BM$311,Calculations!$H$126:$H$311,Results!$B8) -> 0 | BD8: =SUMIFS(Calculations!BN$126:BN$311,Calculations!$H$126:$H$311,Results!$B8) -> 0 | BE8: =SUMIFS(Calculations!BO$126:BO$311,Calculations!$H$126:$H$311,Results!$B8) -> 0 | BF8: =SUMIFS(Calculations!BP$126:BP$311,Calculations!$H$126:$H$311,Results!$B8) -> 0 | BG8: =SUMIFS(Calculations!BQ$126:BQ$311,Calculations!$H$126:$H$311,Results!$B8) -> 0 | BH8: =SUMIFS(Calculations!BR$126:BR$311,Calculations!$H$126:$H$311,Results!$B8) -> 0 | BI8: =SUMIFS(Calculations!BS$126:BS$311,Calculations!$H$126:$H$311,Results!$B8) -> 0 | BJ8: =SUMIFS(Calculations!BT$126:BT$311,Calculations!$H$126:$H$311,Results!$B8) -> 0 | BK8: =SUMIFS(Calculations!BU$126:BU$311,Calculations!$H$126:$H$311,Results!$B8) -> 0 | BL8: =SUMIFS(Calculations!BV$126:BV$311,Calculations!$H$126:$H$311,Results!$B8) -> 0
B9: Maintenance | C9: =SUMIF($D$5:$BL$5,"<=" & 'Project description and input'!$C$14,D9:BL9) -> 0 | D9: 0 | E9: =SUMIFS(Calculations!O$126:O$311,Calculations!$H$126:$H$311,Results!$B9) -> 0 | F9: =SUMIFS(Calculations!P$126:P$311,Calculations!$H$126:$H$311,Results!$B9) -> 0 | G9: =SUMIFS(Calculations!Q$126:Q$311,Calculations!$H$126:$H$311,Results!$B9) -> 0 | H9: =SUMIFS(Calculations!R$126:R$311,Calculations!$H$126:$H$311,Results!$B9) -> 0 | I9: =SUMIFS(Calculations!S$126:S$311,Calculations!$H$126:$H$311,Results!$B9) -> 0 | J9: =SUMIFS(Calculations!T$126:T$311,Calculations!$H$126:$H$311,Results!$B9) -> 0 | K9: =SUMIFS(Calculations!U$126:U$311,Calculations!$H$126:$H$311,Results!$B9) -> 0 | L9: =SUMIFS(Calculations!V$126:V$311,Calculations!$H$126:$H$311,Results!$B9) -> 0 | M9: =SUMIFS(Calculations!W$126:W$311,Calculations!$H$126:$H$311,Results!$B9) -> 0 | N9: =SUMIFS(Calculations!X$126:X$311,Calculations!$H$126:$H$311,Results!$B9) -> 0 | O9: =SUMIFS(Calculations!Y$126:Y$311,Calculations!$H$126:$H$311,Results!$B9) -> 0 | P9: =SUMIFS(Calculations!Z$126:Z$311,Calculations!$H$126:$H$311,Results!$B9) -> 0 | Q9: =SUMIFS(Calculations!AA$126:AA$311,Calculations!$H$126:$H$311,Results!$B9) -> 0 | R9: =SUMIFS(Calculations!AB$126:AB$311,Calculations!$H$126:$H$311,Results!$B9) -> 0 | S9: =SUMIFS(Calculations!AC$126:AC$311,Calculations!$H$126:$H$311,Results!$B9) -> 0 | T9: =SUMIFS(Calculations!AD$126:AD$311,Calculations!$H$126:$H$311,Results!$B9) -> 0 | U9: =SUMIFS(Calculations!AE$126:AE$311,Calculations!$H$126:$H$311,Results!$B9) -> 0 | V9: =SUMIFS(Calculations!AF$126:AF$311,Calculations!$H$126:$H$311,Results!$B9) -> 0 | W9: =SUMIFS(Calculations!AG$126:AG$311,Calculations!$H$126:$H$311,Results!$B9) -> 0 | X9: =SUMIFS(Calculations!AH$126:AH$311,Calculations!$H$126:$H$311,Results!$B9) -> 0 | Y9: =SUMIFS(Calculations!AI$126:AI$311,Calculations!$H$126:$H$311,Results!$B9) -> 0 | Z9: =SUMIFS(Calculations!AJ$126:AJ$311,Calculations!$H$126:$H$311,Results!$B9) -> 0 | AA9: =SUMIFS(Calculations!AK$126:AK$311,Calculations!$H$126:$H$311,Results!$B9) -> 0 | AB9: =SUMIFS(Calculations!AL$126:AL$311,Calculations!$H$126:$H$311,Results!$B9) -> 0 | AC9: =SUMIFS(Calculations!AM$126:AM$311,Calculations!$H$126:$H$311,Results!$B9) -> 0 | AD9: =SUMIFS(Calculations!AN$126:AN$311,Calculations!$H$126:$H$311,Results!$B9) -> 0 | AE9: =SUMIFS(Calculations!AO$126:AO$311,Calculations!$H$126:$H$311,Results!$B9) -> 0 | AF9: =SUMIFS(Calculations!AP$126:AP$311,Calculations!$H$126:$H$311,Results!$B9) -> 0 | AG9: =SUMIFS(Calculations!AQ$126:AQ$311,Calculations!$H$126:$H$311,Results!$B9) -> 0 | AH9: =SUMIFS(Calculations!AR$126:AR$311,Calculations!$H$126:$H$311,Results!$B9) -> 0 | AI9: =SUMIFS(Calculations!AS$126:AS$311,Calculations!$H$126:$H$311,Results!$B9) -> 0 | AJ9: =SUMIFS(Calculations!AT$126:AT$311,Calculations!$H$126:$H$311,Results!$B9) -> 0 | AK9: =SUMIFS(Calculations!AU$126:AU$311,Calculations!$H$126:$H$311,Results!$B9) -> 0 | AL9: =SUMIFS(Calculations!AV$126:AV$311,Calculations!$H$126:$H$311,Results!$B9) -> 0 | AM9: =SUMIFS(Calculations!AW$126:AW$311,Calculations!$H$126:$H$311,Results!$B9) -> 0 | AN9: =SUMIFS(Calculations!AX$126:AX$311,Calculations!$H$126:$H$311,Results!$B9) -> 0 | AO9: =SUMIFS(Calculations!AY$126:AY$311,Calculations!$H$126:$H$311,Results!$B9) -> 0 | AP9: =SUMIFS(Calculations!AZ$126:AZ$311,Calculations!$H$126:$H$311,Results!$B9) -> 0 | AQ9: =SUMIFS(Calculations!BA$126:BA$311,Calculations!$H$126:$H$311,Results!$B9) -> 0 | AR9: =SUMIFS(Calculations!BB$126:BB$311,Calculations!$H$126:$H$311,Results!$B9) -> 0 | AS9: =SUMIFS(Calculations!BC$126:BC$311,Calculations!$H$126:$H$311,Results!$B9) -> 0 | AT9: =SUMIFS(Calculations!BD$126:BD$311,Calculations!$H$126:$H$311,Results!$B9) -> 0 | AU9: =SUMIFS(Calculations!BE$126:BE$311,Calculations!$H$126:$H$311,Results!$B9) -> 0 | AV9: =SUMIFS(Calculations!BF$126:BF$311,Calculations!$H$126:$H$311,Results!$B9) -> 0 | AW9: =SUMIFS(Calculations!BG$126:BG$311,Calculations!$H$126:$H$311,Results!$B9) -> 0 | AX9: =SUMIFS(Calculations!BH$126:BH$311,Calculations!$H$126:$H$311,Results!$B9) -> 0 | AY9: =SUMIFS(Calculations!BI$126:BI$311,Calculations!$H$126:$H$311,Results!$B9) -> 0 | AZ9: =SUMIFS(Calculations!BJ$126:BJ$311,Calculations!$H$126:$H$311,Results!$B9) -> 0 | BA9: =SUMIFS(Calculations!BK$126:BK$311,Calculations!$H$126:$H$311,Results!$B9) -> 0 | BB9: =SUMIFS(Calculations!BL$126:BL$311,Calculations!$H$126:$H$311,Results!$B9) -> 0 | BC9: =SUMIFS(Calculations!BM$126:BM$311,Calculations!$H$126:$H$311,Results!$B9) -> 0 | BD9: =SUMIFS(Calculations!BN$126:BN$311,Calculations!$H$126:$H$311,Results!$B9) -> 0 | BE9: =SUMIFS(Calculations!BO$126:BO$311,Calculations!$H$126:$H$311,Results!$B9) -> 0 | BF9: =SUMIFS(Calculations!BP$126:BP$311,Calculations!$H$126:$H$311,Results!$B9) -> 0 | BG9: =SUMIFS(Calculations!BQ$126:BQ$311,Calculations!$H$126:$H$311,Results!$B9) -> 0 | BH9: =SUMIFS(Calculations!BR$126:BR$311,Calculations!$H$126:$H$311,Results!$B9) -> 0 | BI9: =SUMIFS(Calculations!BS$126:BS$311,Calculations!$H$126:$H$311,Results!$B9) -> 0 | BJ9: =SUMIFS(Calculations!BT$126:BT$311,Calculations!$H$126:$H$311,Results!$B9) -> 0 | BK9: =SUMIFS(Calculations!BU$126:BU$311,Calculations!$H$126:$H$311,Results!$B9) -> 0 | BL9: =SUMIFS(Calculations!BV$126:BV$311,Calculations!$H$126:$H$311,Results!$B9) -> 0
B10: Re-asphalting | C10: =SUMIF($D$5:$BL$5,"<=" & 'Project description and input'!$C$14,D10:BL10) -> 0 | D10: 0 | E10: =SUMIFS(Calculations!O$126:O$311,Calculations!$H$126:$H$311,Results!$B10) -> 0 | F10: =SUMIFS(Calculations!P$126:P$311,Calculations!$H$126:$H$311,Results!$B10) -> 0 | G10: =SUMIFS(Calculations!Q$126:Q$311,Calculations!$H$126:$H$311,Results!$B10) -> 0 | H10: =SUMIFS(Calculations!R$126:R$311,Calculations!$H$126:$H$311,Results!$B10) -> 0 | I10: =SUMIFS(Calculations!S$126:S$311,Calculations!$H$126:$H$311,Results!$B10) -> 0 | J10: =SUMIFS(Calculations!T$126:T$311,Calculations!$H$126:$H$311,Results!$B10) -> 0 | K10: =SUMIFS(Calculations!U$126:U$311,Calculations!$H$126:$H$311,Results!$B10) -> 0 | L10: =SUMIFS(Calculations!V$126:V$311,Calculations!$H$126:$H$311,Results!$B10) -> 0 | M10: =SUMIFS(Calculations!W$126:W$311,Calculations!$H$126:$H$311,Results!$B10) -> 0 | N10: =SUMIFS(Calculations!X$126:X$311,Calculations!$H$126:$H$311,Results!$B10) -> 0 | O10: =SUMIFS(Calculations!Y$126:Y$311,Calculations!$H$126:$H$311,Results!$B10) -> 0 | P10: =SUMIFS(Calculations!Z$126:Z$311,Calculations!$H$126:$H$311,Results!$B10) -> 0 | Q10: =SUMIFS(Calculations!AA$126:AA$311,Calculations!$H$126:$H$311,Results!$B10) -> 0 | R10: =SUMIFS(Calculations!AB$126:AB$311,Calculations!$H$126:$H$311,Results!$B10) -> 0 | S10: =SUMIFS(Calculations!AC$126:AC$311,Calculations!$H$126:$H$311,Results!$B10) -> 0 | T10: =SUMIFS(Calculations!AD$126:AD$311,Calculations!$H$126:$H$311,Results!$B10) -> 0 | U10: =SUMIFS(Calculations!AE$126:AE$311,Calculations!$H$126:$H$311,Results!$B10) -> 0 | V10: =SUMIFS(Calculations!AF$126:AF$311,Calculations!$H$126:$H$311,Results!$B10) -> 0 | W10: =SUMIFS(Calculations!AG$126:AG$311,Calculations!$H$126:$H$311,Results!$B10) -> 0 | X10: =SUMIFS(Calculations!AH$126:AH$311,Calculations!$H$126:$H$311,Results!$B10) -> 0 | Y10: =SUMIFS(Calculations!AI$126:AI$311,Calculations!$H$126:$H$311,Results!$B10) -> 0 | Z10: =SUMIFS(Calculations!AJ$126:AJ$311,Calculations!$H$126:$H$311,Results!$B10) -> 0 | AA10: =SUMIFS(Calculations!AK$126:AK$311,Calculations!$H$126:$H$311,Results!$B10) -> 0 | AB10: =SUMIFS(Calculations!AL$126:AL$311,Calculations!$H$126:$H$311,Results!$B10) -> 0 | AC10: =SUMIFS(Calculations!AM$126:AM$311,Calculations!$H$126:$H$311,Results!$B10) -> 0 | AD10: =SUMIFS(Calculations!AN$126:AN$311,Calculations!$H$126:$H$311,Results!$B10) -> 0 | AE10: =SUMIFS(Calculations!AO$126:AO$311,Calculations!$H$126:$H$311,Results!$B10) -> 0 | AF10: =SUMIFS(Calculations!AP$126:AP$311,Calculations!$H$126:$H$311,Results!$B10) -> 0 | AG10: =SUMIFS(Calculations!AQ$126:AQ$311,Calculations!$H$126:$H$311,Results!$B10) -> 0 | AH10: =SUMIFS(Calculations!AR$126:AR$311,Calculations!$H$126:$H$311,Results!$B10) -> 0 | AI10: =SUMIFS(Calculations!AS$126:AS$311,Calculations!$H$126:$H$311,Results!$B10) -> 0 | AJ10: =SUMIFS(Calculations!AT$126:AT$311,Calculations!$H$126:$H$311,Results!$B10) -> 0 | AK10: =SUMIFS(Calculations!AU$126:AU$311,Calculations!$H$126:$H$311,Results!$B10) -> 0 | AL10: =SUMIFS(Calculations!AV$126:AV$311,Calculations!$H$126:$H$311,Results!$B10) -> 0 | AM10: =SUMIFS(Calculations!AW$126:AW$311,Calculations!$H$126:$H$311,Results!$B10) -> 0 | AN10: =SUMIFS(Calculations!AX$126:AX$311,Calculations!$H$126:$H$311,Results!$B10) -> 0 | AO10: =SUMIFS(Calculations!AY$126:AY$311,Calculations!$H$126:$H$311,Results!$B10) -> 0 | AP10: =SUMIFS(Calculations!AZ$126:AZ$311,Calculations!$H$126:$H$311,Results!$B10) -> 0 | AQ10: =SUMIFS(Calculations!BA$126:BA$311,Calculations!$H$126:$H$311,Results!$B10) -> 0 | AR10: =SUMIFS(Calculations!BB$126:BB$311,Calculations!$H$126:$H$311,Results!$B10) -> 0 | AS10: =SUMIFS(Calculations!BC$126:BC$311,Calculations!$H$126:$H$311,Results!$B10) -> 0 | AT10: =SUMIFS(Calculations!BD$126:BD$311,Calculations!$H$126:$H$311,Results!$B10) -> 0 | AU10: =SUMIFS(Calculations!BE$126:BE$311,Calculations!$H$126:$H$311,Results!$B10) -> 0 | AV10: =SUMIFS(Calculations!BF$126:BF$311,Calculations!$H$126:$H$311,Results!$B10) -> 0 | AW10: =SUMIFS(Calculations!BG$126:BG$311,Calculations!$H$126:$H$311,Results!$B10) -> 0 | AX10: =SUMIFS(Calculations!BH$126:BH$311,Calculations!$H$126:$H$311,Results!$B10) -> 0 | AY10: =SUMIFS(Calculations!BI$126:BI$311,Calculations!$H$126:$H$311,Results!$B10) -> 0 | AZ10: =SUMIFS(Calculations!BJ$126:BJ$311,Calculations!$H$126:$H$311,Results!$B10) -> 0 | BA10: =SUMIFS(Calculations!BK$126:BK$311,Calculations!$H$126:$H$311,Results!$B10) -> 0 | BB10: =SUMIFS(Calculations!BL$126:BL$311,Calculations!$H$126:$H$311,Results!$B10) -> 0 | BC10: =SUMIFS(Calculations!BM$126:BM$311,Calculations!$H$126:$H$311,Results!$B10) -> 0 | BD10: =SUMIFS(Calculations!BN$126:BN$311,Calculations!$H$126:$H$311,Results!$B10) -> 0 | BE10: =SUMIFS(Calculations!BO$126:BO$311,Calculations!$H$126:$H$311,Results!$B10) -> 0 | BF10: =SUMIFS(Calculations!BP$126:BP$311,Calculations!$H$126:$H$311,Results!$B10) -> 0 | BG10: =SUMIFS(Calculations!BQ$126:BQ$311,Calculations!$H$126:$H$311,Results!$B10) -> 0 | BH10: =SUMIFS(Calculations!BR$126:BR$311,Calculations!$H$126:$H$311,Results!$B10) -> 0 | BI10: =SUMIFS(Calculations!BS$126:BS$311,Calculations!$H$126:$H$311,Results!$B10) -> 0 | BJ10: =SUMIFS(Calculations!BT$126:BT$311,Calculations!$H$126:$H$311,Results!$B10) -> 0 | BK10: =SUMIFS(Calculations!BU$126:BU$311,Calculations!$H$126:$H$311,Results!$B10) -> 0 | BL10: =SUMIFS(Calculations!BV$126:BV$311,Calculations!$H$126:$H$311,Results!$B10) -> 0
B11: Total | C11: =SUMIF($D$5:$BL$5,"<=" & 'Project description and input'!$C$14,D11:BL11) -> 0 | D11: =SUM(D6:D10) -> 0 | E11: 0 | F11: 0 | G11: 0 | H11: 0 | I11: 0 | J11: 0 | K11: 0 | L11: 0 | M11: 0 | N11: 0 | O11: 0 | P11: 0 | Q11: 0 | R11: 0 | S11: 0 | T11: 0 | U11: 0 | V11: 0 | W11: 0 | X11: 0 | Y11: 0 | Z11: 0 | AA11: 0 | AB11: 0 | AC11: 0 | AD11: 0 | AE11: 0 | AF11: 0 | AG11: 0 | AH11: 0 | AI11: 0 | AJ11: =SUM(AJ6:AJ10) -> 0 | AK11: 0 | AL11: 0 | AM11: 0 | AN11: 0 | AO11: 0 | AP11: 0 | AQ11: 0 | AR11: 0 | AS11: 0 | AT11: 0 | AU11: 0 | AV11: 0 | AW11: 0 | AX11: 0 | AY11: 0 | AZ11: 0 | BA11: 0 | BB11: 0 | BC11: 0 | BD11: 0 | BE11: 0 | BF11: 0 | BG11: 0 | BH11: 0 | BI11: 0 | BJ11: 0 | BK11: 0 | BL11: 0
B38: Table 2: Emission distributed to physical units and phase (in tonnes CO2e)
B39: Category | C39: Concrete | D39: Steel | E39: Reinforcement steel | F39: Asphalt | G39: Frost protection tunnel | H39: Blasting | I39: Diesel | J39: Salt | K39: Electricity | L39: Land use change | M39: Total
B40: Open road | C40: =SUMIFS(Calculations!M:M,Calculations!H:H,B40,Calculations!I:I,Results!C39) -> 0 | D40: =SUMIFS(Calculations!M:M,Calculations!H:H,Results!B40,Calculations!I:I,D39) -> 0 | E40: =SUMIFS(Calculations!M:M,Calculations!H:H,Results!B40,Calculations!I:I,E39) -> 0 | F40: =SUMIFS(Calculations!M:M,Calculations!H:H,Results!B40,Calculations!I:I,F39) -> 0 | G40: =SUMIFS(Calculations!M:M,Calculations!H:H,Results!B40,Calculations!I:I,G39) -> 0 | H40: =SUMIFS(Calculations!M:M,Calculations!H:H,Results!B40,Calculations!I:I,H39) -> 0 | I40: =SUMIFS(Calculations!M:M,Calculations!H:H,B40,Calculations!I:I,I39)+SUMIFS(Calculations!M:M,Calculations!H:H,B40,Calculations!I:I,Calculations!I5) -> 0 | J40: =SUMIFS(Calculations!M:M,Calculations!H:H,Results!B40,Calculations!I:I,J39) -> 0 | K40: =SUMIFS(Calculations!M:M,Calculations!H:H,Results!B40,Calculations!I:I,K39) -> 0 | L40: =C147 -> 0 | M40: =SUM(C40:L40) -> 0
B41: Tunnel | C41: =SUMIFS(Calculations!M:M,Calculations!H:H,B41,Calculations!I:I,Results!C39) -> 0 | D41: =SUMIFS(Calculations!M:M,Calculations!H:H,B41,Calculations!I:I,D39) -> 0 | E41: =SUMIFS(Calculations!M:M,Calculations!H:H,B41,Calculations!I:I,Results!E39) -> 0 | F41: =SUMIFS(Calculations!M:M,Calculations!H:H,B41,Calculations!I:I,F39) -> 0 | G41: =SUMIFS(Calculations!M:M,Calculations!H:H,B41,Calculations!I:I,G39) -> 0 | H41: =SUMIFS(Calculations!M:M,Calculations!H:H,B41,Calculations!I:I,H39) -> 0 | I41: =SUMIFS(Calculations!M:M,Calculations!H:H,B41,Calculations!I:I,I39)+SUMIFS(Calculations!M:M,Calculations!H:H,B41,Calculations!I:I,Calculations!I5) -> 0 | J41: =SUMIFS(Calculations!M:M,Calculations!H:H,B41,Calculations!I:I,J39) -> 0 | K41: =SUMIFS(Calculations!M:M,Calculations!H:H,B41,Calculations!I:I,K39) -> 0 | L41: 0 | M41: =SUM(C41:L41) -> 0
B42: Bridge | C42: =SUMIFS(Calculations!M:M,Calculations!H:H,B42,Calculations!I:I,Results!C39) -> 0 | D42: =SUMIFS(Calculations!M:M,Calculations!H:H,B42,Calculations!I:I,D39) -> 0 | E42: =SUMIFS(Calculations!M:M,Calculations!H:H,B42,Calculations!I:I,E39) -> 0 | F42: =SUMIFS(Calculations!M:M,Calculations!H:H,B42,Calculations!I:I,F39) -> 0 | G42: =SUMIFS(Calculations!M:M,Calculations!H:H,B42,Calculations!I:I,G39) -> 0 | H42: =SUMIFS(Calculations!M:M,Calculations!H:H,B42,Calculations!I:I,H39) -> 0 | I42: =SUMIFS(Calculations!M:M,Calculations!H:H,B42,Calculations!I:I,I39)+SUMIFS(Calculations!M:M,Calculations!H:H,B42,Calculations!I:I,Calculations!I5) -> 0 | J42: =SUMIFS(Calculations!M:M,Calculations!H:H,B42,Calculations!I:I,J39) -> 0 | K42: =SUMIFS(Calculations!M:M,Calculations!H:H,B42,Calculations!I:I,K39) -> 0 | L42: 0 | M42: 0
B43: Culvert | C43: =SUMIFS(Calculations!M:M,Calculations!H:H,B43,Calculations!I:I,C39) -> 0 | D43: =SUMIFS(Calculations!M:M,Calculations!H:H,B43,Calculations!I:I,D39) -> 0 | E43: =SUMIFS(Calculations!M:M,Calculations!H:H,B43,Calculations!I:I,E39) -> 0 | F43: =SUMIFS(Calculations!M:M,Calculations!H:H,B43,Calculations!I:I,F39) -> 0 | G43: =SUMIFS(Calculations!M:M,Calculations!H:H,B43,Calculations!I:I,G39) -> 0 | H43: =SUMIFS(Calculations!M:M,Calculations!H:H,B43,Calculations!I:I,H39) -> 0 | I43: =SUMIFS(Calculations!M:M,Calculations!H:H,B43,Calculations!I:I,I39)+SUMIFS(Calculations!M:M,Calculations!H:H,B43,Calculations!I:I,Calculations!I5) -> 0 | J43: =SUMIFS(Calculations!M:M,Calculations!H:H,B43,Calculations!I:I,J39) -> 0 | K43: =SUMIFS(Calculations!M:M,Calculations!H:H,B43,Calculations!I:I,K39) -> 0 | L43: 0 | M43: 0
B44: Construction phase | C44: =SUM(C40:C43) -> 0 | D44: =SUM(D40:D43) -> 0 | E44: =SUM(E40:E43) -> 0 | F44: 0 | G44: 0 | H44: 0 | I44: 0 | J44: 0 | K44: 0 | L44: 0 | M44: =SUM(C44:L44) -> 0
B45: Land use | C45: 0 | D45: 0 | E45: 0 | F45: 0 | G45: 0 | H45: 0 | I45: 0 | J45: 0 | K45: 0 | L45: =SUM(L40:L43) -> 0 | M45: =SUM(C45:L45) -> 0
B46: Construction phase med arealbridgek | C46: =SUM(C40:C43) -> 0 | D46: 0 | E46: 0 | F46: 0 | G46: 0 | H46: 0 | I46: 0 | J46: 0 | K46: 0 | L46: 0 | M46: =SUM(C46:L46) -> 0
B47: Operation and maintenance totalt | C47: =SUMIF(Calculations!$I$126:$I$311,Results!C39,Calculations!$N$126:$N$311) -> 0 | D47: =SUMIF(Calculations!$I$126:$I$311,Results!D39,Calculations!$N$126:$N$311) -> 0 | E47: =SUMIF(Calculations!$I$126:$I$311,Results!E39,Calculations!$N$126:$N$311) -> 0 | F47: =SUMIF(Calculations!$I$126:$I$311,Results!F39,Calculations!$N$126:$N$311) -> 0 | G47: =SUMIF(Calculations!$I$126:$I$311,Results!G39,Calculations!$N$126:$N$311) -> 0 | H47: =SUMIF(Calculations!$I$126:$I$311,Results!H39,Calculations!$N$126:$N$311) -> 0 | I47: =SUMIF(Calculations!$I$126:$I$311,I39,Calculations!$N$126:$N$311)+SUMIF(Calculations!$I$126:$I$311,Calculations!I128,Calculations!$N$126:$N$311) -> 0 | J47: =SUMIF(Calculations!$I$126:$I$311,Results!J39,Calculations!$N$126:$N$311) -> 0 | K47: =SUMIF(Calculations!$I$126:$I$311,Results!K39,Calculations!$N$126:$N$311) -> 0 | L47: =SUMIF(Calculations!$I$126:$I$311,Results!L39,Calculations!$N$126:$N$311) -> 0 | M47: 0
B48: Total | C48: =SUM(C46:C47) -> 0 | D48: 0 | E48: 0 | F48: 0 | G48: 0 | H48: 0 | I48: 0 | J48: 0 | K48: 0 | L48: 0 | M48: 0
B49: Percentage of construction phase | C49: =IFERROR(C44/M44,"Not relevant") -> Not relevant | D49: =IFERROR(D44/M44,"Not relevant") -> Not relevant | E49: =IFERROR(E44/M44,"Not relevant") -> Not relevant | F49: =IFERROR(F44/M44,"Not relevant") -> Not relevant | G49: =IFERROR(G44/M44,"Not relevant") -> Not relevant | H49: =IFERROR(H44/M44,"Not relevant") -> Not relevant | I49: =IFERROR(I44/M44,"Not relevant") -> Not relevant | J49: =IFERROR(J44/M44,"Not relevant") -> Not relevant | K49: =IFERROR(K44/M44,"Not relevant") -> Not relevant | L49: =IFERROR(L44/M44,"Not relevant") -> Not relevant | M49: =IFERROR(SUM(C49:L49),"Not relevant") -> 0
B50: Percentage of O&M phase | C50: =IFERROR(C47/M47,"Not relevant") -> Not relevant | D50: =IFERROR(D47/M47,"Not relevant") -> Not relevant | E50: =IFERROR(E47/M47,"Not relevant") -> Not relevant | F50: =IFERROR(F47/M47,"Not relevant") -> Not relevant | G50: =IFERROR(G47/M47,"Not relevant") -> Not relevant | H50: =IFERROR(H47/M47,"Not relevant") -> Not relevant | I50: =IFERROR(I47/M47,"Not relevant") -> Not relevant | J50: =IFERROR(J47/M47,"Not relevant") -> Not relevant | K50: =IFERROR(K47/M47,"Not relevant") -> Not relevant | L50: =IFERROR(L47/M47,"Not relevant") -> Not relevant | M50: =IFERROR(SUM(C50:L50),"Not relevant") -> 0
E71: NB! If some production factors are too small to appear in the percentage distribution, remove these from the figure by selecting 'select data'.
B97: Table 3: Direct emissions related to diesel and blasting (in tonnes CO2e)
B98: Construction phase | E98: Operation and maintenance phase
B99: Removal of vegetation | E99: Operation
B100: Removal of vegetation cover | D100: =(Calculations!M4)/'Emission factors'!D20*'Emission factors'!D19 -> 0 | E100: Roadside mowing | H100: =((Calculations!M133+Calculations!M174)*ROUNDDOWN('Project description and input'!C14/'Calculation factors'!D54,0))/'Emission factors'!D20*'Emission factors'!D19 -> 0
B101: Construction work related to blasting | D101: =(Calculations!M9+Calculations!M14)/'Emission factors'!D20*'Emission factors'!D19 -> 0 | E101: Ditch clearing and soil transport | H101: =((Calculations!M136+Calculations!M139+Calculations!M177+Calculations!M180)*ROUNDDOWN('Project description and input'!C14/'Calculation factors'!D55,0))/'Emission factors'!D20*'Emission factors'!D19 -> 0
B102: Sum removal of vegetation | D102: =SUM(D100:D101) -> 0 | E102: Sweeping | H102: =((Calculations!M142+Calculations!M183+Calculations!M215+Calculations!M247+Calculations!M279+Calculations!M299)*ROUNDDOWN('Project description and input'!C14/'Calculation factors'!D56,0))/'Emission factors'!D20*'Emission factors'!D19 -> 0
B103: Transport of materials | E103: Salting and salt transport | H103: =((Calculations!M145+Calculations!M149+Calculations!M186+Calculations!M190+Calculations!M218+Calculations!M222+Calculations!M250+Calculations!M254)*ROUNDDOWN('Project description and input'!C14/'Calculation factors'!D57,0))/'Emission factors'!D20*'Emission factors'!D19 -> 0
B104: Materials for open road | D104: =(Calculations!M37+Calculations!M48+Calculations!M55)/'Emission factors'!D20*'Emission factors'!D19 -> 0 | E104: Ploughing | H104: =((Calculations!M152+Calculations!M193+Calculations!M225+Calculations!M257)*ROUNDDOWN('Project description and input'!C14/'Calculation factors'!D58,0))/'Emission factors'!D20*'Emission factors'!D19 -> 0
B105: Materials for bridge | D105: =(Calculations!M68+Calculations!M82)/'Emission factors'!D20*'Emission factors'!D19 -> 0 | E105: Sum operation | H105: =SUM(H100:H104) -> 0
B106: Materials for tunnel | D106: =(Calculations!M96+Calculations!M110)/'Emission factors'!D20*'Emission factors'!D19 -> 0 | E106: Maintenance
B107: Materials for culvert | D107: =(Calculations!M118)/'Emission factors'!D20*'Emission factors'!D19 -> 0 | E107: Replacement and transport of lamp posts | H107: =((Calculations!M163+Calculations!M204+Calculations!M236+Calculations!M268)*ROUNDDOWN('Project description and input'!C14/'Calculation factors'!D53,0))/'Emission factors'!D20*'Emission factors'!D19 -> 0
B108: Sum transport of materials | D108: =SUM(D104:D107) -> 0 | E108: Replacement and transport of guard rail | H108: =((Calculations!M156+Calculations!M159+Calculations!M197+Calculations!M200+Calculations!M229+Calculations!M232+Calculations!M261+Calculations!M264+Calculations!M283+Calculations!M286+Calculations!M303+Calculations!M306)*ROUNDDOWN('Project description and input'!C14/'Calculation factors'!D52,0))/'Emission factors'!D20*'Emission factors'!D19 -> 0
B109: Transport of masses | E109: Sum maintenance | H109: =SUM(H107:H108) -> 0
B110: Soil masses used in project | D110: =(Calculations!M17)/'Emission factors'!D20*'Emission factors'!D19 -> 0 | E110: Re-asphalting
B111: Soil masses to landfill | D111: =(Calculations!M20)/'Emission factors'!D20*'Emission factors'!D19 -> 0 | E111: Replacement and transport of asfalt | H111: =((Calculations!M127+Calculations!M130+Calculations!M168+Calculations!M171+Calculations!M209+Calculations!M212+Calculations!M241+Calculations!M244+Calculations!M273+Calculations!M276+Calculations!M293+Calculations!M296)*ROUNDDOWN('Project description and input'!C14/'Calculation factors'!D51,0))/'Emission factors'!D20*'Emission factors'!D19 -> 0
B112: Rock masses used in project | D112: =(Calculations!M23)/'Emission factors'!D20*'Emission factors'!D19 -> 0 | E112: Sum re-asphalting | H112: =H111 -> 0
B113: Rock masses to landfill | D113: =(Calculations!M26)/'Emission factors'!D20*'Emission factors'!D19 -> 0 | E113: Sum operation- and maintenance phase | H113: =H105+H109+H112 -> 0
B114: Rock masses used in project via crushing plant | D114: =(Calculations!M29)/'Emission factors'!D20*'Emission factors'!D19 -> 0
B115: Sum transport of masses | D115: =SUM(D110:D114) -> 0
B116: Construction work
B117: Construction work open road | D117: =(Calculations!M40+Calculations!M51+Calculations!M58)/'Emission factors'!D20*'Emission factors'!D19 -> 0
B118: Construction work bridge | D118: =(Calculations!M71+Calculations!M85)/'Emission factors'!D20*'Emission factors'!D19 -> 0
B119: Construction work tunnel | D119: =(Calculations!M99+Calculations!M113)/'Emission factors'!D20*'Emission factors'!D19 -> 0
B120: Construction work culvert | D120: =(Calculations!M121)/'Emission factors'!D20*'Emission factors'!D19 -> 0
B121: Sum construction work | D121: =SUM(D117:D120) -> 0
B122: Blasting
B123: Open-air blasting | D123: =Calculations!M8 -> 0
B124: Blasting tunnel | D124: =Calculations!M13 -> 0
B125: Sum blasting | D125: =SUM(D123:D124) -> 0
B126: Sum construction phase | D126: =D102+D108+D115+D121+D125 -> 0 | E126: Direct emissions from construction, operation og maintenance | H126: =D126+H113 -> 0
B131: Table 4: Share of direct emissions in total emissions
B132: Share of construction phase | D132: =IFERROR(D126/M44,"Not relevant") -> Not relevant
B133: Share of operation and maintenance phase | D133: =IFERROR(H113/M47,"Not relevant") -> Not relevant
B134: Share direct emissions | D134: =IFERROR(H126/M48,"Not relevant") -> Not relevant
B135: Share indirect emissions | D135: =IFERROR(1-D134,"Not relevant") -> Not relevant
B139: Table 6: Emissions from land use change
B140: Type of land | C140: tonnes CO2e
B141: Forest - low site quality | C141: =(('Project description and input'!C21*'Project description and input'!C24)*'Emission factors'!D26)/1000 -> 0
B142: Forest - medium site quality | C142: =(('Project description and input'!C21*'Project description and input'!C25)*'Emission factors'!D27)/1000 -> 0
B143: Forest - high site quality | C143: =(('Project description and input'!C21*'Project description and input'!C26)*'Emission factors'!D28)/1000 -> 0
B144: Marsh | C144: =(('Project description and input'!C21*'Project description and input'!C27)*'Emission factors'!D29)/1000 -> 0
B145: Agricultural land | C145: =(('Project description and input'!C21*'Project description and input'!C28)*'Emission factors'!D30)/1000 -> 0
B146: Built land | C146: -
B147: Sum | C147: =SUM(C141:C146) -> 0
B148: Built land is set to 0
H153: Table 5: Direct emissions in non-ETS-sectors
H154: Construction phase | K154: =D102+D108+D115+D121 -> 0
H155: Operation and maintenance phase | K155: =H105+H109+H112 -> 0
H156: Sum construction and operation and maintenance phase | K156: =SUM(K154:K155) -> 0
H157: In this context this is the sum of direct emissions minus direct emissions from blasting.

Sheet Sensitivity analysis
B3: Sensitivity analysis
F4: Percentage change | H4: 0.1
B6: Original emissions | F6: Increase | J6: Reduction
B7: Production factors | D7: Original emissions [tonne CO2e] | F7: Emission after increase [tonne CO2e] | G7: New total [tonne CO2e] | H7: Increase in total [%] | J7: Emission after reduction [tonne CO2e] | K7: New total [tonne CO2e] | L7: Reduction in total [%]
B8: Emissions construction phase
B9: Concrete | D9: =Results!C44 -> 0 | F9: =D9*(1+H4) -> 0 | G9: =F9+SUM(D9:D18)-D9 -> 0 | H9: =(G9/Results!M44)-1 ->  | J9: =D9*(1-H4) -> 0 | K9: =J9+SUM(D9:D18)-D9 -> 0 | L9: =(K9/Results!M44)-1 -> 
B10: Steel | D10: =Results!D44 -> 0 | F10: =D10*(1+H4) -> 0 | G10: =F10+SUM(D9:D18)-D10 -> 0 | H10: =(G10/Results!M44)-1 ->  | J10: =D10*(1-H4) -> 0 | K10: =J10+SUM(D9:D18)-D10 -> 0 | L10: =(K10/Results!M44)-1 -> 
B11: Reinforcement steel | D11: =Results!E44 -> 0 | F11: =D11*(1+H4) -> 0 | G11: =F11+SUM(D9:D18)-D11 -> 0 | H11: =(G11/Results!M44)-1 ->  | J11: =D11*(1-H4) -> 0 | K11: =J11+SUM(D9:D18)-D11 -> 0 | L11: =(K11/Results!M44)-1 -> 
B12: Asphalt | D12: =Results!F44 -> 0 | F12: =D12*(1+H4) -> 0 | G12: =F12+SUM(D9:D18)-D12 -> 0 | H12: =(G12/Results!M44)-1 ->  | J12: =D12*(1-H4) -> 0 | K12: =J12+SUM(D9:D18)-D12 -> 0 | L12: =(K12/Results!M44)-1 -> 
B13: Frost protection tunnel | D13: =Results!G44 -> 0 | F13: =D13*(1+H4) -> 0 | G13: =F13+SUM(D9:D18)-D13 -> 0 | H13: =(G13/Results!M44)-1 ->  | J13: =D13*(1-H4) -> 0 | K13: =J13+SUM(D9:D18)-D13 -> 0 | L13: =(K13/Results!M44)-1 -> 
B14: Blasting | D14: =Results!H44 -> 0 | F14: =D14*(1+H4) -> 0 | G14: =F14+SUM(D9:D18)-D14 -> 0 | H14: =(G14/Results!M44)-1 ->  | J14: =D14*(1-H4) -> 0 | K14: =J14+SUM(D9:D18)-D14 -> 0 | L14: =(K14/Results!M44)-1 -> 
B15: Diesel | D15: =Results!I44 -> 0 | F15: =D15*(1+H4) -> 0 | G15: =F15+SUM(D9:D18)-D15 -> 0 | H15: =(G15/Results!M44)-1 ->  | J15: =D15*(1-H4) -> 0 | K15: =J15+SUM(D9:D18)-D15 -> 0 | L15: =(K15/Results!M44)-1 -> 
B16: Salt | D16: =Results!J44 -> 0 | F16: =D16*(1+H4) -> 0 | G16: =F16+SUM(D9:D18)-D16 -> 0 | H16: =(G16/Results!M44)-1 ->  | J16: =D16*(1-H4) -> 0 | K16: =J16+SUM(D9:D18)-D16 -> 0 | L16: =(K16/Results!M44)-1 -> 
B17: Electricity | D17: =Results!K44 -> 0 | F17: =D17*(1+H4) -> 0 | G17: =F17+SUM(D9:D18)-D17 -> 0 | H17: =(G17/Results!M44)-1 ->  | J17: =D17*(1-H4) -> 0 | K17: =J17+SUM(D9:D18)-D17 -> 0 | L17: =(K17/Results!M44)-1 -> 
B18: Land use change | D18: =Results!L44 -> 0 | F18: =D18*(1+H4) -> 0 | G18: =F18+SUM(D9:D18)-D18 -> 0 | H18: =(G18/Results!M44)-1 ->  | J18: =D18*(1-H4) -> 0 | K18: =J18+SUM(D9:D18)-D18 -> 0 | L18: =(K18/Results!M44)-1 -> 
B19: Emissions operation phase
B20: Concrete | D20: =Results!C47 -> 0 | F20: =D20*(1+H4) -> 0 | G20: =F20+SUM(D20:D28)-D20 -> 0 | H20: =(G20/Results!M47)-1 ->  | J20: =D20*(1-H4) -> 0 | K20: =J20+SUM(D20:D28)-D20 -> 0 | L20: =(K20/Results!M47)-1 -> 
B21: Steel | D21: =Results!D47 -> 0 | F21: =D21*(1+H4) -> 0 | G21: =F21+SUM(D20:D28)-D21 -> 0 | H21: =(G21/Results!M47)-1 ->  | J21: =D21*(1-H4) -> 0 | K21: =J21+SUM(D20:D28)-D21 -> 0 | L21: =(K21/Results!M47)-1 -> 
B22: Reinforcement steel | D22: =Results!E47 -> 0 | F22: =D22*(1+H4) -> 0 | G22: =F22+SUM(D20:D28)-D22 -> 0 | H22: =(G22/Results!M47)-1 ->  | J22: =D22*(1-H4) -> 0 | K22: =J22+SUM(D20:D28)-D22 -> 0 | L22: =(K22/Results!M47)-1 -> 
B23: Asphalt | D23: =Results!F47 -> 0 | F23: =D23*(1+H4) -> 0 | G23: =F23+SUM(D20:D28)-D23 -> 0 | H23: =(G23/Results!M47)-1 ->  | J23: =D23*(1-H4) -> 0 | K23: =J23+SUM(D20:D28)-D23 -> 0 | L23: =(K23/Results!M47)-1 -> 
B24: Frost protection tunnel | D24: =Results!G47 -> 0 | F24: =D24*(1+H4) -> 0 | G24: =F24+SUM(D20:D28)-D24 -> 0 | H24: =(G24/Results!M47)-1 ->  | J24: =D24*(1-H4) -> 0 | K24: =J24+SUM(D20:D28)-D24 -> 0 | L24: =(K24/Results!M47)-1 -> 
B25: Blasting | D25: =Results!H47 -> 0 | F25: =D25*(1+H4) -> 0 | G25: =F25+SUM(D20:D28)-D25 -> 0 | H25: =(G25/Results!M47)-1 ->  | J25: =D25*(1-H4) -> 0 | K25: =J25+SUM(D20:D28)-D25 -> 0 | L25: =(K25/Results!M47)-1 -> 
B26: Diesel | D26: =Results!I47 -> 0 | F26: =D26*(1+H4) -> 0 | G26: =F26+SUM(D20:D28)-D26 -> 0 | H26: =(G26/Results!M47)-1 ->  | J26: =D26*(1-H4) -> 0 | K26: =J26+SUM(D20:D28)-D26 -> 0 | L26: =(K26/Results!M47)-1 -> 
B27: Salt | D27: =Results!J47 -> 0 | F27: =D27*(1+H4) -> 0 | G27: =F27+SUM(D20:D28)-D27 -> 0 | H27: =(G27/Results!M47)-1 ->  | J27: =D27*(1-H4) -> 0 | K27: =J27+SUM(D20:D28)-D27 -> 0 | L27: =(K27/Results!M47)-1 -> 
B28: Electricity | D28: =Results!K47 -> 0 | F28: =D28*(1+H4) -> 0 | G28: =F28+SUM(D20:D28)-D28 -> 0 | H28: =(G28/Results!M47)-1 ->  | J28: =D28*(1-H4) -> 0 | K28: =J28+SUM(D20:D28)-D28 -> 0 | L28: =(K28/Results!M47)-1 -> 

Sheet Calculations
B1: Defined unit | C1: Summed from input | D1: Physical factor input | E1: Summed output | F1: Physical unit output | G1: Life cycle | H1: Element | I1: Production factor type | J1: Tag emission factor | K1: Emission factor | L1: Unit | M1: Tonnes CO2e
A2: Construction phase
B4: Removal of vegetation (m2) | C4: =SUMIF('Project description and input'!$M:$M,B4,'Project description and input'!$L:$L) -> 0 | D4: Construction work diesel | E4: =C4*'Vegetation and land use change'!F11 -> 0 | F4: litre diesel | G4: Year 0 | H4: Open road | I4: Diesel | J4: ='Emission factors'!B20 -> Fossil diesel (WTW) | K4: =SUMIF('Emission factors'!B:B,Calculations!J4,'Emission factors'!D:D) -> 3.24 | L4: =VLOOKUP(J4,'Emission factors'!B:C,2,FALSE) -> kg CO2e/litre | M4: =(E4*K4)/1000 -> 0
D5: Construction work biodiesel | E5: =C4*'Vegetation and land use change'!G11 -> 0 | F5: litre biodiesel | G5: Year 0 | H5: Open road | I5: Biodiesel | J5: ='Emission factors'!B18 -> Biodiesel (WTT) | K5: =SUMIF('Emission factors'!B:B,Calculations!J5,'Emission factors'!D:D) -> 1.92 | L5: =VLOOKUP(J5,'Emission factors'!B:C,2,FALSE) -> kg CO2e/litre | M5: =(E5*K5)/1000 -> 0
D6: Construction work electric/hydrogen | E6: =C4*'Vegetation and land use change'!H11 -> 0 | F6: kWh | G6: Year 0 | H6: Open road | I6: Electricity | J6: ='Emission factors'!B23 -> Electricity construction phase, Norwegian mix | K6: =SUMIF('Emission factors'!B:B,Calculations!J6,'Emission factors'!D:D) -> 0.02638 | L6: =VLOOKUP(J6,'Emission factors'!B:C,2,FALSE) -> kg CO2e/kWh | M6: =(E6*K6)/1000 -> 0
B7: Open-air blasting (m3) | C7: =SUMIF('Project description and input'!$M:$M,B7,'Project description and input'!$L:$L) -> 0 | D7: Explosives (indirect emissions) | E7: =C7*Blasting!D6 -> 0 | F7: kg tovex | G7: Year 0 | H7: Open road | I7: Blasting | J7: ='Emission factors'!B21 -> Explosives (CTG) | K7: =SUMIF('Emission factors'!B:B,Calculations!J7,'Emission factors'!D:D) -> 2.678 | L7: =VLOOKUP(J7,'Emission factors'!B:C,2,FALSE) -> kg CO2e/kg | M7: 0
D8: Explosives (direct emissions) | E8: =C7*Blasting!D6 -> 0 | F8: kg tovex | G8: Year 0 | H8: Open road | I8: Blasting | J8: ='Emission factors'!B22 -> Explosives detonation | K8: =SUMIF('Emission factors'!B:B,Calculations!J8,'Emission factors'!D:D) -> 0.152 | L8: =VLOOKUP(J8,'Emission factors'!B:C,2,FALSE) -> kg CO2e/kg | M8: 0
D9: Construction work diesel | E9: =C7*Blasting!D15 -> 0 | F9: litre diesel | G9: Year 0 | H9: Open road | I9: Diesel | J9: ='Emission factors'!B20 -> Fossil diesel (WTW) | K9: =SUMIF('Emission factors'!B:B,Calculations!J9,'Emission factors'!D:D) -> 3.24 | L9: =VLOOKUP(J9,'Emission factors'!B:C,2,FALSE) -> kg CO2e/litre | M9: 0
D10: Construction work biodiesel | E10: =C7*Blasting!E15 -> 0 | F10: litre biodiesel | G10: Year 0 | H10: Open road | I10: Biodiesel | J10: ='Emission factors'!B18 -> Biodiesel (WTT) | K10: =SUMIF('Emission factors'!B:B,Calculations!J10,'Emission factors'!D:D) -> 1.92 | L10: =VLOOKUP(J10,'Emission factors'!B:C,2,FALSE) -> kg CO2e/litre | M10: 0
D11: Construction work electric/hydrogen | E11: =C7*Blasting!F15 -> 0 | F11: kWh | G11: Year 0 | H11: Open road | I11: Electricity | J11: ='Emission factors'!B23 -> Electricity construction phase, Norwegian mix | K11: =SUMIF('Emission factors'!B:B,Calculations!J11,'Emission factors'!D:D) -> 0.02638 | L11: =VLOOKUP(J11,'Emission factors'!B:C,2,FALSE) -> kg CO2e/kWh | M11: 0
B12: Tunnel blasting (m3) | C12: =SUMIF('Project description and input'!$M:$M,B12,'Project description and input'!$L:$L) -> 0 | D12: Explosives (indirect emissions) | E12: =C12*Blasting!D5 -> 0 | F12: kg tovex | G12: Year 0 | H12: Tunnel | I12: Blasting | J12: ='Emission factors'!B21 -> Explosives (CTG) | K12: =SUMIF('Emission factors'!B:B,Calculations!J12,'Emission factors'!D:D) -> 2.678 | L12: =VLOOKUP(J12,'Emission factors'!B:C,2,FALSE) -> kg CO2e/kg | M12: 0
D13: Explosives (direct emissions) | E13: =C12*Blasting!D5 -> 0 | F13: kg tovex | G13: Year 0 | H13: Tunnel | I13: Blasting | J13: ='Emission factors'!B22 -> Explosives detonation | K13: =SUMIF('Emission factors'!B:B,Calculations!J13,'Emission factors'!D:D) -> 0.152 | L13: =VLOOKUP(J13,'Emission factors'!B:C,2,FALSE) -> kg CO2e/kg | M13: 0
D14: Construction work diesel | E14: =C12*Blasting!D15 -> 0 | F14: litre diesel | G14: Year 0 | H14: Tunnel | I14: Diesel | J14: ='Emission factors'!B20 -> Fossil diesel (WTW) | K14: =SUMIF('Emission factors'!B:B,Calculations!J14,'Emission factors'!D:D) -> 3.24 | L14: =VLOOKUP(J14,'Emission factors'!B:C,2,FALSE) -> kg CO2e/litre | M14: 0
D15: Construction work biodiesel | E15: =C12*Blasting!E15 -> 0 | F15: litre biodiesel | G15: Year 0 | H15: Tunnel | I15: Biodiesel | J15: ='Emission factors'!B18 -> Biodiesel (WTT) | K15: =SUMIF('Emission factors'!B:B,Calculations!J15,'Emission factors'!D:D) -> 1.92 | L15: =VLOOKUP(J15,'Emission factors'!B:C,2,FALSE) -> kg CO2e/litre | M15: 0
D16: Construction work electric/hydrogen | E16: =C12*Blasting!F15 -> 0 | F16: kWh | G16: Year 0 | H16: Tunnel | I16: Electricity | J16: ='Emission factors'!B23 -> Electricity construction phase, Norwegian mix | K16: =SUMIF('Emission factors'!B:B,Calculations!J16,'Emission factors'!D:D) -> 0.02638 | L16: =VLOOKUP(J16,'Emission factors'!B:C,2,FALSE) -> kg CO2e/kWh | M16: 0
B17: Soil masses used in project (m3) | C17: =SUMIF('Project description and input'!$M:$M,B17,'Project description and input'!$L:$L) -> 0 | D17: Transport diesel | E17: =C17*'Vegetation and land use change'!F5/'Calculation factors'!D90 -> 0 | F17: litre diesel | G17: Year 0 | H17: Open road | I17: Diesel | J17: ='Emission factors'!B20 -> Fossil diesel (WTW) | K17: =SUMIF('Emission factors'!B:B,Calculations!J17,'Emission factors'!D:D) -> 3.24 | L17: =VLOOKUP(J17,'Emission factors'!B:C,2,FALSE) -> kg CO2e/litre | M17: 0
D18: Transport biodiesel | E18: =C17*'Vegetation and land use change'!G5/'Calculation factors'!D90 -> 0 | F18: litre biodiesel | G18: Year 0 | H18: Open road | I18: Biodiesel | J18: ='Emission factors'!B18 -> Biodiesel (WTT) | K18: =SUMIF('Emission factors'!B:B,Calculations!J18,'Emission factors'!D:D) -> 1.92 | L18: =VLOOKUP(J18,'Emission factors'!B:C,2,FALSE) -> kg CO2e/litre | M18: 0
D19: Transport electrical/hydrogen | E19: =C17*'Vegetation and land use change'!H5/'Calculation factors'!D90 -> 0 | F19: kWh | G19: Year 0 | H19: Open road | I19: Electricity | J19: ='Emission factors'!B23 -> Electricity construction phase, Norwegian mix | K19: =SUMIF('Emission factors'!B:B,Calculations!J19,'Emission factors'!D:D) -> 0.02638 | L19: =VLOOKUP(J19,'Emission factors'!B:C,2,FALSE) -> kg CO2e/kWh | M19: 0
B20: Soil masses to landfill (m3) | C20: =SUMIF('Project description and input'!$M:$M,B20,'Project description and input'!$L:$L) -> 0 | D20: Transport diesel | E20: =C20*'Vegetation and land use change'!F6/'Calculation factors'!D90 -> 0 | F20: litre diesel | G20: Year 0 | H20: Open road | I20: Diesel | J20: ='Emission factors'!B20 -> Fossil diesel (WTW) | K20: =SUMIF('Emission factors'!B:B,Calculations!J20,'Emission factors'!D:D) -> 3.24 | L20: =VLOOKUP(J20,'Emission factors'!B:C,2,FALSE) -> kg CO2e/litre | M20: 0
D21: Transport biodiesel | E21: =C20*'Vegetation and land use change'!G6/'Calculation factors'!D90 -> 0 | F21: litre biodiesel | G21: Year 0 | H21: Open road | I21: Biodiesel | J21: ='Emission factors'!B18 -> Biodiesel (WTT) | K21: =SUMIF('Emission factors'!B:B,Calculations!J21,'Emission factors'!D:D) -> 1.92 | L21: =VLOOKUP(J21,'Emission factors'!B:C,2,FALSE) -> kg CO2e/litre | M21: 0
D22: Transport electrical/hydrogen | E22: =C20*'Vegetation and land use change'!H6/'Calculation factors'!D90 -> 0 | F22: kWh | G22: Year 0 | H22: Open road | I22: Electricity | J22: ='Emission factors'!B23 -> Electricity construction phase, Norwegian mix | K22: =SUMIF('Emission factors'!B:B,Calculations!J22,'Emission factors'!D:D) -> 0.02638 | L22: =VLOOKUP(J22,'Emission factors'!B:C,2,FALSE) -> kg CO2e/kWh | M22: 0
B23: Rock masses used in project (m3) | C23: =SUMIF('Project description and input'!$M:$M,B23,'Project description and input'!$L:$L) -> 0 | D23: Transport diesel | E23: =C23*Blasting!F7 -> 0 | F23: litre diesel | G23: Year 0 | H23: Open road | I23: Diesel | J23: ='Emission factors'!B20 -> Fossil diesel (WTW) | K23: =SUMIF('Emission factors'!B:B,Calculations!J23,'Emission factors'!D:D) -> 3.24 | L23: =VLOOKUP(J23,'Emission factors'!B:C,2,FALSE) -> kg CO2e/litre | M23: 0
D24: Transport biodiesel | E24: =C23*Blasting!G7 -> 0 | F24: litre biodiesel | G24: Year 0 | H24: Open road | I24: Biodiesel | J24: ='Emission factors'!B18 -> Biodiesel (WTT) | K24: =SUMIF('Emission factors'!B:B,Calculations!J24,'Emission factors'!D:D) -> 1.92 | L24: =VLOOKUP(J24,'Emission factors'!B:C,2,FALSE) -> kg CO2e/litre | M24: 0
D25: Transport electrical/hydrogen | E25: =C23*Blasting!H7 -> 0 | F25: kWh | G25: Year 0 | H25: Open road | I25: Electricity | J25: ='Emission factors'!B23 -> Electricity construction phase, Norwegian mix | K25: =SUMIF('Emission factors'!B:B,Calculations!J25,'Emission factors'!D:D) -> 0.02638 | L25: =VLOOKUP(J25,'Emission factors'!B:C,2,FALSE) -> kg CO2e/kWh | M25: 0
B26: Rock masses to landfill (m3) | C26: =SUMIF('Project description and input'!$M:$M,B26,'Project description and input'!$L:$L) -> 0 | D26: Transport diesel | E26: =C26*Blasting!F8 -> 0 | F26: litre diesel | G26: Year 0 | H26: Open road | I26: Diesel | J26: ='Emission factors'!B20 -> Fossil diesel (WTW) | K26: =SUMIF('Emission factors'!B:B,Calculations!J26,'Emission factors'!D:D) -> 3.24 | L26: =VLOOKUP(J26,'Emission factors'!B:C,2,FALSE) -> kg CO2e/litre | M26: 0
D27: Transport biodiesel | E27: =C26*Blasting!G8 -> 0 | F27: litre biodiesel | G27: Year 0 | H27: Open road | I27: Biodiesel | J27: ='Emission factors'!B18 -> Biodiesel (WTT) | K27: =SUMIF('Emission factors'!B:B,Calculations!J27,'Emission factors'!D:D) -> 1.92 | L27: =VLOOKUP(J27,'Emission factors'!B:C,2,FALSE) -> kg CO2e/litre | M27: 0
D28: Transport electrical/hydrogen | E28: =C26*Blasting!H8 -> 0 | F28: kWh | G28: Year 0 | H28: Open road | I28: Electricity | J28: ='Emission factors'!B23 -> Electricity construction phase, Norwegian mix | K28: =SUMIF('Emission factors'!B:B,Calculations!J28,'Emission factors'!D:D) -> 0.02638 | L28: =VLOOKUP(J28,'Emission factors'!B:C,2,FALSE) -> kg CO2e/kWh | M28: 0
B29: Rock masses used in project via crushing plant (m3) | C29: =SUMIF('Project description and input'!$M:$M,B29,'Project description and input'!$L:$L) -> 0 | D29: Transport diesel | E29: =C29*Blasting!F9 -> 0 | F29: litre diesel | G29: Year 0 | H29: Open road | I29: Diesel | J29: ='Emission factors'!B20 -> Fossil diesel (WTW) | K29: =SUMIF('Emission factors'!B:B,Calculations!J29,'Emission factors'!D:D) -> 3.24 | L29: =VLOOKUP(J29,'Emission factors'!B:C,2,FALSE) -> kg CO2e/litre | M29: 0
D30: Transport biodiesel | E30: =C29*Blasting!G9 -> 0 | F30: litre biodiesel | G30: Year 0 | H30: Open road | I30: Biodiesel | J30: ='Emission factors'!B18 -> Biodiesel (WTT) | K30: =SUMIF('Emission factors'!B:B,Calculations!J30,'Emission factors'!D:D) -> 1.92 | L30: =VLOOKUP(J30,'Emission factors'!B:C,2,FALSE) -> kg CO2e/litre | M30: 0
D31: Transport electrical/hydrogen | E31: =C29*Blasting!H9 -> 0 | F31: kWh | G31: Year 0 | H31: Open road | I31: Electricity | J31: ='Emission factors'!B23 -> Electricity construction phase, Norwegian mix | K31: =SUMIF('Emission factors'!B:B,Calculations!J31,'Emission factors'!D:D) -> 0.02638 | L31: =VLOOKUP(J31,'Emission factors'!B:C,2,FALSE) -> kg CO2e/kWh | M31: 0
B32: Main road (m) | C32: =SUMIF('Project description and input'!$M:$M,B32,'Project description and input'!$L:$L) -> 0 | D32: Wearing course stone mastic asphalt (Ska) | E32: =C32*'Main road'!D5*'Project description and input'!C9 -> 0 | F32: kg stone mastic asphalt | G32: Year 0 | H32: Open road | I32: Asphalt | J32: ='Emission factors'!B7 -> Stone mastic asphalt (Ska) | K32: =SUMIF('Emission factors'!B:B,Calculations!J32,'Emission factors'!D:D) -> 0.0657 | L32: =VLOOKUP(J32,'Emission factors'!B:C,2,FALSE) -> kg CO2e/kg | M32: =(E32*K32)/1000 -> 0
D33: Binder course stone mastic asphalt (Ska) | E33: =C32*'Main road'!D6*'Project description and input'!C9 -> 0 | F33: kg stone mastic asphalt | G33: Year 0 | H33: Open road | I33: Asphalt | J33: ='Emission factors'!B7 -> Stone mastic asphalt (Ska) | K33: =SUMIF('Emission factors'!B:B,Calculations!J33,'Emission factors'!D:D) -> 0.0657 | L33: =VLOOKUP(J33,'Emission factors'!B:C,2,FALSE) -> kg CO2e/kg | M33: 0
D34: Upper base course asphalt concrete, base (Ag) | E34: =C32*'Main road'!D7*'Project description and input'!C9 -> 0 | F34: kg asphalt concrete, base | G34: Year 0 | H34: Open road | I34: Asphalt | J34: ='Emission factors'!B8 -> Asphalt concrete, base (Ag) | K34: =SUMIF('Emission factors'!B:B,Calculations!J34,'Emission factors'!D:D) -> 0.0488 | L34: =VLOOKUP(J34,'Emission factors'!B:C,2,FALSE) -> kg CO2e/kg | M34: 0
D35: Lamp posts | E35: =C32*'Additions road'!D5*'Calculation factors'!D82 -> 0 | F35: kg steel | G35: Year 0 | H35: Open road | I35: Steel | J35: ='Emission factors'!B14 -> Steel | K35: =SUMIF('Emission factors'!B:B,Calculations!J35,'Emission factors'!D:D) -> 2.1235 | L35: =VLOOKUP(J35,'Emission factors'!B:C,2,FALSE) -> kg CO2e/kg | M35: 0
D36: Guard rail/safety fence | E36: =C32*'Additions road'!D7*'Calculation factors'!D84 -> 0 | F36: kg steel | G36: Year 0 | H36: Open road | I36: Steel | J36: ='Emission factors'!B14 -> Steel | K36: =SUMIF('Emission factors'!B:B,Calculations!J36,'Emission factors'!D:D) -> 2.1235 | L36: =VLOOKUP(J36,'Emission factors'!B:C,2,FALSE) -> kg CO2e/kg | M36: 0
D37: Transport diesel | E37: =C32*(((SUM('Main road'!E5:E7)*'Project description and input'!C9)+(('Additions road'!E5*'Calculation factors'!D82)+('Additions road'!E7*'Calculation factors'!D84)))) -> 0 | F37: litre diesel | G37: Year 0 | H37: Open road | I37: Diesel | J37: ='Emission factors'!B20 -> Fossil diesel (WTW) | K37: =SUMIF('Emission factors'!B:B,Calculations!J37,'Emission factors'!D:D) -> 3.24 | L37: =VLOOKUP(J37,'Emission factors'!B:C,2,FALSE) -> kg CO2e/litre | M37: 0
D38: Transport biodiesel | E38: =C32*(((SUM('Main road'!F5:F7)*'Project description and input'!C9)+(('Additions road'!F5*'Calculation factors'!D82)+('Additions road'!F7*'Calculation factors'!D84)))) -> 0 | F38: litre biodiesel | G38: Year 0 | H38: Open road | I38: Biodiesel | J38: ='Emission factors'!B18 -> Biodiesel (WTT) | K38: =SUMIF('Emission factors'!B:B,Calculations!J38,'Emission factors'!D:D) -> 1.92 | L38: =VLOOKUP(J38,'Emission factors'!B:C,2,FALSE) -> kg CO2e/litre | M38: 0
D39: Transport electrical/hydrogen | E39: =C32*(((SUM('Main road'!G5:G7)*'Project description and input'!C9)+(('Additions road'!G5*'Calculation factors'!D82)+('Additions road'!G7*'Calculation factors'!D84)))) -> 0 | F39: kWh | G39: Year 0 | H39: Open road | I39: Electricity | J39: ='Emission factors'!B23 -> Electricity construction phase, Norwegian mix | K39: =SUMIF('Emission factors'!B:B,Calculations!J39,'Emission factors'!D:D) -> 0.02638 | L39: =VLOOKUP(J39,'Emission factors'!B:C,2,FALSE) -> kg CO2e/kWh | M39: 0
D40: Construction work diesel | E40: =C32*(((SUM('Main road'!E15:E28)*'Project description and input'!C9)+(('Additions road'!D12*'Calculation factors'!D84)+('Additions road'!D13*'Calculation factors'!D88)+('Additions road'!D14*'Calculation factors'!D86)))) -> 0 | F40: litre diesel | G40: Year 0 | H40: Open road | I40: Diesel | J40: ='Emission factors'!B20 -> Fossil diesel (WTW) | K40: =SUMIF('Emission factors'!B:B,Calculations!J40,'Emission factors'!D:D) -> 3.24 | L40: =VLOOKUP(J40,'Emission factors'!B:C,2,FALSE) -> kg CO2e/litre | M40: 0
D41: Construction work biodiesel | E41: =C32*(((SUM('Main road'!F15:F28)*'Project description and input'!C9)+(('Additions road'!E12*'Calculation factors'!D84)+('Additions road'!E13*'Calculation factors'!D88)+('Additions road'!E14*'Calculation factors'!D86)))) -> 0 | F41: litre biodiesel | G41: Year 0 | H41: Open road | I41: Biodiesel | J41: ='Emission factors'!B18 -> Biodiesel (WTT) | K41: =SUMIF('Emission factors'!B:B,Calculations!J41,'Emission factors'!D:D) -> 1.92 | L41: =VLOOKUP(J41,'Emission factors'!B:C,2,FALSE) -> kg CO2e/litre | M41: 0
D42: Construction work electric/hydrogen | E42: =C32*(((SUM('Main road'!G15:G28)*'Project description and input'!C9)+(('Additions road'!F12*'Calculation factors'!D84)+('Additions road'!F13*'Calculation factors'!D88)+('Additions road'!F14*'Calculation factors'!D86)))) -> 0 | F42: kWh | G42: Year 0 | H42: Open road | I42: Electricity | J42: ='Emission factors'!B23 -> Electricity construction phase, Norwegian mix | K42: =SUMIF('Emission factors'!B:B,Calculations!J42,'Emission factors'!D:D) -> 0.02638 | L42: =VLOOKUP(J42,'Emission factors'!B:C,2,FALSE) -> kg CO2e/kWh | M42: 0
B43: Secondary road (m) | C43: =SUMIF('Project description and input'!$M:$M,B43,'Project description and input'!$L:$L) -> 0 | D43: Wearing course asphalt concrete, surface (Agb) | E43: =C43*'Secondary road'!D5*'Project description and input'!C10 -> 0 | F43: kg asphalt concrete, surface | G43: Year 0 | H43: Open road | I43: Asphalt | J43: ='Emission factors'!B6 -> Asphalt concrete, surface (Agb) | K43: =SUMIF('Emission factors'!B:B,Calculations!J43,'Emission factors'!D:D) -> 0.0512 | L43: =VLOOKUP(J43,'Emission factors'!B:C,2,FALSE) -> kg CO2e/kg | M43: 0
D44: Binder course asphalt concrete, surface (Agb) | E44: =C43*'Secondary road'!D6*'Project description and input'!C10 -> 0 | F44: kg asphalt concrete, surface | G44: Year 0 | H44: Open road | I44: Asphalt | J44: ='Emission factors'!B6 -> Asphalt concrete, surface (Agb) | K44: =SUMIF('Emission factors'!B:B,Calculations!J44,'Emission factors'!D:D) -> 0.0512 | L44: =VLOOKUP(J44,'Emission factors'!B:C,2,FALSE) -> kg CO2e/kg | M44: 0
D45: Upper base course asphalt concrete, base (Ag) | E45: =C43*'Secondary road'!D7*'Project description and input'!C10 -> 0 | F45: kg asphalt concrete, base | G45: Year 0 | H45: Open road | I45: Asphalt | J45: ='Emission factors'!B8 -> Asphalt concrete, base (Ag) | K45: =SUMIF('Emission factors'!B:B,Calculations!J45,'Emission factors'!D:D) -> 0.0488 | L45: =VLOOKUP(J45,'Emission factors'!B:C,2,FALSE) -> kg CO2e/kg | M45: 0
D46: Lamp posts | E46: =C43*'Additions road'!D6*'Calculation factors'!D83 -> 0 | F46: kg steel | G46: Year 0 | H46: Open road | I46: Steel | J46: ='Emission factors'!B14 -> Steel | K46: =SUMIF('Emission factors'!B:B,Calculations!J46,'Emission factors'!D:D) -> 2.1235 | L46: =VLOOKUP(J46,'Emission factors'!B:C,2,FALSE) -> kg CO2e/kg | M46: 0
D47: Guard rail/safety fence | E47: =C43*'Additions road'!D7*'Calculation factors'!D85 -> 0 | F47: kg steel | G47: Year 0 | H47: Open road | I47: Steel | J47: ='Emission factors'!B14 -> Steel | K47: =SUMIF('Emission factors'!B:B,Calculations!J47,'Emission factors'!D:D) -> 2.1235 | L47: =VLOOKUP(J47,'Emission factors'!B:C,2,FALSE) -> kg CO2e/kg | M47: 0
D48: Transport diesel | E48: =C43*(((SUM('Secondary road'!E5:E7)*'Project description and input'!C10)+(('Additions road'!E6*'Calculation factors'!D83)+('Additions road'!E7*'Calculation factors'!D85)))) -> 0 | F48: litre diesel | G48: Year 0 | H48: Open road | I48: Diesel | J48: ='Emission factors'!B20 -> Fossil diesel (WTW) | K48: =SUMIF('Emission factors'!B:B,Calculations!J48,'Emission factors'!D:D) -> 3.24 | L48: =VLOOKUP(J48,'Emission factors'!B:C,2,FALSE) -> kg CO2e/litre | M48: 0
D49: Transport biodiesel | E49: =C43*(((SUM('Secondary road'!F5:F7)*'Project description and input'!C10)+(('Additions road'!F6*'Calculation factors'!D83)+('Additions road'!F7*'Calculation factors'!D85)))) -> 0 | F49: litre biodiesel | G49: Year 0 | H49: Open road | I49: Biodiesel | J49: ='Emission factors'!B18 -> Biodiesel (WTT) | K49: =SUMIF('Emission factors'!B:B,Calculations!J49,'Emission factors'!D:D) -> 1.92 | L49: =VLOOKUP(J49,'Emission factors'!B:C,2,FALSE) -> kg CO2e/litre | M49: 0
D50: Transport electrical/hydrogen | E50: =C43*(((SUM('Secondary road'!G5:G7)*'Project description and input'!C10)+(('Additions road'!G6*'Calculation factors'!D83)+('Additions road'!G7*'Calculation factors'!D85)))) -> 0 | F50: kWh | G50: Year 0 | H50: Open road | I50: Electricity | J50: ='Emission factors'!B23 -> Electricity construction phase, Norwegian mix | K50: =SUMIF('Emission factors'!B:B,Calculations!J50,'Emission factors'!D:D) -> 0.02638 | L50: =VLOOKUP(J50,'Emission factors'!B:C,2,FALSE) -> kg CO2e/kWh | M50: 0
D51: Construction work diesel | E51: =C43*(((SUM('Secondary road'!E15:E28)*'Project description and input'!C10)+(('Additions road'!D12*'Calculation factors'!D85)+('Additions road'!D13*'Calculation factors'!D89)+('Additions road'!D14*'Calculation factors'!D87)))) -> 0 | F51: litre diesel | G51: Year 0 | H51: Open road | I51: Diesel | J51: ='Emission factors'!B20 -> Fossil diesel (WTW) | K51: =SUMIF('Emission factors'!B:B,Calculations!J51,'Emission factors'!D:D) -> 3.24 | L51: =VLOOKUP(J51,'Emission factors'!B:C,2,FALSE) -> kg CO2e/litre | M51: 0
D52: Construction work biodiesel | E52: =C43*(((SUM('Secondary road'!F15:F28)*'Project description and input'!C10)+(('Additions road'!E12*'Calculation factors'!D85)+('Additions road'!E13*'Calculation factors'!D89)+('Additions road'!E14*'Calculation factors'!D87)))) -> 0 | F52: litre biodiesel | G52: Year 0 | H52: Open road | I52: Biodiesel | J52: ='Emission factors'!B18 -> Biodiesel (WTT) | K52: =SUMIF('Emission factors'!B:B,Calculations!J52,'Emission factors'!D:D) -> 1.92 | L52: =VLOOKUP(J52,'Emission factors'!B:C,2,FALSE) -> kg CO2e/litre | M52: 0
D53: Construction work electric/hydrogen | E53: =C43*(((SUM('Secondary road'!G15:G28)*'Project description and input'!C10)+(('Additions road'!F12*'Calculation factors'!D85)+('Additions road'!F13*'Calculation factors'!D89)+('Additions road'!F14*'Calculation factors'!D87)))) -> 0 | F53: kWh | G53: Year 0 | H53: Open road | I53: Electricity | J53: ='Emission factors'!B23 -> Electricity construction phase, Norwegian mix | K53: =SUMIF('Emission factors'!B:B,Calculations!J53,'Emission factors'!D:D) -> 0.02638 | L53: =VLOOKUP(J53,'Emission factors'!B:C,2,FALSE) -> kg CO2e/kWh | M53: 0
B54: Construction road (m) | C54: =SUMIF('Project description and input'!$M:$M,B54,'Project description and input'!$L:$L) -> 0 | D54: Upper base course asphalt concrete, base (Ag) | E54: =C54*'Construction road'!D5*'Project description and input'!C11 -> 0 | F54: kg asphalt concrete, base | G54: Year 0 | H54: Open road | I54: Asphalt | J54: ='Emission factors'!B8 -> Asphalt concrete, base (Ag) | K54: =SUMIF('Emission factors'!B:B,Calculations!J54,'Emission factors'!D:D) -> 0.0488 | L54: =VLOOKUP(J54,'Emission factors'!B:C,2,FALSE) -> kg CO2e/kg | M54: 0
D55: Transport diesel | E55: =C54*(SUM('Construction road'!E5:E6)*'Project description and input'!C11) -> 0 | F55: litre diesel | G55: Year 0 | H55: Open road | I55: Diesel | J55: ='Emission factors'!B20 -> Fossil diesel (WTW) | K55: =SUMIF('Emission factors'!B:B,Calculations!J55,'Emission factors'!D:D) -> 3.24 | L55: =VLOOKUP(J55,'Emission factors'!B:C,2,FALSE) -> kg CO2e/litre | M55: 0
D56: Transport biodiesel | E56: =C54*(SUM('Construction road'!F5:F6)*'Project description and input'!C11) -> 0 | F56: litre biodiesel | G56: Year 0 | H56: Open road | I56: Biodiesel | J56: ='Emission factors'!B18 -> Biodiesel (WTT) | K56: =SUMIF('Emission factors'!B:B,Calculations!J56,'Emission factors'!D:D) -> 1.92 | L56: =VLOOKUP(J56,'Emission factors'!B:C,2,FALSE) -> kg CO2e/litre | M56: 0
D57: Transport electrical/hydrogen | E57: =C54*(SUM('Construction road'!G5:G6)*'Project description and input'!C11) -> 0 | F57: kWh | G57: Year 0 | H57: Open road | I57: Electricity | J57: ='Emission factors'!B23 -> Electricity construction phase, Norwegian mix | K57: =SUMIF('Emission factors'!B:B,Calculations!J57,'Emission factors'!D:D) -> 0.02638 | L57: =VLOOKUP(J57,'Emission factors'!B:C,2,FALSE) -> kg CO2e/kWh | M57: 0
D58: Construction work diesel | E58: =C54*(SUM('Construction road'!E12:E16)*'Project description and input'!C11) -> 0 | F58: litre diesel | G58: Year 0 | H58: Open road | I58: Diesel | J58: ='Emission factors'!B20 -> Fossil diesel (WTW) | K58: =SUMIF('Emission factors'!B:B,Calculations!J58,'Emission factors'!D:D) -> 3.24 | L58: =VLOOKUP(J58,'Emission factors'!B:C,2,FALSE) -> kg CO2e/litre | M58: 0
D59: Construction work biodiesel | E59: =C54*(SUM('Construction road'!F12:F16)*'Project description and input'!C11) -> 0 | F59: litre biodiesel | G59: Year 0 | H59: Open road | I59: Biodiesel | J59: ='Emission factors'!B18 -> Biodiesel (WTT) | K59: =SUMIF('Emission factors'!B:B,Calculations!J59,'Emission factors'!D:D) -> 1.92 | L59: =VLOOKUP(J59,'Emission factors'!B:C,2,FALSE) -> kg CO2e/litre | M59: 0
D60: Construction work electric/hydrogen | E60: =C54*(SUM('Construction road'!G12:G16)*'Project description and input'!C11) -> 0 | F60: kWh | G60: Year 0 | H60: Open road | I60: Electricity | J60: ='Emission factors'!B23 -> Electricity construction phase, Norwegian mix | K60: =SUMIF('Emission factors'!B:B,Calculations!J60,'Emission factors'!D:D) -> 0.02638 | L60: =VLOOKUP(J60,'Emission factors'!B:C,2,FALSE) -> kg CO2e/kWh | M60: 0
B61: Concrete bridge (m) | C61: =SUMIF('Project description and input'!$M:$M,B61,'Project description and input'!$L:$L) -> 0 | D61: Concrete | E61: =C61*'Concrete bridge'!E5*'Project description and input'!C12 -> 0 | F61: kg concrete | G61: Year 0 | H61: Bridge | I61: Concrete | J61: ='Emission factors'!B10 -> Concrete | K61: =SUMIF('Emission factors'!B:B,Calculations!J61,'Emission factors'!D:D) -> 0.1375 | L61: =VLOOKUP(J61,'Emission factors'!B:C,2,FALSE) -> kg CO2e/kg | M61: 0
D62: Reinforcement steel | E62: =C61*'Concrete bridge'!E6*'Project description and input'!C12 -> 0 | F62: kg reinforcement steel | G62: Year 0 | H62: Bridge | I62: Reinforcement steel | J62: ='Emission factors'!B5 -> Reinforcement steel | K62: =SUMIF('Emission factors'!B:B,Calculations!J62,'Emission factors'!D:D) -> 0.6186 | L62: =VLOOKUP(J62,'Emission factors'!B:C,2,FALSE) -> kg CO2e/kg | M62: 0
D63: Wearing course stone mastic asphalt (Ska) | E63: =C61*'Concrete bridge'!E7*'Project description and input'!C12 -> 0 | F63: kg stone mastic asphalt | G63: Year 0 | H63: Bridge | I63: Asphalt | J63: ='Emission factors'!B7 -> Stone mastic asphalt (Ska) | K63: =SUMIF('Emission factors'!B:B,Calculations!J63,'Emission factors'!D:D) -> 0.0657 | L63: =VLOOKUP(J63,'Emission factors'!B:C,2,FALSE) -> kg CO2e/kg | M63: 0
D64: Binder course stone mastic asphalt (Ska) | E64: =C61*'Concrete bridge'!E8*'Project description and input'!C12 -> 0 | F64: kg stone mastic asphalt | G64: Year 0 | H64: Bridge | I64: Asphalt | J64: ='Emission factors'!B7 -> Stone mastic asphalt (Ska) | K64: =SUMIF('Emission factors'!B:B,Calculations!J64,'Emission factors'!D:D) -> 0.0657 | L64: =VLOOKUP(J64,'Emission factors'!B:C,2,FALSE) -> kg CO2e/kg | M64: 0
D65: Moisture protection (Topeka) | E65: =C61*'Concrete bridge'!E9*'Project description and input'!C12 -> 0 | F65: kg topeka | G65: Year 0 | H65: Bridge | I65: Asphalt | J65: ='Emission factors'!B9 -> Topeka | K65: =SUMIF('Emission factors'!B:B,Calculations!J65,'Emission factors'!D:D) -> 0.184 | L65: =VLOOKUP(J65,'Emission factors'!B:C,2,FALSE) -> kg CO2e/kg | M65: 0
D66: Lamp posts | E66: =C61*'Additions road'!D5*'Calculation factors'!D82 -> 0 | F66: kg steel | G66: Year 0 | H66: Bridge | I66: Steel | J66: ='Emission factors'!B14 -> Steel | K66: =SUMIF('Emission factors'!B:B,Calculations!J66,'Emission factors'!D:D) -> 2.1235 | L66: =VLOOKUP(J66,'Emission factors'!B:C,2,FALSE) -> kg CO2e/kg | M66: 0
D67: Guard rail/safety fence | E67: =C61*'Additions road'!D7*'Calculation factors'!D84 -> 0 | F67: kg steel | G67: Year 0 | H67: Bridge | I67: Steel | J67: ='Emission factors'!B14 -> Steel | K67: =SUMIF('Emission factors'!B:B,Calculations!J67,'Emission factors'!D:D) -> 2.1235 | L67: =VLOOKUP(J67,'Emission factors'!B:C,2,FALSE) -> kg CO2e/kg | M67: 0
D68: Transport diesel | E68: =C61*(((SUM('Concrete bridge'!F5:F9)*'Project description and input'!C12)+(('Additions road'!E5*'Calculation factors'!D82)+('Additions road'!E7*'Calculation factors'!D84)))) -> 0 | F68: litre diesel | G68: Year 0 | H68: Bridge | I68: Diesel | J68: ='Emission factors'!B20 -> Fossil diesel (WTW) | K68: =SUMIF('Emission factors'!B:B,Calculations!J68,'Emission factors'!D:D) -> 3.24 | L68: =VLOOKUP(J68,'Emission factors'!B:C,2,FALSE) -> kg CO2e/litre | M68: 0
D69: Transport biodiesel | E69: =C61*(((SUM('Concrete bridge'!G5:G9)*'Project description and input'!C12)+(('Additions road'!F5*'Calculation factors'!D82)+('Additions road'!F7*'Calculation factors'!D84)))) -> 0 | F69: litre biodiesel | G69: Year 0 | H69: Bridge | I69: Biodiesel | J69: ='Emission factors'!B18 -> Biodiesel (WTT) | K69: =SUMIF('Emission factors'!B:B,Calculations!J69,'Emission factors'!D:D) -> 1.92 | L69: =VLOOKUP(J69,'Emission factors'!B:C,2,FALSE) -> kg CO2e/litre | M69: 0
D70: Transport electrical/hydrogen | E70: =C61*(((SUM('Concrete bridge'!H5:H9)*'Project description and input'!C12)+(('Additions road'!G5*'Calculation factors'!D82)+('Additions road'!G7*'Calculation factors'!D84)))) -> 0 | F70: kWh | G70: Year 0 | H70: Bridge | I70: Electricity | J70: ='Emission factors'!B23 -> Electricity construction phase, Norwegian mix | K70: =SUMIF('Emission factors'!B:B,Calculations!J70,'Emission factors'!D:D) -> 0.02638 | L70: =VLOOKUP(J70,'Emission factors'!B:C,2,FALSE) -> kg CO2e/kWh | M70: =(E70*K70)/1000 -> 0
D71: Construction work diesel | E71: =C61*(((SUM('Concrete bridge'!E17:E26)*'Project description and input'!C12)+(('Additions road'!D12*'Calculation factors'!D84)+('Additions road'!D13*'Calculation factors'!D88)))) -> 0 | F71: litre diesel | G71: Year 0 | H71: Bridge | I71: Diesel | J71: ='Emission factors'!B20 -> Fossil diesel (WTW) | K71: =SUMIF('Emission factors'!B:B,Calculations!J71,'Emission factors'!D:D) -> 3.24 | L71: =VLOOKUP(J71,'Emission factors'!B:C,2,FALSE) -> kg CO2e/litre | M71: 0
D72: Construction work biodiesel | E72: =C61*(((SUM('Concrete bridge'!F17:F26)*'Project description and input'!C12)+(('Additions road'!E12*'Calculation factors'!D84)+('Additions road'!E13*'Calculation factors'!D88)))) -> 0 | F72: litre biodiesel | G72: Year 0 | H72: Bridge | I72: Biodiesel | J72: ='Emission factors'!B18 -> Biodiesel (WTT) | K72: =SUMIF('Emission factors'!B:B,Calculations!J72,'Emission factors'!D:D) -> 1.92 | L72: =VLOOKUP(J72,'Emission factors'!B:C,2,FALSE) -> kg CO2e/litre | M72: 0
D73: Construction work electric/hydrogen | E73: =C61*(((SUM('Concrete bridge'!G17:G26)*'Project description and input'!C12)+(('Additions road'!F12*'Calculation factors'!D84)+('Additions road'!F13*'Calculation factors'!D88)))) -> 0 | F73: kWh | G73: Year 0 | H73: Bridge | I73: Electricity | J73: ='Emission factors'!B23 -> Electricity construction phase, Norwegian mix | K73: =SUMIF('Emission factors'!B:B,Calculations!J73,'Emission factors'!D:D) -> 0.02638 | L73: =VLOOKUP(J73,'Emission factors'!B:C,2,FALSE) -> kg CO2e/kWh | M73: 0
B74: Steel bridge (m) | C74: =SUMIF('Project description and input'!$M:$M,B74,'Project description and input'!$L:$L) -> 0 | D74: Concrete | E74: =C74*'Steel bridge'!E5*'Project description and input'!C13 -> 0 | F74: kg concrete | G74: Year 0 | H74: Bridge | I74: Concrete | J74: ='Emission factors'!B10 -> Concrete | K74: =SUMIF('Emission factors'!B:B,Calculations!J74,'Emission factors'!D:D) -> 0.1375 | L74: =VLOOKUP(J74,'Emission factors'!B:C,2,FALSE) -> kg CO2e/kg | M74: 0
D75: Reinforcement steel | E75: =C74*'Steel bridge'!E6*'Project description and input'!C13 -> 0 | F75: kg reinforcement steel | G75: Year 0 | H75: Bridge | I75: Reinforcement steel | J75: ='Emission factors'!B5 -> Reinforcement steel | K75: =SUMIF('Emission factors'!B:B,Calculations!J75,'Emission factors'!D:D) -> 0.6186 | L75: =VLOOKUP(J75,'Emission factors'!B:C,2,FALSE) -> kg CO2e/kg | M75: 0
D76: Construction steel | E76: =C74*'Steel bridge'!E7*'Project description and input'!C13 -> 0 | F76: kg steel | G76: Year 0 | H76: Bridge | I76: Steel | J76: ='Emission factors'!B14 -> Steel | K76: =SUMIF('Emission factors'!B:B,Calculations!J76,'Emission factors'!D:D) -> 2.1235 | L76: =VLOOKUP(J76,'Emission factors'!B:C,2,FALSE) -> kg CO2e/kg | M76: 0
D77: Wearing course stone mastic asphalt (Ska) | E77: =C74*'Steel bridge'!E8*'Project description and input'!C13 -> 0 | F77: kg stone mastic asphalt | G77: Year 0 | H77: Bridge | I77: Asphalt | J77: ='Emission factors'!B7 -> Stone mastic asphalt (Ska) | K77: =SUMIF('Emission factors'!B:B,Calculations!J77,'Emission factors'!D:D) -> 0.0657 | L77: =VLOOKUP(J77,'Emission factors'!B:C,2,FALSE) -> kg CO2e/kg | M77: 0
D78: Binder course stone mastic asphalt (Ska) | E78: =C74*'Steel bridge'!E9*'Project description and input'!C13 -> 0 | F78: kg stone mastic asphalt | G78: Year 0 | H78: Bridge | I78: Asphalt | J78: ='Emission factors'!B7 -> Stone mastic asphalt (Ska) | K78: =SUMIF('Emission factors'!B:B,Calculations!J78,'Emission factors'!D:D) -> 0.0657 | L78: =VLOOKUP(J78,'Emission factors'!B:C,2,FALSE) -> kg CO2e/kg | M78: 0
D79: Moisture protection (Topeka) | E79: =C74*'Steel bridge'!E10*'Project description and input'!C13 -> 0 | F79: kg topeka | G79: Year 0 | H79: Bridge | I79: Asphalt | J79: ='Emission factors'!B9 -> Topeka | K79: =SUMIF('Emission factors'!B:B,Calculations!J79,'Emission factors'!D:D) -> 0.184 | L79: =VLOOKUP(J79,'Emission factors'!B:C,2,FALSE) -> kg CO2e/kg | M79: 0
D80: Lamp posts | E80: =C74*'Additions road'!D5*'Calculation factors'!D82 -> 0 | F80: kg steel | G80: Year 0 | H80: Bridge | I80: Steel | J80: ='Emission factors'!B14 -> Steel | K80: =SUMIF('Emission factors'!B:B,Calculations!J80,'Emission factors'!D:D) -> 2.1235 | L80: =VLOOKUP(J80,'Emission factors'!B:C,2,FALSE) -> kg CO2e/kg | M80: 0
D81: Guard rail/safety fence | E81: =C74*'Additions road'!D7*'Calculation factors'!D84 -> 0 | F81: kg steel | G81: Year 0 | H81: Bridge | I81: Steel | J81: ='Emission factors'!B14 -> Steel | K81: =SUMIF('Emission factors'!B:B,Calculations!J81,'Emission factors'!D:D) -> 2.1235 | L81: =VLOOKUP(J81,'Emission factors'!B:C,2,FALSE) -> kg CO2e/kg | M81: 0
D82: Transport diesel | E82: =C74*(((SUM('Steel bridge'!F5:F10)*'Project description and input'!C13)+(('Additions road'!E5*'Calculation factors'!D82)+('Additions road'!E7*'Calculation factors'!D84)))) -> 0 | F82: litre diesel | G82: Year 0 | H82: Bridge | I82: Diesel | J82: ='Emission factors'!B20 -> Fossil diesel (WTW) | K82: =SUMIF('Emission factors'!B:B,Calculations!J82,'Emission factors'!D:D) -> 3.24 | L82: =VLOOKUP(J82,'Emission factors'!B:C,2,FALSE) -> kg CO2e/litre | M82: 0
D83: Transport biodiesel | E83: =C74*(((SUM('Steel bridge'!G5:G10)*'Project description and input'!C13)+(('Additions road'!F5*'Calculation factors'!D82)+('Additions road'!F7*'Calculation factors'!D84)))) -> 0 | F83: litre biodiesel | G83: Year 0 | H83: Bridge | I83: Biodiesel | J83: ='Emission factors'!B18 -> Biodiesel (WTT) | K83: =SUMIF('Emission factors'!B:B,Calculations!J83,'Emission factors'!D:D) -> 1.92 | L83: =VLOOKUP(J83,'Emission factors'!B:C,2,FALSE) -> kg CO2e/litre | M83: 0
D84: Transport electrical/hydrogen | E84: =C74*(((SUM('Steel bridge'!H5:H10)*'Project description and input'!C13)+(('Additions road'!G5*'Calculation factors'!D82)+('Additions road'!G7*'Calculation factors'!D84)))) -> 0 | F84: kWh | G84: Year 0 | H84: Bridge | I84: Electricity | J84: ='Emission factors'!B23 -> Electricity construction phase, Norwegian mix | K84: =SUMIF('Emission factors'!B:B,Calculations!J84,'Emission factors'!D:D) -> 0.02638 | L84: =VLOOKUP(J84,'Emission factors'!B:C,2,FALSE) -> kg CO2e/kWh | M84: 0
D85: Construction work diesel | E85: =C74*(((SUM('Steel bridge'!E18:E27)*'Project description and input'!C13)+(('Additions road'!D12*'Calculation factors'!D84)+('Additions road'!D13*'Calculation factors'!D88)))) -> 0 | F85: litre diesel | G85: Year 0 | H85: Bridge | I85: Diesel | J85: ='Emission factors'!B20 -> Fossil diesel (WTW) | K85: =SUMIF('Emission factors'!B:B,Calculations!J85,'Emission factors'!D:D) -> 3.24 | L85: =VLOOKUP(J85,'Emission factors'!B:C,2,FALSE) -> kg CO2e/litre | M85: 0
D86: Construction work biodiesel | E86: =C74*(((SUM('Steel bridge'!F18:F27)*'Project description and input'!C13)+(('Additions road'!E12*'Calculation factors'!D84)+('Additions road'!E13*'Calculation factors'!D88)))) -> 0 | F86: litre biodiesel | G86: Year 0 | H86: Bridge | I86: Biodiesel | J86: ='Emission factors'!B18 -> Biodiesel (WTT) | K86: =SUMIF('Emission factors'!B:B,Calculations!J86,'Emission factors'!D:D) -> 1.92 | L86: =VLOOKUP(J86,'Emission factors'!B:C,2,FALSE) -> kg CO2e/litre | M86: 0
D87: Construction work electric/hydrogen | E87: =C74*(((SUM('Steel bridge'!G16:G27)*'Project description and input'!C13)+(('Additions road'!F12*'Calculation factors'!D84)+('Additions road'!F13*'Calculation factors'!D88)))) -> 0 | F87: kWh | G87: Year 0 | H87: Bridge | I87: Electricity | J87: ='Emission factors'!B23 -> Electricity construction phase, Norwegian mix | K87: =SUMIF('Emission factors'!B:B,Calculations!J87,'Emission factors'!D:D) -> 0.02638 | L87: =VLOOKUP(J87,'Emission factors'!B:C,2,FALSE) -> kg CO2e/kWh | M87: 0
B88: Tunnel single tube (m) | C88: =SUMIF('Project description and input'!$M:$M,B88,'Project description and input'!$L:$L) -> 0 | D88: Concrete | E88: =C88*'Tunnel single tube'!F10 -> 0 | F88: kg concrete | G88: Year 0 | H88: Tunnel | I88: Concrete | J88: ='Emission factors'!B10 -> Concrete | K88: =SUMIF('Emission factors'!B:B,Calculations!J88,'Emission factors'!D:D) -> 0.1375 | L88: =VLOOKUP(J88,'Emission factors'!B:C,2,FALSE) -> kg CO2e/kg | M88: 0
D89: Reinforcement steel | E89: =C88*'Tunnel single tube'!F11 -> 0 | F89: kg reinforcement steel | G89: Year 0 | H89: Tunnel | I89: Reinforcement steel | J89: ='Emission factors'!B5 -> Reinforcement steel | K89: =SUMIF('Emission factors'!B:B,Calculations!J89,'Emission factors'!D:D) -> 0.6186 | L89: =VLOOKUP(J89,'Emission factors'!B:C,2,FALSE) -> kg CO2e/kg | M89: 0
D90: Safety bolts | E90: =C88*'Tunnel single tube'!F12 -> 0 | F90: kg steel | G90: Year 0 | H90: Tunnel | I90: Steel | J90: ='Emission factors'!B14 -> Steel | K90: =SUMIF('Emission factors'!B:B,Calculations!J90,'Emission factors'!D:D) -> 2.1235 | L90: =VLOOKUP(J90,'Emission factors'!B:C,2,FALSE) -> kg CO2e/kg | M90: 0
D91: Frostsikring | E91: =C88*'Tunnel single tube'!G13 -> 0 | F91: m2 isolation | G91: Year 0 | H91: Tunnel | I91: Frost protection tunnel | J91: ='Emission factors'!B16 -> XPS/concrete element | K91: =SUMIF('Emission factors'!B:B,Calculations!J91,'Emission factors'!D:D) -> 66.815 | L91: =VLOOKUP(J91,'Emission factors'!B:C,2,FALSE) -> kg CO2e/m2 | M91: =(E91*K91)/1000 -> 0
D92: Wearing course stone mastic asphalt (Ska) | E92: =C88*'Tunnel single tube'!F14 -> 0 | F92: kg stone mastic asphalt | G92: Year 0 | H92: Tunnel | I92: Asphalt | J92: ='Emission factors'!B7 -> Stone mastic asphalt (Ska) | K92: =SUMIF('Emission factors'!B:B,Calculations!J92,'Emission factors'!D:D) -> 0.0657 | L92: =VLOOKUP(J92,'Emission factors'!B:C,2,FALSE) -> kg CO2e/kg | M92: 0
D93: Binder course stone mastic asphalt (Ska) | E93: =C88*'Tunnel single tube'!F15 -> 0 | F93: kg stone mastic asphalt | G93: Year 0 | H93: Tunnel | I93: Asphalt | J93: ='Emission factors'!B7 -> Stone mastic asphalt (Ska) | K93: =SUMIF('Emission factors'!B:B,Calculations!J93,'Emission factors'!D:D) -> 0.0657 | L93: =VLOOKUP(J93,'Emission factors'!B:C,2,FALSE) -> kg CO2e/kg | M93: 0
D94: Upper base course asphalt concrete, base (Ag) | E94: =C88*'Tunnel single tube'!F16 -> 0 | F94: kg asphalt concrete, base | G94: Year 0 | H94: Tunnel | I94: Asphalt | J94: ='Emission factors'!B8 -> Asphalt concrete, base (Ag) | K94: =SUMIF('Emission factors'!B:B,Calculations!J94,'Emission factors'!D:D) -> 0.0488 | L94: =VLOOKUP(J94,'Emission factors'!B:C,2,FALSE) -> kg CO2e/kg | M94: 0
D95: Guard rail/safety fence | E95: =C88*'Additions road'!D7*'Calculation factors'!D84 -> 0 | F95: kg steel | G95: Year 0 | H95: Tunnel | I95: Steel | J95: ='Emission factors'!B14 -> Steel | K95: =SUMIF('Emission factors'!B:B,Calculations!J95,'Emission factors'!D:D) -> 2.1235 | L95: =VLOOKUP(J95,'Emission factors'!B:C,2,FALSE) -> kg CO2e/kg | M95: 0
D96: Transport diesel | E96: =C88*(((SUM('Tunnel single tube'!H10:H18))+('Additions road'!E7*'Calculation factors'!D84))) -> 0 | F96: litre diesel | G96: Year 0 | H96: Tunnel | I96: Diesel | J96: ='Emission factors'!B20 -> Fossil diesel (WTW) | K96: =SUMIF('Emission factors'!B:B,Calculations!J96,'Emission factors'!D:D) -> 3.24 | L96: =VLOOKUP(J96,'Emission factors'!B:C,2,FALSE) -> kg CO2e/litre | M96: 0
D97: Transport biodiesel | E97: =C88*(((SUM('Tunnel single tube'!I10:I18))+('Additions road'!F7*'Calculation factors'!D84))) -> 0 | F97: litre biodiesel | G97: Year 0 | H97: Tunnel | I97: Biodiesel | J97: ='Emission factors'!B18 -> Biodiesel (WTT) | K97: =SUMIF('Emission factors'!B:B,Calculations!J97,'Emission factors'!D:D) -> 1.92 | L97: =VLOOKUP(J97,'Emission factors'!B:C,2,FALSE) -> kg CO2e/litre | M97: 0
D98: Transport electrical/hydrogen | E98: =C88*(((SUM('Tunnel single tube'!J10:J18))+('Additions road'!G7*'Calculation factors'!D84))) -> 0 | F98: kWh | G98: Year 0 | H98: Tunnel | I98: Electricity | J98: ='Emission factors'!B23 -> Electricity construction phase, Norwegian mix | K98: =SUMIF('Emission factors'!B:B,Calculations!J98,'Emission factors'!D:D) -> 0.02638 | L98: =VLOOKUP(J98,'Emission factors'!B:C,2,FALSE) -> kg CO2e/kWh | M98: 0
D99: Construction work diesel | E99: =C88*'Calculation factors'!D42*(((SUM('Tunnel single tube'!E24:E37))+(('Additions road'!D12*'Calculation factors'!D84)+('Additions road'!D13*'Calculation factors'!D88)))) -> 0 | F99: litre diesel | G99: Year 0 | H99: Tunnel | I99: Diesel | J99: ='Emission factors'!B20 -> Fossil diesel (WTW) | K99: =SUMIF('Emission factors'!B:B,Calculations!J99,'Emission factors'!D:D) -> 3.24 | L99: =VLOOKUP(J99,'Emission factors'!B:C,2,FALSE) -> kg CO2e/litre | M99: 0
D100: Construction work biodiesel | E100: =C88*'Calculation factors'!D42*(((SUM('Tunnel single tube'!F24:F37))+(('Additions road'!E12*'Calculation factors'!D84)+('Additions road'!E13*'Calculation factors'!D88)))) -> 0 | F100: litre biodiesel | G100: Year 0 | H100: Tunnel | I100: Biodiesel | J100: ='Emission factors'!B18 -> Biodiesel (WTT) | K100: =SUMIF('Emission factors'!B:B,Calculations!J100,'Emission factors'!D:D) -> 1.92 | L100: =VLOOKUP(J100,'Emission factors'!B:C,2,FALSE) -> kg CO2e/litre | M100: 0
D101: Construction work electric/hydrogen | E101: =C88*'Calculation factors'!D42*(((SUM('Tunnel single tube'!G24:G37))+(('Additions road'!F12*'Calculation factors'!D84)+('Additions road'!F13*'Calculation factors'!D88)))) -> 0 | F101: kWh | G101: Year 0 | H101: Tunnel | I101: Electricity | J101: ='Emission factors'!B23 -> Electricity construction phase, Norwegian mix | K101: =SUMIF('Emission factors'!B:B,Calculations!J101,'Emission factors'!D:D) -> 0.02638 | L101: =VLOOKUP(J101,'Emission factors'!B:C,2,FALSE) -> kg CO2e/kWh | M101: 0
B102: Tunnel double tube (m) | C102: =SUMIF('Project description and input'!$M:$M,B102,'Project description and input'!$L:$L) -> 0 | D102: Concrete | E102: =C102*'Tunnel double tube'!F10*2 -> 0 | F102: kg concrete | G102: Year 0 | H102: Tunnel | I102: Concrete | J102: ='Emission factors'!B10 -> Concrete | K102: =SUMIF('Emission factors'!B:B,Calculations!J102,'Emission factors'!D:D) -> 0.1375 | L102: =VLOOKUP(J102,'Emission factors'!B:C,2,FALSE) -> kg CO2e/kg | M102: 0
D103: Reinforcement steel | E103: =C102*'Tunnel double tube'!F11*2 -> 0 | F103: kg reinforcement steel | G103: Year 0 | H103: Tunnel | I103: Reinforcement steel | J103: ='Emission factors'!B5 -> Reinforcement steel | K103: =SUMIF('Emission factors'!B:B,Calculations!J103,'Emission factors'!D:D) -> 0.6186 | L103: =VLOOKUP(J103,'Emission factors'!B:C,2,FALSE) -> kg CO2e/kg | M103: 0
D104: Safety bolts | E104: =C102*'Tunnel double tube'!F12*2 -> 0 | F104: kg steel | G104: Year 0 | H104: Tunnel | I104: Steel | J104: ='Emission factors'!B14 -> Steel | K104: =SUMIF('Emission factors'!B:B,Calculations!J104,'Emission factors'!D:D) -> 2.1235 | L104: =VLOOKUP(J104,'Emission factors'!B:C,2,FALSE) -> kg CO2e/kg | M104: 0
D105: Frostsikring | E105: =C102*'Tunnel double tube'!G13*2 -> 0 | F105: m2 isolation | G105: Year 0 | H105: Tunnel | I105: Frost protection tunnel | J105: ='Emission factors'!B16 -> XPS/concrete element | K105: =SUMIF('Emission factors'!B:B,Calculations!J105,'Emission factors'!D:D) -> 66.815 | L105: =VLOOKUP(J105,'Emission factors'!B:C,2,FALSE) -> kg CO2e/m2 | M105: 0
D106: Wearing course stone mastic asphalt (Ska) | E106: =C102*'Tunnel double tube'!F14*2 -> 0 | F106: kg stone mastic asphalt | G106: Year 0 | H106: Tunnel | I106: Asphalt | J106: ='Emission factors'!B7 -> Stone mastic asphalt (Ska) | K106: =SUMIF('Emission factors'!B:B,Calculations!J106,'Emission factors'!D:D) -> 0.0657 | L106: =VLOOKUP(J106,'Emission factors'!B:C,2,FALSE) -> kg CO2e/kg | M106: 0
D107: Binder course stone mastic asphalt (Ska) | E107: =C102*'Tunnel double tube'!F15*2 -> 0 | F107: kg stone mastic asphalt | G107: Year 0 | H107: Tunnel | I107: Asphalt | J107: ='Emission factors'!B7 -> Stone mastic asphalt (Ska) | K107: =SUMIF('Emission factors'!B:B,Calculations!J107,'Emission factors'!D:D) -> 0.0657 | L107: =VLOOKUP(J107,'Emission factors'!B:C,2,FALSE) -> kg CO2e/kg | M107: 0
D108: Upper base course asphalt concrete, base (Ag) | E108: =C102*'Tunnel double tube'!F16*2 -> 0 | F108: kg asphalt concrete, base | G108: Year 0 | H108: Tunnel | I108: Asphalt | J108: ='Emission factors'!B8 -> Asphalt concrete, base (Ag) | K108: =SUMIF('Emission factors'!B:B,Calculations!J108,'Emission factors'!D:D) -> 0.0488 | L108: =VLOOKUP(J108,'Emission factors'!B:C,2,FALSE) -> kg CO2e/kg | M108: 0
D109: Guard rail/safety fence | E109: =C102*'Additions road'!D7*'Calculation factors'!D85*2 -> 0 | F109: kg steel | G109: Year 0 | H109: Tunnel | I109: Steel | J109: ='Emission factors'!B14 -> Steel | K109: =SUMIF('Emission factors'!B:B,Calculations!J109,'Emission factors'!D:D) -> 2.1235 | L109: =VLOOKUP(J109,'Emission factors'!B:C,2,FALSE) -> kg CO2e/kg | M109: 0
D110: Transport diesel | E110: =C102*(((SUM('Tunnel double tube'!H10:H18))+('Additions road'!E7*'Calculation factors'!D85)))*2 -> 0 | F110: litre diesel | G110: Year 0 | H110: Tunnel | I110: Diesel | J110: ='Emission factors'!B20 -> Fossil diesel (WTW) | K110: =SUMIF('Emission factors'!B:B,Calculations!J110,'Emission factors'!D:D) -> 3.24 | L110: =VLOOKUP(J110,'Emission factors'!B:C,2,FALSE) -> kg CO2e/litre | M110: 0
D111: Transport biodiesel | E111: =C102*(((SUM('Tunnel double tube'!I10:I18))+('Additions road'!F7*'Calculation factors'!D85)))*2 -> 0 | F111: litre biodiesel | G111: Year 0 | H111: Tunnel | I111: Biodiesel | J111: ='Emission factors'!B18 -> Biodiesel (WTT) | K111: =SUMIF('Emission factors'!B:B,Calculations!J111,'Emission factors'!D:D) -> 1.92 | L111: =VLOOKUP(J111,'Emission factors'!B:C,2,FALSE) -> kg CO2e/litre | M111: 0
D112: Transport electrical/hydrogen | E112: =C102*(((SUM('Tunnel double tube'!J10:J18))+('Additions road'!G7*'Calculation factors'!D85)))*2 -> 0 | F112: kWh | G112: Year 0 | H112: Tunnel | I112: Electricity | J112: ='Emission factors'!B23 -> Electricity construction phase, Norwegian mix | K112: =SUMIF('Emission factors'!B:B,Calculations!J112,'Emission factors'!D:D) -> 0.02638 | L112: =VLOOKUP(J112,'Emission factors'!B:C,2,FALSE) -> kg CO2e/kWh | M112: 0
D113: Construction work diesel | E113: =C102*'Calculation factors'!D43*(((SUM('Tunnel double tube'!E24:E37))+(('Additions road'!D12*'Calculation factors'!D84/2)+('Additions road'!D13*'Calculation factors'!D88))))*2 -> 0 | F113: litre diesel | G113: Year 0 | H113: Tunnel | I113: Diesel | J113: ='Emission factors'!B20 -> Fossil diesel (WTW) | K113: =SUMIF('Emission factors'!B:B,Calculations!J113,'Emission factors'!D:D) -> 3.24 | L113: =VLOOKUP(J113,'Emission factors'!B:C,2,FALSE) -> kg CO2e/litre | M113: 0
D114: Construction work biodiesel | E114: =C102*'Calculation factors'!D43*(((SUM('Tunnel double tube'!F24:F37))+(('Additions road'!E12*'Calculation factors'!D84/2)+('Additions road'!E13*'Calculation factors'!D88))))*2 -> 0 | F114: litre biodiesel | G114: Year 0 | H114: Tunnel | I114: Biodiesel | J114: ='Emission factors'!B18 -> Biodiesel (WTT) | K114: =SUMIF('Emission factors'!B:B,Calculations!J114,'Emission factors'!D:D) -> 1.92 | L114: =VLOOKUP(J114,'Emission factors'!B:C,2,FALSE) -> kg CO2e/litre | M114: 0
D115: Construction work electric/hydrogen | E115: =C102*'Calculation factors'!D43*(((SUM('Tunnel double tube'!G24:G37))+(('Additions road'!F12*'Calculation factors'!D84/2)+('Additions road'!F13*'Calculation factors'!D88))))*2 -> 0 | F115: kWh | G115: Year 0 | H115: Tunnel | I115: Electricity | J115: ='Emission factors'!B23 -> Electricity construction phase, Norwegian mix | K115: =SUMIF('Emission factors'!B:B,Calculations!J115,'Emission factors'!D:D) -> 0.02638 | L115: =VLOOKUP(J115,'Emission factors'!B:C,2,FALSE) -> kg CO2e/kWh | M115: 0
B116: Concrete culvert (m2) | C116: =SUMIF('Project description and input'!$M:$M,B116,'Project description and input'!$L:$L) -> 0 | D116: Concrete | E116: =C116*Culvert!E5 -> 0 | F116: kg concrete | G116: Year 0 | H116: Culvert | I116: Concrete | J116: ='Emission factors'!B10 -> Concrete | K116: =SUMIF('Emission factors'!B:B,Calculations!J116,'Emission factors'!D:D) -> 0.1375 | L116: =VLOOKUP(J116,'Emission factors'!B:C,2,FALSE) -> kg CO2e/kg | M116: 0
D117: Reinforcement steel | E117: =C116*Culvert!E6 -> 0 | F117: kg reinforcement steel | G117: Year 0 | H117: Culvert | I117: Reinforcement steel | J117: ='Emission factors'!B5 -> Reinforcement steel | K117: =SUMIF('Emission factors'!B:B,Calculations!J117,'Emission factors'!D:D) -> 0.6186 | L117: =VLOOKUP(J117,'Emission factors'!B:C,2,FALSE) -> kg CO2e/kg | M117: 0
D118: Transport diesel | E118: =C116*(SUM(Culvert!F5:F6)) -> 0 | F118: litre diesel | G118: Year 0 | H118: Culvert | I118: Diesel | J118: ='Emission factors'!B20 -> Fossil diesel (WTW) | K118: =SUMIF('Emission factors'!B:B,Calculations!J118,'Emission factors'!D:D) -> 3.24 | L118: =VLOOKUP(J118,'Emission factors'!B:C,2,FALSE) -> kg CO2e/litre | M118: 0
D119: Transport biodiesel | E119: =C116*(SUM(Culvert!G5:G6)) -> 0 | F119: litre biodiesel | G119: Year 0 | H119: Culvert | I119: Biodiesel | J119: ='Emission factors'!B18 -> Biodiesel (WTT) | K119: =SUMIF('Emission factors'!B:B,Calculations!J119,'Emission factors'!D:D) -> 1.92 | L119: =VLOOKUP(J119,'Emission factors'!B:C,2,FALSE) -> kg CO2e/litre | M119: 0
D120: Transport electrical/hydrogen | E120: =C116*(SUM(Culvert!H5:H6)) -> 0 | F120: kWh | G120: Year 0 | H120: Culvert | I120: Electricity | J120: ='Emission factors'!B23 -> Electricity construction phase, Norwegian mix | K120: =SUMIF('Emission factors'!B:B,Calculations!J120,'Emission factors'!D:D) -> 0.02638 | L120: =VLOOKUP(J120,'Emission factors'!B:C,2,FALSE) -> kg CO2e/kWh | M120: 0
D121: Construction work diesel | F121: litre diesel | G121: Year 0 | H121: Culvert | I121: Diesel | J121: ='Emission factors'!B20 -> Fossil diesel (WTW) | K121: =SUMIF('Emission factors'!B:B,Calculations!J121,'Emission factors'!D:D) -> 3.24 | L121: =VLOOKUP(J121,'Emission factors'!B:C,2,FALSE) -> kg CO2e/litre | M121: 0
D122: Construction work biodiesel | F122: litre biodiesel | G122: Year 0 | H122: Culvert | I122: Biodiesel | J122: ='Emission factors'!B18 -> Biodiesel (WTT) | K122: =SUMIF('Emission factors'!B:B,Calculations!J122,'Emission factors'!D:D) -> 1.92 | L122: =VLOOKUP(J122,'Emission factors'!B:C,2,FALSE) -> kg CO2e/litre | M122: 0
D123: Construction work electric/hydrogen | E123: ='Project description and input'!C8*Culvert!G11 -> 0 | F123: kWh | G123: Year 0 | H123: Culvert | I123: Electricity | J123: ='Emission factors'!B23 -> Electricity construction phase, Norwegian mix | K123: =SUMIF('Emission factors'!B:B,Calculations!J123,'Emission factors'!D:D) -> 0.02638 | L123: =VLOOKUP(J123,'Emission factors'!B:C,2,FALSE) -> kg CO2e/kWh | M123: 0
A124: Operation and maintenance phase | G124: Operation interval [yr] | N124: Sum analysis periode | O124: Value in year
O125: 1 | P125: 2 | Q125: 3 | R125: 4 | S125: 5 | T125: 6 | U125: 7 | V125: 8 | W125: 9 | X125: 10 | Y125: 11 | Z125: 12 | AA125: 13 | AB125: 14 | AC125: 15 | AD125: 16 | AE125: 17 | AF125: 18 | AG125: 19 | AH125: 20 | AI125: 21 | AJ125: 22 | AK125: 23 | AL125: 24 | AM125: 25 | AN125: 26 | AO125: 27 | AP125: 28 | AQ125: 29 | AR125: 30 | AS125: 31 | AT125: 32 | AU125: 33 | AV125: 34 | AW125: 35 | AX125: 36 | AY125: 37 | AZ125: 38 | BA125: 39 | BB125: 40 | BC125: 41 | BD125: 42 | BE125: 43 | BF125: 44 | BG125: 45 | BH125: 46 | BI125: 47 | BJ125: 48 | BK125: 49 | BL125: 50 | BM125: 51 | BN125: 52 | BO125: 53 | BP125: 54 | BQ125: 55 | BR125: 56 | BS125: 57 | BT125: 58 | BU125: 59 | BV125: 60
B126: Operation Main road (m) | C126: =SUMIF('Project description and input'!$M:$M,B32,'Project description and input'!$L:$L) -> 0 | D126: Asphalt for re-asphalting | E126: =C126*'Project description and input'!C9*'Re-asphalting'!D8 -> 0 | F126: kg stone mastic asphalt | G126: ='Calculation factors'!D51 -> 7 | H126: Re-asphalting | I126: Asphalt | J126: ='Emission factors'!B7 -> Stone mastic asphalt (Ska) | K126: =SUMIF('Emission factors'!B:B,Calculations!J126,'Emission factors'!D:D) -> 0.0657 | L126: =VLOOKUP(J126,'Emission factors'!B:C,2,FALSE) -> kg CO2e/kg | M126: =(E126*K126)/1000 -> 0 | N126: =SUMIF($O$125:$BV$125,"<=" & 'Project description and input'!$C$14,O126:BL126) -> 0 | O126: =IF(MOD(O$125,$G126)=0,$M126,"") ->  | U126: 0 | Y126: =IF(MOD(Y$125,$G126)=0,$M126,"") ->  | AB126: 0 | AI126: =IF(MOD(AI$125,$G126)=0,$M126,"") -> 0 | AP126: 0 | AS126: =IF(MOD(AS$125,$G126)=0,$M126,"") ->  | AW126: 0 | BC126: =IF(MOD(BC$125,$G126)=0,$M126,"") ->  | BD126: 0 | BK126: 0 | BM126: =IF(MOD(BM$125,$G126)=0,$M126,"") ->  | BR126: 0
D127: Transport of asphalt diesel | E127: =C126*'Project description and input'!C9*'Re-asphalting'!E8 -> 0 | F127: litre diesel | G127: ='Calculation factors'!D51 -> 7 | H127: Re-asphalting | I127: Diesel | J127: ='Emission factors'!B20 -> Fossil diesel (WTW) | K127: =SUMIF('Emission factors'!B:B,Calculations!J127,'Emission factors'!D:D) -> 3.24 | L127: =VLOOKUP(J127,'Emission factors'!B:C,2,FALSE) -> kg CO2e/litre | M127: =(E127*K127)/1000 -> 0 | N127: =SUMIF($O$125:$BV$125,"<=" & 'Project description and input'!$C$14,O127:BL127) -> 0 | U127: 0 | AB127: 0 | AI127: 0 | AP127: 0 | AW127: 0 | BD127: 0 | BK127: 0 | BR127: 0
D128: Transport of asphalt biodiesel | E128: =C126*'Project description and input'!C9*'Re-asphalting'!F8 -> 0 | F128: litre biodiesel | G128: ='Calculation factors'!D51 -> 7 | H128: Re-asphalting | I128: Biodiesel | J128: ='Emission factors'!B18 -> Biodiesel (WTT) | K128: =SUMIF('Emission factors'!B:B,Calculations!J128,'Emission factors'!D:D) -> 1.92 | L128: =VLOOKUP(J128,'Emission factors'!B:C,2,FALSE) -> kg CO2e/litre | M128: 0 | N128: =SUMIF($O$125:$BV$125,"<=" & 'Project description and input'!$C$14,O128:BL128) -> 0 | U128: 0 | AB128: 0 | AI128: 0 | AP128: 0 | AW128: 0 | BD128: 0 | BK128: 0 | BR128: 0
D129: Transport of asphalt electricity/hydrogen | E129: =C126*'Project description and input'!C9*'Re-asphalting'!G8 -> 0 | F129: kWh | G129: ='Calculation factors'!D51 -> 7 | H129: Re-asphalting | I129: Electricity | J129: ='Emission factors'!B24 -> Electricity 55 years, European mix | K129: =SUMIF('Emission factors'!B:B,Calculations!J129,'Emission factors'!D:D) -> 0.136 | L129: =VLOOKUP(J129,'Emission factors'!B:C,2,FALSE) -> kg CO2e/kWh | M129: 0 | N129: =SUMIF($O$125:$BV$125,"<=" & 'Project description and input'!$C$14,O129:BL129) -> 0 | U129: 0 | AB129: 0 | AI129: 0 | AP129: 0 | AW129: 0 | BD129: 0 | BK129: 0 | BR129: 0
D130: Re-asphalting diesel | E130: =C126*'Project description and input'!C9*'Re-asphalting'!E8 -> 0 | F130: litre diesel | G130: ='Calculation factors'!D51 -> 7 | H130: Re-asphalting | I130: Diesel | J130: ='Emission factors'!B20 -> Fossil diesel (WTW) | K130: =SUMIF('Emission factors'!B:B,Calculations!J130,'Emission factors'!D:D) -> 3.24 | L130: =VLOOKUP(J130,'Emission factors'!B:C,2,FALSE) -> kg CO2e/litre | M130: 0 | N130: =SUMIF($O$125:$BV$125,"<=" & 'Project description and input'!$C$14,O130:BL130) -> 0 | U130: 0 | AB130: 0 | AI130: 0 | AP130: 0 | AW130: 0 | BD130: 0 | BK130: 0 | BR130: 0
D131: Re-asphalting biodiesel | E131: =C126*'Project description and input'!C9*'Re-asphalting'!F8 -> 0 | F131: litre biodiesel | G131: ='Calculation factors'!D51 -> 7 | H131: Re-asphalting | I131: Biodiesel | J131: ='Emission factors'!B18 -> Biodiesel (WTT) | K131: =SUMIF('Emission factors'!B:B,Calculations!J131,'Emission factors'!D:D) -> 1.92 | L131: =VLOOKUP(J131,'Emission factors'!B:C,2,FALSE) -> kg CO2e/litre | M131: 0 | N131: =SUMIF($O$125:$BV$125,"<=" & 'Project description and input'!$C$14,O131:BL131) -> 0 | U131: 0 | AB131: 0 | AI131: 0 | AP131: 0 | AW131: 0 | BD131: 0 | BK131: 0 | BR131: 0
D132: Re-asphalting electricity/hydrogen | E132: =C126*'Project description and input'!C9*'Re-asphalting'!G8 -> 0 | F132: kWh | G132: ='Calculation factors'!D51 -> 7 | H132: Re-asphalting | I132: Electricity | J132: ='Emission factors'!B24 -> Electricity 55 years, European mix | K132: =SUMIF('Emission factors'!B:B,Calculations!J132,'Emission factors'!D:D) -> 0.136 | L132: =VLOOKUP(J132,'Emission factors'!B:C,2,FALSE) -> kg CO2e/kWh | M132: 0 | N132: =SUMIF($O$125:$BV$125,"<=" & 'Project description and input'!$C$14,O132:BL132) -> 0 | U132: 0 | AB132: 0 | AI132: 0 | AP132: 0 | AW132: 0 | BD132: 0 | BK132: 0 | BR132: 0
D133: Roadside mowing diesel | E133: =C126*'Operation and maintenance'!E24*'Calculation factors'!D86 -> 0 | F133: litre diesel | G133: 1 | H133: Operation | I133: Diesel | J133: ='Emission factors'!B20 -> Fossil diesel (WTW) | K133: =SUMIF('Emission factors'!B:B,Calculations!J133,'Emission factors'!D:D) -> 3.24 | L133: =VLOOKUP(J133,'Emission factors'!B:C,2,FALSE) -> kg CO2e/litre | M133: 0 | N133: =SUMIF($O$125:$BV$125,"<=" & 'Project description and input'!$C$14,O133:BL133) -> 0 | O133: 0 | P133: 0 | Q133: 0 | R133: 0 | S133: 0 | T133: 0 | U133: 0 | V133: 0 | W133: 0 | X133: 0 | Y133: 0 | Z133: 0 | AA133: 0 | AB133: 0 | AC133: 0 | AD133: 0 | AE133: 0 | AF133: 0 | AG133: 0 | AH133: 0 | AI133: 0 | AJ133: 0 | AK133: 0 | AL133: 0 | AM133: 0 | AN133: 0 | AO133: 0 | AP133: 0 | AQ133: 0 | AR133: 0 | AS133: 0 | AT133: 0 | AU133: 0 | AV133: 0 | AW133: 0 | AX133: 0 | AY133: 0 | AZ133: 0 | BA133: 0 | BB133: 0 | BC133: 0 | BD133: 0 | BE133: 0 | BF133: 0 | BG133: 0 | BH133: 0 | BI133: 0 | BJ133: 0 | BK133: 0 | BL133: 0 | BM133: 0 | BN133: 0 | BO133: 0 | BP133: 0 | BQ133: 0 | BR133: 0 | BS133: 0 | BT133: 0 | BU133: 0 | BV133: 0
D134: Roadside mowing biodiesel | E134: =C126*'Operation and maintenance'!F24*'Calculation factors'!D86 -> 0 | F134: litre biodiesel | G134: 1 | H134: Operation | I134: Biodiesel | J134: ='Emission factors'!B18 -> Biodiesel (WTT) | K134: =SUMIF('Emission factors'!B:B,Calculations!J134,'Emission factors'!D:D) -> 1.92 | L134: =VLOOKUP(J134,'Emission factors'!B:C,2,FALSE) -> kg CO2e/litre | M134: 0 | N134: =SUMIF($O$125:$BV$125,"<=" & 'Project description and input'!$C$14,O134:BL134) -> 0 | O134: 0 | P134: 0 | Q134: 0 | R134: 0 | S134: 0 | T134: 0 | U134: 0 | V134: 0 | W134: 0 | X134: 0 | Y134: 0 | Z134: 0 | AA134: 0 | AB134: 0 | AC134: 0 | AD134: 0 | AE134: 0 | AF134: 0 | AG134: 0 | AH134: 0 | AI134: 0 | AJ134: 0 | AK134: 0 | AL134: 0 | AM134: 0 | AN134: 0 | AO134: 0 | AP134: 0 | AQ134: 0 | AR134: 0 | AS134: 0 | AT134: 0 | AU134: 0 | AV134: 0 | AW134: 0 | AX134: 0 | AY134: 0 | AZ134: 0 | BA134: 0 | BB134: 0 | BC134: 0 | BD134: 0 | BE134: 0 | BF134: 0 | BG134: 0 | BH134: 0 | BI134: 0 | BJ134: 0 | BK134: 0 | BL134: 0 | BM134: 0 | BN134: 0 | BO134: 0 | BP134: 0 | BQ134: 0 | BR134: 0 | BS134: 0 | BT134: 0 | BU134: 0 | BV134: 0
D135: Roadside mowing electricity/hydrogen | E135: =C126*'Operation and maintenance'!G24*'Calculation factors'!D86 -> 0 | F135: kWh | G135: 1 | H135: Operation | I135: Electricity | J135: ='Emission factors'!B24 -> Electricity 55 years, European mix | K135: =SUMIF('Emission factors'!B:B,Calculations!J135,'Emission factors'!D:D) -> 0.136 | L135: =VLOOKUP(J135,'Emission factors'!B:C,2,FALSE) -> kg CO2e/kWh | M135: 0 | N135: =SUMIF($O$125:$BV$125,"<=" & 'Project description and input'!$C$14,O135:BL135) -> 0 | O135: 0 | P135: 0 | Q135: 0 | R135: 0 | S135: 0 | T135: 0 | U135: 0 | V135: 0 | W135: 0 | X135: 0 | Y135: 0 | Z135: 0 | AA135: 0 | AB135: 0 | AC135: 0 | AD135: 0 | AE135: 0 | AF135: 0 | AG135: 0 | AH135: 0 | AI135: 0 | AJ135: 0 | AK135: 0 | AL135: 0 | AM135: 0 | AN135: 0 | AO135: 0 | AP135: 0 | AQ135: 0 | AR135: 0 | AS135: 0 | AT135: 0 | AU135: 0 | AV135: 0 | AW135: 0 | AX135: 0 | AY135: 0 | AZ135: 0 | BA135: 0 | BB135: 0 | BC135: 0 | BD135: 0 | BE135: 0 | BF135: 0 | BG135: 0 | BH135: 0 | BI135: 0 | BJ135: 0 | BK135: 0 | BL135: 0 | BM135: 0 | BN135: 0 | BO135: 0 | BP135: 0 | BQ135: 0 | BR135: 0 | BS135: 0 | BT135: 0 | BU135: 0 | BV135: 0
D136: Ditch clearing diesel | E136: =C126*'Operation and maintenance'!E25*'Calculation factors'!D86 -> 0 | F136: litre diesel | G136: ='Calculation factors'!D55 -> 3 | H136: Operation | I136: Diesel | J136: ='Emission factors'!B20 -> Fossil diesel (WTW) | K136: =SUMIF('Emission factors'!B:B,Calculations!J136,'Emission factors'!D:D) -> 3.24 | L136: =VLOOKUP(J136,'Emission factors'!B:C,2,FALSE) -> kg CO2e/litre | M136: 0 | N136: =SUMIF($O$125:$BV$125,"<=" & 'Project description and input'!$C$14,O136:BL136) -> 0 | O136: =IF(MOD(O$125,$G136)=0,$M136,"") ->  | Q136: 0 | T136: 0 | W136: 0 | Y136: =IF(MOD(Y$125,$G136)=0,$M136,"") ->  | Z136: 0 | AC136: 0 | AF136: 0 | AI136: =IF(MOD(AI$125,$G136)=0,$M136,"") -> 0 | AL136: 0 | AO136: 0 | AR136: 0 | AS136: =IF(MOD(AS$125,$G136)=0,$M136,"") ->  | AU136: 0 | AX136: 0 | BA136: 0 | BC136: =IF(MOD(BC$125,$G136)=0,$M136,"") ->  | BD136: 0 | BG136: 0 | BJ136: 0 | BM136: =IF(MOD(BM$125,$G136)=0,$M136,"") -> 0 | BP136: 0 | BS136: 0 | BV136: 0
D137: Ditch clearing biodiesel | E137: =C126*'Operation and maintenance'!F25*'Calculation factors'!D86 -> 0 | F137: litre biodiesel | G137: ='Calculation factors'!D55 -> 3 | H137: Operation | I137: Biodiesel | J137: ='Emission factors'!B18 -> Biodiesel (WTT) | K137: =SUMIF('Emission factors'!B:B,Calculations!J137,'Emission factors'!D:D) -> 1.92 | L137: =VLOOKUP(J137,'Emission factors'!B:C,2,FALSE) -> kg CO2e/litre | M137: 0 | N137: =SUMIF($O$125:$BV$125,"<=" & 'Project description and input'!$C$14,O137:BL137) -> 0 | Q137: 0 | T137: 0 | W137: 0 | Z137: 0 | AC137: 0 | AF137: 0 | AI137: 0 | AL137: 0 | AO137: 0 | AR137: 0 | AU137: 0 | AX137: 0 | BA137: 0 | BD137: 0 | BG137: 0 | BJ137: 0 | BM137: 0 | BP137: 0 | BS137: 0 | BV137: 0
D138: Ditch clearing electricity/hydrogen | E138: =C126*'Operation and maintenance'!G25*'Calculation factors'!D86 -> 0 | F138: kWh | G138: ='Calculation factors'!D55 -> 3 | H138: Operation | I138: Electricity | J138: ='Emission factors'!B24 -> Electricity 55 years, European mix | K138: =SUMIF('Emission factors'!B:B,Calculations!J138,'Emission factors'!D:D) -> 0.136 | L138: =VLOOKUP(J138,'Emission factors'!B:C,2,FALSE) -> kg CO2e/kWh | M138: 0 | N138: =SUMIF($O$125:$BV$125,"<=" & 'Project description and input'!$C$14,O138:BL138) -> 0 | Q138: 0 | T138: 0 | W138: 0 | Z138: 0 | AC138: 0 | AF138: 0 | AI138: 0 | AL138: 0 | AO138: 0 | AR138: 0 | AU138: 0 | AX138: 0 | BA138: 0 | BD138: 0 | BG138: 0 | BJ138: 0 | BM138: 0 | BP138: 0 | BS138: 0 | BV138: 0
D139: Transport soil masses ditch clearing diesel | E139: =C126*'Operation and maintenance'!F15*'Calculation factors'!D86 -> 0 | F139: litre diesel | G139: ='Calculation factors'!D55 -> 3 | H139: Operation | I139: Diesel | J139: ='Emission factors'!B20 -> Fossil diesel (WTW) | K139: =SUMIF('Emission factors'!B:B,Calculations!J139,'Emission factors'!D:D) -> 3.24 | L139: =VLOOKUP(J139,'Emission factors'!B:C,2,FALSE) -> kg CO2e/litre | M139: 0 | N139: =SUMIF($O$125:$BV$125,"<=" & 'Project description and input'!$C$14,O139:BL139) -> 0 | Q139: 0 | T139: 0 | W139: 0 | Z139: 0 | AC139: 0 | AF139: 0 | AI139: 0 | AL139: 0 | AO139: 0 | AR139: 0 | AU139: 0 | AX139: 0 | BA139: 0 | BD139: 0 | BG139: 0 | BJ139: 0 | BM139: 0 | BP139: 0 | BS139: 0 | BV139: 0
D140: Transport soil masses ditch clearing biodiesel | E140: =C126*'Operation and maintenance'!G15*'Calculation factors'!D86 -> 0 | F140: litre biodiesel | G140: ='Calculation factors'!D55 -> 3 | H140: Operation | I140: Biodiesel | J140: ='Emission factors'!B18 -> Biodiesel (WTT) | K140: =SUMIF('Emission factors'!B:B,Calculations!J140,'Emission factors'!D:D) -> 1.92 | L140: =VLOOKUP(J140,'Emission factors'!B:C,2,FALSE) -> kg CO2e/litre | M140: 0 | N140: =SUMIF($O$125:$BV$125,"<=" & 'Project description and input'!$C$14,O140:BL140) -> 0 | Q140: 0 | T140: 0 | W140: 0 | Z140: 0 | AC140: 0 | AF140: 0 | AI140: 0 | AL140: 0 | AO140: 0 | AR140: 0 | AU140: 0 | AX140: 0 | BA140: 0 | BD140: 0 | BG140: 0 | BJ140: 0 | BM140: 0 | BP140: 0 | BS140: 0 | BV140: 0
D141: Transport soil masses ditch clearing electricity/hydrogen | E141: =C126*'Operation and maintenance'!H15*'Calculation factors'!D86 -> 0 | F141: kWh | G141: ='Calculation factors'!D55 -> 3 | H141: Operation | I141: Electricity | J141: ='Emission factors'!B24 -> Electricity 55 years, European mix | K141: =SUMIF('Emission factors'!B:B,Calculations!J141,'Emission factors'!D:D) -> 0.136 | L141: =VLOOKUP(J141,'Emission factors'!B:C,2,FALSE) -> kg CO2e/kWh | M141: 0 | N141: =SUMIF($O$125:$BV$125,"<=" & 'Project description and input'!$C$14,O141:BL141) -> 0 | Q141: 0 | T141: 0 | W141: 0 | Z141: 0 | AC141: 0 | AF141: 0 | AI141: 0 | AL141: 0 | AO141: 0 | AR141: 0 | AU141: 0 | AX141: 0 | BA141: 0 | BD141: 0 | BG141: 0 | BJ141: 0 | BM141: 0 | BP141: 0 | BS141: 0 | BV141: 0
D142: Sweeping diesel | E142: =C126*'Operation and maintenance'!E26*'Calculation factors'!D80 -> 0 | F142: litre diesel | G142: 1 | H142: Operation | I142: Diesel | J142: ='Emission factors'!B20 -> Fossil diesel (WTW) | K142: =SUMIF('Emission factors'!B:B,Calculations!J142,'Emission factors'!D:D) -> 3.24 | L142: =VLOOKUP(J142,'Emission factors'!B:C,2,FALSE) -> kg CO2e/litre | M142: 0 | N142: =SUMIF($O$125:$BV$125,"<=" & 'Project description and input'!$C$14,O142:BL142) -> 0 | O142: 0 | P142: 0 | Q142: 0 | R142: 0 | S142: 0 | T142: 0 | U142: 0 | V142: 0 | W142: 0 | X142: 0 | Y142: 0 | Z142: 0 | AA142: 0 | AB142: 0 | AC142: 0 | AD142: 0 | AE142: 0 | AF142: 0 | AG142: 0 | AH142: 0 | AI142: 0 | AJ142: 0 | AK142: 0 | AL142: 0 | AM142: 0 | AN142: 0 | AO142: 0 | AP142: 0 | AQ142: 0 | AR142: 0 | AS142: 0 | AT142: 0 | AU142: 0 | AV142: 0 | AW142: 0 | AX142: 0 | AY142: 0 | AZ142: 0 | BA142: 0 | BB142: 0 | BC142: 0 | BD142: 0 | BE142: 0 | BF142: 0 | BG142: 0 | BH142: 0 | BI142: 0 | BJ142: 0 | BK142: 0 | BL142: 0 | BM142: 0 | BN142: 0 | BO142: 0 | BP142: 0 | BQ142: 0 | BR142: 0 | BS142: 0 | BT142: 0 | BU142: 0 | BV142: 0
D143: Sweeping biodiesel | E143: =C126*'Operation and maintenance'!F26*'Calculation factors'!D80 -> 0 | F143: litre biodiesel | G143: 1 | H143: Operation | I143: Biodiesel | J143: ='Emission factors'!B18 -> Biodiesel (WTT) | K143: =SUMIF('Emission factors'!B:B,Calculations!J143,'Emission factors'!D:D) -> 1.92 | L143: =VLOOKUP(J143,'Emission factors'!B:C,2,FALSE) -> kg CO2e/litre | M143: 0 | N143: =SUMIF($O$125:$BV$125,"<=" & 'Project description and input'!$C$14,O143:BL143) -> 0 | O143: 0 | P143: 0 | Q143: 0 | R143: 0 | S143: 0 | T143: 0 | U143: 0 | V143: 0 | W143: 0 | X143: 0 | Y143: 0 | Z143: 0 | AA143: 0 | AB143: 0 | AC143: 0 | AD143: 0 | AE143: 0 | AF143: 0 | AG143: 0 | AH143: 0 | AI143: 0 | AJ143: 0 | AK143: 0 | AL143: 0 | AM143: 0 | AN143: 0 | AO143: 0 | AP143: 0 | AQ143: 0 | AR143: 0 | AS143: 0 | AT143: 0 | AU143: 0 | AV143: 0 | AW143: 0 | AX143: 0 | AY143: 0 | AZ143: 0 | BA143: 0 | BB143: 0 | BC143: 0 | BD143: 0 | BE143: 0 | BF143: 0 | BG143: 0 | BH143: 0 | BI143: 0 | BJ143: 0 | BK143: 0 | BL143: 0 | BM143: 0 | BN143: 0 | BO143: 0 | BP143: 0 | BQ143: 0 | BR143: 0 | BS143: 0 | BT143: 0 | BU143: 0 | BV143: 0
D144: Sweeping electricity/hydrogen | E144: =C126*'Operation and maintenance'!G26*'Calculation factors'!D80 -> 0 | F144: kWh | G144: 1 | H144: Operation | I144: Electricity | J144: ='Emission factors'!B24 -> Electricity 55 years, European mix | K144: =SUMIF('Emission factors'!B:B,Calculations!J144,'Emission factors'!D:D) -> 0.136 | L144: =VLOOKUP(J144,'Emission factors'!B:C,2,FALSE) -> kg CO2e/kWh | M144: 0 | N144: =SUMIF($O$125:$BV$125,"<=" & 'Project description and input'!$C$14,O144:BL144) -> 0 | O144: 0 | P144: 0 | Q144: 0 | R144: 0 | S144: 0 | T144: 0 | U144: 0 | V144: 0 | W144: 0 | X144: 0 | Y144: 0 | Z144: 0 | AA144: 0 | AB144: 0 | AC144: 0 | AD144: 0 | AE144: 0 | AF144: 0 | AG144: 0 | AH144: 0 | AI144: 0 | AJ144: 0 | AK144: 0 | AL144: 0 | AM144: 0 | AN144: 0 | AO144: 0 | AP144: 0 | AQ144: 0 | AR144: 0 | AS144: 0 | AT144: 0 | AU144: 0 | AV144: 0 | AW144: 0 | AX144: 0 | AY144: 0 | AZ144: 0 | BA144: 0 | BB144: 0 | BC144: 0 | BD144: 0 | BE144: 0 | BF144: 0 | BG144: 0 | BH144: 0 | BI144: 0 | BJ144: 0 | BK144: 0 | BL144: 0 | BM144: 0 | BN144: 0 | BO144: 0 | BP144: 0 | BQ144: 0 | BR144: 0 | BS144: 0 | BT144: 0 | BU144: 0 | BV144: 0
D145: Salting diesel | E145: =C126*'Operation and maintenance'!E27*('Calculation factors'!D80/2) -> 0 | F145: litre diesel | G145: 1 | H145: Operation | I145: Diesel | J145: ='Emission factors'!B20 -> Fossil diesel (WTW) | K145: =SUMIF('Emission factors'!B:B,Calculations!J145,'Emission factors'!D:D) -> 3.24 | L145: =VLOOKUP(J145,'Emission factors'!B:C,2,FALSE) -> kg CO2e/litre | M145: 0 | N145: =SUMIF($O$125:$BV$125,"<=" & 'Project description and input'!$C$14,O145:BL145) -> 0 | O145: 0 | P145: 0 | Q145: 0 | R145: 0 | S145: 0 | T145: 0 | U145: 0 | V145: 0 | W145: 0 | X145: 0 | Y145: 0 | Z145: 0 | AA145: 0 | AB145: 0 | AC145: 0 | AD145: 0 | AE145: 0 | AF145: 0 | AG145: 0 | AH145: 0 | AI145: 0 | AJ145: 0 | AK145: 0 | AL145: 0 | AM145: 0 | AN145: 0 | AO145: 0 | AP145: 0 | AQ145: 0 | AR145: 0 | AS145: 0 | AT145: 0 | AU145: 0 | AV145: 0 | AW145: 0 | AX145: 0 | AY145: 0 | AZ145: 0 | BA145: 0 | BB145: 0 | BC145: 0 | BD145: 0 | BE145: 0 | BF145: 0 | BG145: 0 | BH145: 0 | BI145: 0 | BJ145: 0 | BK145: 0 | BL145: 0 | BM145: 0 | BN145: 0 | BO145: 0 | BP145: 0 | BQ145: 0 | BR145: 0 | BS145: 0 | BT145: 0 | BU145: 0 | BV145: 0
D146: Salting biodiesel | E146: =C126*'Operation and maintenance'!F27*('Calculation factors'!D80/2) -> 0 | F146: litre biodiesel | G146: 1 | H146: Operation | I146: Biodiesel | J146: ='Emission factors'!B18 -> Biodiesel (WTT) | K146: =SUMIF('Emission factors'!B:B,Calculations!J146,'Emission factors'!D:D) -> 1.92 | L146: =VLOOKUP(J146,'Emission factors'!B:C,2,FALSE) -> kg CO2e/litre | M146: 0 | N146: =SUMIF($O$125:$BV$125,"<=" & 'Project description and input'!$C$14,O146:BL146) -> 0 | O146: =IF(MOD(O$125,$G146)=0,$M146,"") -> 0 | P146: 0 | Q146: 0 | R146: 0 | S146: 0 | T146: 0 | U146: 0 | V146: 0 | W146: 0 | X146: 0 | Y146: =IF(MOD(Y$125,$G146)=0,$M146,"") -> 0 | Z146: 0 | AA146: 0 | AB146: 0 | AC146: 0 | AD146: 0 | AE146: 0 | AF146: 0 | AG146: 0 | AH146: 0 | AI146: =IF(MOD(AI$125,$G146)=0,$M146,"") -> 0 | AJ146: 0 | AK146: 0 | AL146: 0 | AM146: 0 | AN146: 0 | AO146: 0 | AP146: 0 | AQ146: 0 | AR146: 0 | AS146: =IF(MOD(AS$125,$G146)=0,$M146,"") -> 0 | AT146: 0 | AU146: 0 | AV146: 0 | AW146: 0 | AX146: 0 | AY146: 0 | AZ146: 0 | BA146: 0 | BB146: 0 | BC146: =IF(MOD(BC$125,$G146)=0,$M146,"") -> 0 | BD146: 0 | BE146: 0 | BF146: 0 | BG146: 0 | BH146: 0 | BI146: 0 | BJ146: 0 | BK146: 0 | BL146: 0 | BM146: =IF(MOD(BM$125,$G146)=0,$M146,"") -> 0 | BN146: 0 | BO146: 0 | BP146: 0 | BQ146: 0 | BR146: 0 | BS146: 0 | BT146: 0 | BU146: 0 | BV146: 0
D147: Salting electricity/hydrogen | E147: =C126*'Operation and maintenance'!G27*('Calculation factors'!D80/2) -> 0 | F147: kWh | G147: 1 | H147: Operation | I147: Electricity | J147: ='Emission factors'!B24 -> Electricity 55 years, European mix | K147: =SUMIF('Emission factors'!B:B,Calculations!J147,'Emission factors'!D:D) -> 0.136 | L147: =VLOOKUP(J147,'Emission factors'!B:C,2,FALSE) -> kg CO2e/kWh | M147: 0 | N147: =SUMIF($O$125:$BV$125,"<=" & 'Project description and input'!$C$14,O147:BL147) -> 0 | O147: 0 | P147: 0 | Q147: 0 | R147: 0 | S147: 0 | T147: 0 | U147: 0 | V147: 0 | W147: 0 | X147: 0 | Y147: 0 | Z147: 0 | AA147: 0 | AB147: 0 | AC147: 0 | AD147: 0 | AE147: 0 | AF147: 0 | AG147: 0 | AH147: 0 | AI147: 0 | AJ147: 0 | AK147: 0 | AL147: 0 | AM147: 0 | AN147: 0 | AO147: 0 | AP147: 0 | AQ147: 0 | AR147: 0 | AS147: 0 | AT147: 0 | AU147: 0 | AV147: 0 | AW147: 0 | AX147: 0 | AY147: 0 | AZ147: 0 | BA147: 0 | BB147: 0 | BC147: 0 | BD147: 0 | BE147: 0 | BF147: 0 | BG147: 0 | BH147: 0 | BI147: 0 | BJ147: 0 | BK147: 0 | BL147: 0 | BM147: 0 | BN147: 0 | BO147: 0 | BP147: 0 | BQ147: 0 | BR147: 0 | BS147: 0 | BT147: 0 | BU147: 0 | BV147: 0
D148: Salt | E148: =C126*'Operation and maintenance'!E16 -> 0 | F148: kg salt | G148: 1 | H148: Operation | I148: Salt | J148: ='Emission factors'!B12 -> Salt | K148: =SUMIF('Emission factors'!B:B,Calculations!J148,'Emission factors'!D:D) -> 0.179 | L148: =VLOOKUP(J148,'Emission factors'!B:C,2,FALSE) -> kg CO2e/kg | M148: 0 | N148: =SUMIF($O$125:$BV$125,"<=" & 'Project description and input'!$C$14,O148:BL148) -> 0 | O148: 0 | P148: 0 | Q148: 0 | R148: 0 | S148: 0 | T148: 0 | U148: 0 | V148: 0 | W148: 0 | X148: 0 | Y148: 0 | Z148: 0 | AA148: 0 | AB148: 0 | AC148: 0 | AD148: 0 | AE148: 0 | AF148: 0 | AG148: 0 | AH148: 0 | AI148: 0 | AJ148: 0 | AK148: 0 | AL148: 0 | AM148: 0 | AN148: 0 | AO148: 0 | AP148: 0 | AQ148: 0 | AR148: 0 | AS148: 0 | AT148: 0 | AU148: 0 | AV148: 0 | AW148: 0 | AX148: 0 | AY148: 0 | AZ148: 0 | BA148: 0 | BB148: 0 | BC148: 0 | BD148: 0 | BE148: 0 | BF148: 0 | BG148: 0 | BH148: 0 | BI148: 0 | BJ148: 0 | BK148: 0 | BL148: 0 | BM148: 0 | BN148: 0 | BO148: 0 | BP148: 0 | BQ148: 0 | BR148: 0 | BS148: 0 | BT148: 0 | BU148: 0 | BV148: 0
D149: Salt transport diesel | E149: =C126*'Operation and maintenance'!F16 -> 0 | F149: litre diesel | G149: 1 | H149: Operation | I149: Diesel | J149: ='Emission factors'!B20 -> Fossil diesel (WTW) | K149: =SUMIF('Emission factors'!B:B,Calculations!J149,'Emission factors'!D:D) -> 3.24 | L149: =VLOOKUP(J149,'Emission factors'!B:C,2,FALSE) -> kg CO2e/litre | M149: 0 | N149: =SUMIF($O$125:$BV$125,"<=" & 'Project description and input'!$C$14,O149:BL149) -> 0 | O149: 0 | P149: 0 | Q149: 0 | R149: 0 | S149: 0 | T149: 0 | U149: 0 | V149: 0 | W149: 0 | X149: 0 | Y149: 0 | Z149: 0 | AA149: 0 | AB149: 0 | AC149: 0 | AD149: 0 | AE149: 0 | AF149: 0 | AG149: 0 | AH149: 0 | AI149: 0 | AJ149: 0 | AK149: 0 | AL149: 0 | AM149: 0 | AN149: 0 | AO149: 0 | AP149: 0 | AQ149: 0 | AR149: 0 | AS149: 0 | AT149: 0 | AU149: 0 | AV149: 0 | AW149: 0 | AX149: 0 | AY149: 0 | AZ149: 0 | BA149: 0 | BB149: 0 | BC149: 0 | BD149: 0 | BE149: 0 | BF149: 0 | BG149: 0 | BH149: 0 | BI149: 0 | BJ149: 0 | BK149: 0 | BL149: 0 | BM149: 0 | BN149: 0 | BO149: 0 | BP149: 0 | BQ149: 0 | BR149: 0 | BS149: 0 | BT149: 0 | BU149: 0 | BV149: 0
D150: Salt transport biodiesel | E150: =C126*'Operation and maintenance'!G16 -> 0 | F150: litre biodiesel | G150: 1 | H150: Operation | I150: Biodiesel | J150: ='Emission factors'!B18 -> Biodiesel (WTT) | K150: =SUMIF('Emission factors'!B:B,Calculations!J150,'Emission factors'!D:D) -> 1.92 | L150: =VLOOKUP(J150,'Emission factors'!B:C,2,FALSE) -> kg CO2e/litre | M150: 0 | N150: =SUMIF($O$125:$BV$125,"<=" & 'Project description and input'!$C$14,O150:BL150) -> 0 | O150: 0 | P150: 0 | Q150: 0 | R150: 0 | S150: 0 | T150: 0 | U150: 0 | V150: 0 | W150: 0 | X150: 0 | Y150: 0 | Z150: 0 | AA150: 0 | AB150: 0 | AC150: 0 | AD150: 0 | AE150: 0 | AF150: 0 | AG150: 0 | AH150: 0 | AI150: 0 | AJ150: 0 | AK150: 0 | AL150: 0 | AM150: 0 | AN150: 0 | AO150: 0 | AP150: 0 | AQ150: 0 | AR150: 0 | AS150: 0 | AT150: 0 | AU150: 0 | AV150: 0 | AW150: 0 | AX150: 0 | AY150: 0 | AZ150: 0 | BA150: 0 | BB150: 0 | BC150: 0 | BD150: 0 | BE150: 0 | BF150: 0 | BG150: 0 | BH150: 0 | BI150: 0 | BJ150: 0 | BK150: 0 | BL150: 0 | BM150: 0 | BN150: 0 | BO150: 0 | BP150: 0 | BQ150: 0 | BR150: 0 | BS150: 0 | BT150: 0 | BU150: 0 | BV150: 0
D151: Salttransport electrical/hydrogen | E151: =C126*'Operation and maintenance'!H16 -> 0 | F151: kWh | G151: 1 | H151: Operation | I151: Electricity | J151: ='Emission factors'!B24 -> Electricity 55 years, European mix | K151: =SUMIF('Emission factors'!B:B,Calculations!J151,'Emission factors'!D:D) -> 0.136 | L151: =VLOOKUP(J151,'Emission factors'!B:C,2,FALSE) -> kg CO2e/kWh | M151: 0 | N151: =SUMIF($O$125:$BV$125,"<=" & 'Project description and input'!$C$14,O151:BL151) -> 0 | O151: 0 | P151: 0 | Q151: 0 | R151: 0 | S151: 0 | T151: 0 | U151: 0 | V151: 0 | W151: 0 | X151: 0 | Y151: 0 | Z151: 0 | AA151: 0 | AB151: 0 | AC151: 0 | AD151: 0 | AE151: 0 | AF151: 0 | AG151: 0 | AH151: 0 | AI151: 0 | AJ151: 0 | AK151: 0 | AL151: 0 | AM151: 0 | AN151: 0 | AO151: 0 | AP151: 0 | AQ151: 0 | AR151: 0 | AS151: 0 | AT151: 0 | AU151: 0 | AV151: 0 | AW151: 0 | AX151: 0 | AY151: 0 | AZ151: 0 | BA151: 0 | BB151: 0 | BC151: 0 | BD151: 0 | BE151: 0 | BF151: 0 | BG151: 0 | BH151: 0 | BI151: 0 | BJ151: 0 | BK151: 0 | BL151: 0 | BM151: 0 | BN151: 0 | BO151: 0 | BP151: 0 | BQ151: 0 | BR151: 0 | BS151: 0 | BT151: 0 | BU151: 0 | BV151: 0
D152: Ploughing diesel | E152: =C126*'Operation and maintenance'!E28 -> 0 | F152: litre diesel | G152: 1 | H152: Operation | I152: Diesel | J152: ='Emission factors'!B20 -> Fossil diesel (WTW) | K152: =SUMIF('Emission factors'!B:B,Calculations!J152,'Emission factors'!D:D) -> 3.24 | L152: =VLOOKUP(J152,'Emission factors'!B:C,2,FALSE) -> kg CO2e/litre | M152: 0 | N152: =SUMIF($O$125:$BV$125,"<=" & 'Project description and input'!$C$14,O152:BL152) -> 0 | O152: 0 | P152: 0 | Q152: 0 | R152: 0 | S152: 0 | T152: 0 | U152: 0 | V152: 0 | W152: 0 | X152: 0 | Y152: 0 | Z152: 0 | AA152: 0 | AB152: 0 | AC152: 0 | AD152: 0 | AE152: 0 | AF152: 0 | AG152: 0 | AH152: 0 | AI152: 0 | AJ152: 0 | AK152: 0 | AL152: 0 | AM152: 0 | AN152: 0 | AO152: 0 | AP152: 0 | AQ152: 0 | AR152: 0 | AS152: 0 | AT152: 0 | AU152: 0 | AV152: 0 | AW152: 0 | AX152: 0 | AY152: 0 | AZ152: 0 | BA152: 0 | BB152: 0 | BC152: 0 | BD152: 0 | BE152: 0 | BF152: 0 | BG152: 0 | BH152: 0 | BI152: 0 | BJ152: 0 | BK152: 0 | BL152: 0 | BM152: 0 | BN152: 0 | BO152: 0 | BP152: 0 | BQ152: 0 | BR152: 0 | BS152: 0 | BT152: 0 | BU152: 0 | BV152: 0
D153: Ploughing biodiesel | E153: =C126*'Operation and maintenance'!F28 -> 0 | F153: litre biodiesel | G153: 1 | H153: Operation | I153: Biodiesel | J153: ='Emission factors'!B18 -> Biodiesel (WTT) | K153: =SUMIF('Emission factors'!B:B,Calculations!J153,'Emission factors'!D:D) -> 1.92 | L153: =VLOOKUP(J153,'Emission factors'!B:C,2,FALSE) -> kg CO2e/litre | M153: 0 | N153: =SUMIF($O$125:$BV$125,"<=" & 'Project description and input'!$C$14,O153:BL153) -> 0 | O153: 0 | P153: 0 | Q153: 0 | R153: 0 | S153: 0 | T153: 0 | U153: 0 | V153: 0 | W153: 0 | X153: 0 | Y153: 0 | Z153: 0 | AA153: 0 | AB153: 0 | AC153: 0 | AD153: 0 | AE153: 0 | AF153: 0 | AG153: 0 | AH153: 0 | AI153: 0 | AJ153: 0 | AK153: 0 | AL153: 0 | AM153: 0 | AN153: 0 | AO153: 0 | AP153: 0 | AQ153: 0 | AR153: 0 | AS153: 0 | AT153: 0 | AU153: 0 | AV153: 0 | AW153: 0 | AX153: 0 | AY153: 0 | AZ153: 0 | BA153: 0 | BB153: 0 | BC153: 0 | BD153: 0 | BE153: 0 | BF153: 0 | BG153: 0 | BH153: 0 | BI153: 0 | BJ153: 0 | BK153: 0 | BL153: 0 | BM153: 0 | BN153: 0 | BO153: 0 | BP153: 0 | BQ153: 0 | BR153: 0 | BS153: 0 | BT153: 0 | BU153: 0 | BV153: 0
D154: Ploughing electricity/hydrogen | E154: =C126*'Operation and maintenance'!G28 -> 0 | F154: kWh | G154: 1 | H154: Operation | I154: Electricity | J154: ='Emission factors'!B24 -> Electricity 55 years, European mix | K154: =SUMIF('Emission factors'!B:B,Calculations!J154,'Emission factors'!D:D) -> 0.136 | L154: =VLOOKUP(J154,'Emission factors'!B:C,2,FALSE) -> kg CO2e/kWh | M154: 0 | N154: =SUMIF($O$125:$BV$125,"<=" & 'Project description and input'!$C$14,O154:BL154) -> 0 | O154: 0 | P154: 0 | Q154: 0 | R154: 0 | S154: 0 | T154: 0 | U154: 0 | V154: 0 | W154: 0 | X154: 0 | Y154: 0 | Z154: 0 | AA154: 0 | AB154: 0 | AC154: 0 | AD154: 0 | AE154: 0 | AF154: 0 | AG154: 0 | AH154: 0 | AI154: 0 | AJ154: 0 | AK154: 0 | AL154: 0 | AM154: 0 | AN154: 0 | AO154: 0 | AP154: 0 | AQ154: 0 | AR154: 0 | AS154: 0 | AT154: 0 | AU154: 0 | AV154: 0 | AW154: 0 | AX154: 0 | AY154: 0 | AZ154: 0 | BA154: 0 | BB154: 0 | BC154: 0 | BD154: 0 | BE154: 0 | BF154: 0 | BG154: 0 | BH154: 0 | BI154: 0 | BJ154: 0 | BK154: 0 | BL154: 0 | BM154: 0 | BN154: 0 | BO154: 0 | BP154: 0 | BQ154: 0 | BR154: 0 | BS154: 0 | BT154: 0 | BU154: 0 | BV154: 0
D155: Guard rail | E155: =C126*'Additions road'!D7*'Calculation factors'!D84 -> 0 | F155: kg steel | G155: ='Calculation factors'!D52 -> 30 | H155: Maintenance | I155: Steel | J155: ='Emission factors'!B14 -> Steel | K155: =SUMIF('Emission factors'!B:B,Calculations!J155,'Emission factors'!D:D) -> 2.1235 | L155: =VLOOKUP(J155,'Emission factors'!B:C,2,FALSE) -> kg CO2e/kg | M155: 0 | N155: =SUMIF($O$125:$BV$125,"<=" & 'Project description and input'!$C$14,O155:BL155) -> 0 | AR155: 0 | BV155: 0
D156: Replacement guard rail diesel | E156: =C126*'Additions road'!E7*'Calculation factors'!D84 -> 0 | F156: litre diesel | G156: ='Calculation factors'!D52 -> 30 | H156: Maintenance | I156: Diesel | J156: ='Emission factors'!B20 -> Fossil diesel (WTW) | K156: =SUMIF('Emission factors'!B:B,Calculations!J156,'Emission factors'!D:D) -> 3.24 | L156: =VLOOKUP(J156,'Emission factors'!B:C,2,FALSE) -> kg CO2e/litre | M156: 0 | N156: =SUMIF($O$125:$BV$125,"<=" & 'Project description and input'!$C$14,O156:BL156) -> 0 | O156: =IF(MOD(O$125,$G156)=0,$M156,"") ->  | Y156: =IF(MOD(Y$125,$G156)=0,$M156,"") ->  | AI156: =IF(MOD(AI$125,$G156)=0,$M156,"") ->  | AR156: 0 | AS156: =IF(MOD(AS$125,$G156)=0,$M156,"") ->  | BC156: =IF(MOD(BC$125,$G156)=0,$M156,"") ->  | BM156: =IF(MOD(BM$125,$G156)=0,$M156,"") ->  | BV156: 0
D157: Replacement guard rail biodiesel | E157: =C126*'Additions road'!F7*'Calculation factors'!D84 -> 0 | F157: litre biodiesel | G157: ='Calculation factors'!D52 -> 30 | H157: Maintenance | I157: Biodiesel | J157: ='Emission factors'!B18 -> Biodiesel (WTT) | K157: =SUMIF('Emission factors'!B:B,Calculations!J157,'Emission factors'!D:D) -> 1.92 | L157: =VLOOKUP(J157,'Emission factors'!B:C,2,FALSE) -> kg CO2e/litre | M157: 0 | N157: =SUMIF($O$125:$BV$125,"<=" & 'Project description and input'!$C$14,O157:BL157) -> 0 | AR157: 0 | BV157: 0
D158: Replacement guard rail electricity/hydrogen | E158: =C126*'Additions road'!G7*'Calculation factors'!D84 -> 0 | F158: kWh | G158: ='Calculation factors'!D52 -> 30 | H158: Maintenance | I158: Electricity | J158: ='Emission factors'!B24 -> Electricity 55 years, European mix | K158: =SUMIF('Emission factors'!B:B,Calculations!J158,'Emission factors'!D:D) -> 0.136 | L158: =VLOOKUP(J158,'Emission factors'!B:C,2,FALSE) -> kg CO2e/kWh | M158: 0 | N158: =SUMIF($O$125:$BV$125,"<=" & 'Project description and input'!$C$14,O158:BL158) -> 0 | AR158: 0 | BV158: 0
D159: Transport of guard rail diesel | E159: =C126*'Operation and maintenance'!F19*'Calculation factors'!D84 -> 0 | F159: litre diesel | G159: ='Calculation factors'!D52 -> 30 | H159: Maintenance | I159: Diesel | J159: ='Emission factors'!B20 -> Fossil diesel (WTW) | K159: =SUMIF('Emission factors'!B:B,Calculations!J159,'Emission factors'!D:D) -> 3.24 | L159: =VLOOKUP(J159,'Emission factors'!B:C,2,FALSE) -> kg CO2e/litre | M159: =(E159*K159)/1000 -> 0 | N159: =SUMIF($O$125:$BV$125,"<=" & 'Project description and input'!$C$14,O159:BL159) -> 0 | AR159: 0 | BV159: 0
D160: Transport of guard rail biodiesel | E160: =C126*'Operation and maintenance'!G19*'Calculation factors'!D84 -> 0 | F160: litre biodiesel | G160: ='Calculation factors'!D52 -> 30 | H160: Maintenance | I160: Biodiesel | J160: ='Emission factors'!B18 -> Biodiesel (WTT) | K160: =SUMIF('Emission factors'!B:B,Calculations!J160,'Emission factors'!D:D) -> 1.92 | L160: =VLOOKUP(J160,'Emission factors'!B:C,2,FALSE) -> kg CO2e/litre | M160: 0 | N160: =SUMIF($O$125:$BV$125,"<=" & 'Project description and input'!$C$14,O160:BL160) -> 0 | AR160: 0 | BV160: 0
D161: Transport of guard rail electricity/hydrogen | E161: =C126*'Operation and maintenance'!H19*'Calculation factors'!D84 -> 0 | F161: kWh | G161: ='Calculation factors'!D52 -> 30 | H161: Maintenance | I161: Electricity | J161: ='Emission factors'!B24 -> Electricity 55 years, European mix | K161: =SUMIF('Emission factors'!B:B,Calculations!J161,'Emission factors'!D:D) -> 0.136 | L161: =VLOOKUP(J161,'Emission factors'!B:C,2,FALSE) -> kg CO2e/kWh | M161: 0 | N161: =SUMIF($O$125:$BV$125,"<=" & 'Project description and input'!$C$14,O161:BL161) -> 0 | AR161: 0 | BV161: 0
D162: Lamp posts | E162: =C126*'Additions road'!D5*'Calculation factors'!D82 -> 0 | F162: kg steel | G162: ='Calculation factors'!D53 -> 30 | H162: Maintenance | I162: Steel | J162: ='Emission factors'!B14 -> Steel | K162: =SUMIF('Emission factors'!B:B,Calculations!J162,'Emission factors'!D:D) -> 2.1235 | L162: =VLOOKUP(J162,'Emission factors'!B:C,2,FALSE) -> kg CO2e/kg | M162: 0 | N162: =SUMIF($O$125:$BV$125,"<=" & 'Project description and input'!$C$14,O162:BL162) -> 0 | AR162: 0 | BV162: 0
D163: Transport of lamp posts diesel | E163: =C126*'Operation and maintenance'!F17*'Calculation factors'!D82 -> 0 | F163: litre diesel | G163: ='Calculation factors'!D53 -> 30 | H163: Maintenance | I163: Diesel | J163: ='Emission factors'!B20 -> Fossil diesel (WTW) | K163: =SUMIF('Emission factors'!B:B,Calculations!J163,'Emission factors'!D:D) -> 3.24 | L163: =VLOOKUP(J163,'Emission factors'!B:C,2,FALSE) -> kg CO2e/litre | M163: 0 | N163: =SUMIF($O$125:$BV$125,"<=" & 'Project description and input'!$C$14,O163:BL163) -> 0 | AR163: 0 | BV163: 0
D164: Transport of lamp posts biodiesel | E164: =C126*'Operation and maintenance'!G17*'Calculation factors'!D82 -> 0 | F164: litre biodiesel | G164: ='Calculation factors'!D53 -> 30 | H164: Maintenance | I164: Biodiesel | J164: ='Emission factors'!B18 -> Biodiesel (WTT) | K164: =SUMIF('Emission factors'!B:B,Calculations!J164,'Emission factors'!D:D) -> 1.92 | L164: =VLOOKUP(J164,'Emission factors'!B:C,2,FALSE) -> kg CO2e/litre | M164: 0 | N164: =SUMIF($O$125:$BV$125,"<=" & 'Project description and input'!$C$14,O164:BL164) -> 0 | AR164: 0 | BV164: 0
D165: Transport of lamp posts electricity/hydrogen | E165: =C126*'Operation and maintenance'!H17*'Calculation factors'!D82 -> 0 | F165: kWh | G165: ='Calculation factors'!D53 -> 30 | H165: Maintenance | I165: Electricity | J165: ='Emission factors'!B24 -> Electricity 55 years, European mix | K165: =SUMIF('Emission factors'!B:B,Calculations!J165,'Emission factors'!D:D) -> 0.136 | L165: =VLOOKUP(J165,'Emission factors'!B:C,2,FALSE) -> kg CO2e/kWh | M165: 0 | N165: =SUMIF($O$125:$BV$125,"<=" & 'Project description and input'!$C$14,O165:BL165) -> 0 | AR165: 0 | BV165: 0
D166: Lighting open roads | E166: =C126*'Operation and maintenance'!H8*'Calculation factors'!D82 -> 0 | F166: kWh | G166: 1 | H166: Operation | I166: Electricity | J166: ='Emission factors'!B24 -> Electricity 55 years, European mix | K166: =SUMIF('Emission factors'!B:B,Calculations!J166,'Emission factors'!D:D) -> 0.136 | L166: =VLOOKUP(J166,'Emission factors'!B:C,2,FALSE) -> kg CO2e/kWh | M166: 0 | N166: =SUMIF($O$125:$BV$125,"<=" & 'Project description and input'!$C$14,O166:BL166) -> 0 | O166: =IF(MOD(O$125,$G166)=0,$M166,"") -> 0 | P166: 0 | Q166: 0 | R166: 0 | S166: 0 | T166: 0 | U166: 0 | V166: 0 | W166: 0 | X166: 0 | Y166: =IF(MOD(Y$125,$G166)=0,$M166,"") -> 0 | Z166: 0 | AA166: 0 | AB166: 0 | AC166: 0 | AD166: 0 | AE166: 0 | AF166: 0 | AG166: 0 | AH166: 0 | AI166: =IF(MOD(AI$125,$G166)=0,$M166,"") -> 0 | AJ166: 0 | AK166: 0 | AL166: 0 | AM166: 0 | AN166: 0 | AO166: 0 | AP166: 0 | AQ166: 0 | AR166: 0 | AS166: =IF(MOD(AS$125,$G166)=0,$M166,"") -> 0 | AT166: 0 | AU166: 0 | AV166: 0 | AW166: 0 | AX166: 0 | AY166: 0 | AZ166: 0 | BA166: 0 | BB166: 0 | BC166: =IF(MOD(BC$125,$G166)=0,$M166,"") -> 0 | BD166: 0 | BE166: 0 | BF166: 0 | BG166: 0 | BH166: 0 | BI166: 0 | BJ166: 0 | BK166: 0 | BL166: 0 | BM166: =IF(MOD(BM$125,$G166)=0,$M166,"") -> 0 | BN166: 0 | BO166: 0 | BP166: 0 | BQ166: 0 | BR166: 0 | BS166: 0 | BT166: 0 | BU166: 0 | BV166: 0
B167: Operation Secondary road (m) | C167: =SUMIF('Project description and input'!$M:$M,B43,'Project description and input'!$L:$L) -> 0 | D167: Asphalt for re-asphalting | E167: =C167*'Project description and input'!C10*'Re-asphalting'!D9 -> 0 | F167: kg asphalt concrete, surface | G167: ='Calculation factors'!D51 -> 7 | H167: Re-asphalting | I167: Asphalt | J167: ='Emission factors'!B6 -> Asphalt concrete, surface (Agb) | K167: =SUMIF('Emission factors'!B:B,Calculations!J167,'Emission factors'!D:D) -> 0.0512 | L167: =VLOOKUP(J167,'Emission factors'!B:C,2,FALSE) -> kg CO2e/kg | M167: 0 | N167: =SUMIF($O$125:$BV$125,"<=" & 'Project description and input'!$C$14,O167:BL167) -> 0 | U167: 0 | AB167: 0 | AI167: 0 | AP167: 0 | AW167: 0 | BD167: 0 | BK167: 0 | BR167: 0
D168: Transport of asphalt diesel | E168: =C167*'Project description and input'!C10*'Re-asphalting'!E9 -> 0 | F168: litre diesel | G168: ='Calculation factors'!D51 -> 7 | H168: Re-asphalting | I168: Diesel | J168: ='Emission factors'!B20 -> Fossil diesel (WTW) | K168: =SUMIF('Emission factors'!B:B,Calculations!J168,'Emission factors'!D:D) -> 3.24 | L168: =VLOOKUP(J168,'Emission factors'!B:C,2,FALSE) -> kg CO2e/litre | M168: 0 | N168: =SUMIF($O$125:$BV$125,"<=" & 'Project description and input'!$C$14,O168:BL168) -> 0 | U168: 0 | AB168: 0 | AI168: 0 | AP168: 0 | AW168: 0 | BD168: 0 | BK168: 0 | BR168: 0
D169: Transport of asphalt biodiesel | E169: =C167*'Project description and input'!C10*'Re-asphalting'!F9 -> 0 | F169: litre biodiesel | G169: ='Calculation factors'!D51 -> 7 | H169: Re-asphalting | I169: Biodiesel | J169: ='Emission factors'!B18 -> Biodiesel (WTT) | K169: =SUMIF('Emission factors'!B:B,Calculations!J169,'Emission factors'!D:D) -> 1.92 | L169: =VLOOKUP(J169,'Emission factors'!B:C,2,FALSE) -> kg CO2e/litre | M169: 0 | N169: =SUMIF($O$125:$BV$125,"<=" & 'Project description and input'!$C$14,O169:BL169) -> 0 | U169: 0 | AB169: 0 | AI169: 0 | AP169: 0 | AW169: 0 | BD169: 0 | BK169: 0 | BR169: 0
D170: Transport of asphalt electricity/hydrogen | E170: =C167*'Project description and input'!C10*'Re-asphalting'!G9 -> 0 | F170: kWh | G170: ='Calculation factors'!D51 -> 7 | H170: Re-asphalting | I170: Electricity | J170: ='Emission factors'!B24 -> Electricity 55 years, European mix | K170: =SUMIF('Emission factors'!B:B,Calculations!J170,'Emission factors'!D:D) -> 0.136 | L170: =VLOOKUP(J170,'Emission factors'!B:C,2,FALSE) -> kg CO2e/kWh | M170: 0 | N170: =SUMIF($O$125:$BV$125,"<=" & 'Project description and input'!$C$14,O170:BL170) -> 0 | U170: 0 | AB170: 0 | AI170: 0 | AP170: 0 | AW170: 0 | BD170: 0 | BK170: 0 | BR170: 0
D171: Re-asphalting diesel | E171: =C167*'Project description and input'!C10*'Re-asphalting'!E9 -> 0 | F171: litre diesel | G171: ='Calculation factors'!D51 -> 7 | H171: Re-asphalting | I171: Diesel | J171: ='Emission factors'!B20 -> Fossil diesel (WTW) | K171: =SUMIF('Emission factors'!B:B,Calculations!J171,'Emission factors'!D:D) -> 3.24 | L171: =VLOOKUP(J171,'Emission factors'!B:C,2,FALSE) -> kg CO2e/litre | M171: 0 | N171: =SUMIF($O$125:$BV$125,"<=" & 'Project description and input'!$C$14,O171:BL171) -> 0 | U171: 0 | AB171: 0 | AI171: 0 | AP171: 0 | AW171: 0 | BD171: 0 | BK171: 0 | BR171: 0
D172: Re-asphalting biodiesel | E172: =C167*'Project description and input'!C10*'Re-asphalting'!F9 -> 0 | F172: litre biodiesel | G172: ='Calculation factors'!D51 -> 7 | H172: Re-asphalting | I172: Biodiesel | J172: ='Emission factors'!B18 -> Biodiesel (WTT) | K172: =SUMIF('Emission factors'!B:B,Calculations!J172,'Emission factors'!D:D) -> 1.92 | L172: =VLOOKUP(J172,'Emission factors'!B:C,2,FALSE) -> kg CO2e/litre | M172: 0 | N172: =SUMIF($O$125:$BV$125,"<=" & 'Project description and input'!$C$14,O172:BL172) -> 0 | U172: 0 | AB172: 0 | AI172: 0 | AP172: 0 | AW172: 0 | BD172: 0 | BK172: 0 | BR172: 0
D173: Re-asphalting electricity/hydrogen | E173: =C167*'Project description and input'!C10*'Re-asphalting'!G9 -> 0 | F173: kWh | G173: ='Calculation factors'!D51 -> 7 | H173: Re-asphalting | I173: Electricity | J173: ='Emission factors'!B24 -> Electricity 55 years, European mix | K173: =SUMIF('Emission factors'!B:B,Calculations!J173,'Emission factors'!D:D) -> 0.136 | L173: =VLOOKUP(J173,'Emission factors'!B:C,2,FALSE) -> kg CO2e/kWh | M173: 0 | N173: =SUMIF($O$125:$BV$125,"<=" & 'Project description and input'!$C$14,O173:BL173) -> 0 | U173: 0 | AB173: 0 | AI173: 0 | AP173: 0 | AW173: 0 | BD173: 0 | BK173: 0 | BR173: 0
D174: Roadside mowing diesel | E174: =C167*'Operation and maintenance'!E24*'Calculation factors'!D87 -> 0 | F174: litre diesel | G174: 1 | H174: Operation | I174: Diesel | J174: ='Emission factors'!B20 -> Fossil diesel (WTW) | K174: =SUMIF('Emission factors'!B:B,Calculations!J174,'Emission factors'!D:D) -> 3.24 | L174: =VLOOKUP(J174,'Emission factors'!B:C,2,FALSE) -> kg CO2e/litre | M174: 0 | N174: =SUMIF($O$125:$BV$125,"<=" & 'Project description and input'!$C$14,O174:BL174) -> 0 | O174: 0 | P174: 0 | Q174: 0 | R174: 0 | S174: 0 | T174: 0 | U174: 0 | V174: 0 | W174: 0 | X174: 0 | Y174: 0 | Z174: 0 | AA174: 0 | AB174: 0 | AC174: 0 | AD174: 0 | AE174: 0 | AF174: 0 | AG174: 0 | AH174: 0 | AI174: 0 | AJ174: 0 | AK174: 0 | AL174: 0 | AM174: 0 | AN174: 0 | AO174: 0 | AP174: 0 | AQ174: 0 | AR174: 0 | AS174: 0 | AT174: 0 | AU174: 0 | AV174: 0 | AW174: 0 | AX174: 0 | AY174: 0 | AZ174: 0 | BA174: 0 | BB174: 0 | BC174: 0 | BD174: 0 | BE174: 0 | BF174: 0 | BG174: 0 | BH174: 0 | BI174: 0 | BJ174: 0 | BK174: 0 | BL174: 0 | BM174: 0 | BN174: 0 | BO174: 0 | BP174: 0 | BQ174: 0 | BR174: 0 | BS174: 0 | BT174: 0 | BU174: 0 | BV174: 0
D175: Roadside mowing biodiesel | E175: =C167*'Operation and maintenance'!F24*'Calculation factors'!D87 -> 0 | F175: litre biodiesel | G175: 1 | H175: Operation | I175: Biodiesel | J175: ='Emission factors'!B18 -> Biodiesel (WTT) | K175: =SUMIF('Emission factors'!B:B,Calculations!J175,'Emission factors'!D:D) -> 1.92 | L175: =VLOOKUP(J175,'Emission factors'!B:C,2,FALSE) -> kg CO2e/litre | M175: 0 | N175: =SUMIF($O$125:$BV$125,"<=" & 'Project description and input'!$C$14,O175:BL175) -> 0 | O175: 0 | P175: 0 | Q175: 0 | R175: 0 | S175: 0 | T175: 0 | U175: 0 | V175: 0 | W175: 0 | X175: 0 | Y175: 0 | Z175: 0 | AA175: 0 | AB175: 0 | AC175: 0 | AD175: 0 | AE175: 0 | AF175: 0 | AG175: 0 | AH175: 0 | AI175: 0 | AJ175: 0 | AK175: 0 | AL175: 0 | AM175: 0 | AN175: 0 | AO175: 0 | AP175: 0 | AQ175: 0 | AR175: 0 | AS175: 0 | AT175: 0 | AU175: 0 | AV175: 0 | AW175: 0 | AX175: 0 | AY175: 0 | AZ175: 0 | BA175: 0 | BB175: 0 | BC175: 0 | BD175: 0 | BE175: 0 | BF175: 0 | BG175: 0 | BH175: 0 | BI175: 0 | BJ175: 0 | BK175: 0 | BL175: 0 | BM175: 0 | BN175: 0 | BO175: 0 | BP175: 0 | BQ175: 0 | BR175: 0 | BS175: 0 | BT175: 0 | BU175: 0 | BV175: 0
D176: Roadside mowing electricity/hydrogen | E176: =C167*'Operation and maintenance'!G24*'Calculation factors'!D87 -> 0 | F176: kWh | G176: 1 | H176: Operation | I176: Electricity | J176: ='Emission factors'!B24 -> Electricity 55 years, European mix | K176: =SUMIF('Emission factors'!B:B,Calculations!J176,'Emission factors'!D:D) -> 0.136 | L176: =VLOOKUP(J176,'Emission factors'!B:C,2,FALSE) -> kg CO2e/kWh | M176: 0 | N176: =SUMIF($O$125:$BV$125,"<=" & 'Project description and input'!$C$14,O176:BL176) -> 0 | O176: =IF(MOD(O$125,$G176)=0,$M176,"") -> 0 | P176: 0 | Q176: 0 | R176: 0 | S176: 0 | T176: 0 | U176: 0 | V176: 0 | W176: 0 | X176: 0 | Y176: =IF(MOD(Y$125,$G176)=0,$M176,"") -> 0 | Z176: 0 | AA176: 0 | AB176: 0 | AC176: 0 | AD176: 0 | AE176: 0 | AF176: 0 | AG176: 0 | AH176: 0 | AI176: =IF(MOD(AI$125,$G176)=0,$M176,"") -> 0 | AJ176: 0 | AK176: 0 | AL176: 0 | AM176: 0 | AN176: 0 | AO176: 0 | AP176: 0 | AQ176: 0 | AR176: 0 | AS176: =IF(MOD(AS$125,$G176)=0,$M176,"") -> 0 | AT176: 0 | AU176: 0 | AV176: 0 | AW176: 0 | AX176: 0 | AY176: 0 | AZ176: 0 | BA176: 0 | BB176: 0 | BC176: =IF(MOD(BC$125,$G176)=0,$M176,"") -> 0 | BD176: 0 | BE176: 0 | BF176: 0 | BG176: 0 | BH176: 0 | BI176: 0 | BJ176: 0 | BK176: 0 | BL176: 0 | BM176: =IF(MOD(BM$125,$G176)=0,$M176,"") -> 0 | BN176: 0 | BO176: 0 | BP176: 0 | BQ176: 0 | BR176: 0 | BS176: 0 | BT176: 0 | BU176: 0 | BV176: 0
D177: Ditch clearing diesel | E177: =C167*'Operation and maintenance'!E25*'Calculation factors'!D87 -> 0 | F177: litre diesel | G177: ='Calculation factors'!D55 -> 3 | H177: Operation | I177: Diesel | J177: ='Emission factors'!B20 -> Fossil diesel (WTW) | K177: =SUMIF('Emission factors'!B:B,Calculations!J177,'Emission factors'!D:D) -> 3.24 | L177: =VLOOKUP(J177,'Emission factors'!B:C,2,FALSE) -> kg CO2e/litre | M177: 0 | N177: =SUMIF($O$125:$BV$125,"<=" & 'Project description and input'!$C$14,O177:BL177) -> 0 | Q177: 0 | T177: 0 | W177: 0 | Z177: 0 | AC177: 0 | AF177: 0 | AI177: 0 | AL177: 0 | AO177: 0 | AR177: 0 | AU177: 0 | AX177: 0 | BA177: 0 | BD177: 0 | BG177: 0 | BJ177: 0 | BM177: 0 | BP177: 0 | BS177: 0 | BV177: 0
D178: Ditch clearing biodiesel | E178: =C167*'Operation and maintenance'!F25*'Calculation factors'!D87 -> 0 | F178: litre biodiesel | G178: ='Calculation factors'!D55 -> 3 | H178: Operation | I178: Biodiesel | J178: ='Emission factors'!B18 -> Biodiesel (WTT) | K178: =SUMIF('Emission factors'!B:B,Calculations!J178,'Emission factors'!D:D) -> 1.92 | L178: =VLOOKUP(J178,'Emission factors'!B:C,2,FALSE) -> kg CO2e/litre | M178: 0 | N178: =SUMIF($O$125:$BV$125,"<=" & 'Project description and input'!$C$14,O178:BL178) -> 0 | Q178: 0 | T178: 0 | W178: 0 | Z178: 0 | AC178: 0 | AF178: 0 | AI178: 0 | AL178: 0 | AO178: 0 | AR178: 0 | AU178: 0 | AX178: 0 | BA178: 0 | BD178: 0 | BG178: 0 | BJ178: 0 | BM178: 0 | BP178: 0 | BS178: 0 | BV178: 0
D179: Ditch clearing electricity/hydrogen | E179: =C167*'Operation and maintenance'!G25*'Calculation factors'!D87 -> 0 | F179: kWh | G179: ='Calculation factors'!D55 -> 3 | H179: Operation | I179: Electricity | J179: ='Emission factors'!B24 -> Electricity 55 years, European mix | K179: =SUMIF('Emission factors'!B:B,Calculations!J179,'Emission factors'!D:D) -> 0.136 | L179: =VLOOKUP(J179,'Emission factors'!B:C,2,FALSE) -> kg CO2e/kWh | M179: 0 | N179: =SUMIF($O$125:$BV$125,"<=" & 'Project description and input'!$C$14,O179:BL179) -> 0 | Q179: 0 | T179: 0 | W179: 0 | Z179: 0 | AC179: 0 | AF179: 0 | AI179: 0 | AL179: 0 | AO179: 0 | AR179: 0 | AU179: 0 | AX179: 0 | BA179: 0 | BD179: 0 | BG179: 0 | BJ179: 0 | BM179: 0 | BP179: 0 | BS179: 0 | BV179: 0
D180: Transport soil masses ditch clearing diesel | E180: =C167*'Operation and maintenance'!F15*'Calculation factors'!D87 -> 0 | F180: litre diesel | G180: ='Calculation factors'!D55 -> 3 | H180: Operation | I180: Diesel | J180: ='Emission factors'!B20 -> Fossil diesel (WTW) | K180: =SUMIF('Emission factors'!B:B,Calculations!J180,'Emission factors'!D:D) -> 3.24 | L180: =VLOOKUP(J180,'Emission factors'!B:C,2,FALSE) -> kg CO2e/litre | M180: 0 | N180: =SUMIF($O$125:$BV$125,"<=" & 'Project description and input'!$C$14,O180:BL180) -> 0 | Q180: 0 | T180: 0 | W180: 0 | Z180: 0 | AC180: 0 | AF180: 0 | AI180: 0 | AL180: 0 | AO180: 0 | AR180: 0 | AU180: 0 | AX180: 0 | BA180: 0 | BD180: 0 | BG180: 0 | BJ180: 0 | BM180: 0 | BP180: 0 | BS180: 0 | BV180: 0
D181: Transport soil masses ditch clearing biodiesel | E181: =C167*'Operation and maintenance'!G15*'Calculation factors'!D87 -> 0 | F181: litre biodiesel | G181: ='Calculation factors'!D55 -> 3 | H181: Operation | I181: Biodiesel | J181: ='Emission factors'!B18 -> Biodiesel (WTT) | K181: =SUMIF('Emission factors'!B:B,Calculations!J181,'Emission factors'!D:D) -> 1.92 | L181: =VLOOKUP(J181,'Emission factors'!B:C,2,FALSE) -> kg CO2e/litre | M181: 0 | N181: =SUMIF($O$125:$BV$125,"<=" & 'Project description and input'!$C$14,O181:BL181) -> 0 | Q181: 0 | T181: 0 | W181: 0 | Z181: 0 | AC181: 0 | AF181: 0 | AI181: 0 | AL181: 0 | AO181: 0 | AR181: 0 | AU181: 0 | AX181: 0 | BA181: 0 | BD181: 0 | BG181: 0 | BJ181: 0 | BM181: 0 | BP181: 0 | BS181: 0 | BV181: 0
D182: Transport soil masses ditch clearing electricity/hydrogen | E182: =C167*'Operation and maintenance'!H15*'Calculation factors'!D87 -> 0 | F182: kWh | G182: ='Calculation factors'!D55 -> 3 | H182: Operation | I182: Electricity | J182: ='Emission factors'!B24 -> Electricity 55 years, European mix | K182: =SUMIF('Emission factors'!B:B,Calculations!J182,'Emission factors'!D:D) -> 0.136 | L182: =VLOOKUP(J182,'Emission factors'!B:C,2,FALSE) -> kg CO2e/kWh | M182: 0 | N182: =SUMIF($O$125:$BV$125,"<=" & 'Project description and input'!$C$14,O182:BL182) -> 0 | Q182: 0 | T182: 0 | W182: 0 | Z182: 0 | AC182: 0 | AF182: 0 | AI182: 0 | AL182: 0 | AO182: 0 | AR182: 0 | AU182: 0 | AX182: 0 | BA182: 0 | BD182: 0 | BG182: 0 | BJ182: 0 | BM182: 0 | BP182: 0 | BS182: 0 | BV182: 0
D183: Sweeping diesel | E183: =C167*'Operation and maintenance'!E26*'Calculation factors'!D81 -> 0 | F183: litre diesel | G183: 1 | H183: Operation | I183: Diesel | J183: ='Emission factors'!B20 -> Fossil diesel (WTW) | K183: =SUMIF('Emission factors'!B:B,Calculations!J183,'Emission factors'!D:D) -> 3.24 | L183: =VLOOKUP(J183,'Emission factors'!B:C,2,FALSE) -> kg CO2e/litre | M183: 0 | N183: =SUMIF($O$125:$BV$125,"<=" & 'Project description and input'!$C$14,O183:BL183) -> 0 | O183: 0 | P183: 0 | Q183: 0 | R183: 0 | S183: 0 | T183: 0 | U183: 0 | V183: 0 | W183: 0 | X183: 0 | Y183: 0 | Z183: 0 | AA183: 0 | AB183: 0 | AC183: 0 | AD183: 0 | AE183: 0 | AF183: 0 | AG183: 0 | AH183: 0 | AI183: 0 | AJ183: 0 | AK183: 0 | AL183: 0 | AM183: 0 | AN183: 0 | AO183: 0 | AP183: 0 | AQ183: 0 | AR183: 0 | AS183: 0 | AT183: 0 | AU183: 0 | AV183: 0 | AW183: 0 | AX183: 0 | AY183: 0 | AZ183: 0 | BA183: 0 | BB183: 0 | BC183: 0 | BD183: 0 | BE183: 0 | BF183: 0 | BG183: 0 | BH183: 0 | BI183: 0 | BJ183: 0 | BK183: 0 | BL183: 0 | BM183: 0 | BN183: 0 | BO183: 0 | BP183: 0 | BQ183: 0 | BR183: 0 | BS183: 0 | BT183: 0 | BU183: 0 | BV183: 0
D184: Sweeping biodiesel | E184: =C167*'Operation and maintenance'!F26*'Calculation factors'!D81 -> 0 | F184: litre biodiesel | G184: 1 | H184: Operation | I184: Biodiesel | J184: ='Emission factors'!B18 -> Biodiesel (WTT) | K184: =SUMIF('Emission factors'!B:B,Calculations!J184,'Emission factors'!D:D) -> 1.92 | L184: =VLOOKUP(J184,'Emission factors'!B:C,2,FALSE) -> kg CO2e/litre | M184: 0 | N184: =SUMIF($O$125:$BV$125,"<=" & 'Project description and input'!$C$14,O184:BL184) -> 0 | O184: 0 | P184: 0 | Q184: 0 | R184: 0 | S184: 0 | T184: 0 | U184: 0 | V184: 0 | W184: 0 | X184: 0 | Y184: 0 | Z184: 0 | AA184: 0 | AB184: 0 | AC184: 0 | AD184: 0 | AE184: 0 | AF184: 0 | AG184: 0 | AH184: 0 | AI184: 0 | AJ184: 0 | AK184: 0 | AL184: 0 | AM184: 0 | AN184: 0 | AO184: 0 | AP184: 0 | AQ184: 0 | AR184: 0 | AS184: 0 | AT184: 0 | AU184: 0 | AV184: 0 | AW184: 0 | AX184: 0 | AY184: 0 | AZ184: 0 | BA184: 0 | BB184: 0 | BC184: 0 | BD184: 0 | BE184: 0 | BF184: 0 | BG184: 0 | BH184: 0 | BI184: 0 | BJ184: 0 | BK184: 0 | BL184: 0 | BM184: 0 | BN184: 0 | BO184: 0 | BP184: 0 | BQ184: 0 | BR184: 0 | BS184: 0 | BT184: 0 | BU184: 0 | BV184: 0
D185: Sweeping electricity/hydrogen | E185: =C167*'Operation and maintenance'!G26*'Calculation factors'!D81 -> 0 | F185: kWh | G185: 1 | H185: Operation | I185: Electricity | J185: ='Emission factors'!B24 -> Electricity 55 years, European mix | K185: =SUMIF('Emission factors'!B:B,Calculations!J185,'Emission factors'!D:D) -> 0.136 | L185: =VLOOKUP(J185,'Emission factors'!B:C,2,FALSE) -> kg CO2e/kWh | M185: 0 | N185: =SUMIF($O$125:$BV$125,"<=" & 'Project description and input'!$C$14,O185:BL185) -> 0 | O185: 0 | P185: 0 | Q185: 0 | R185: 0 | S185: 0 | T185: 0 | U185: 0 | V185: 0 | W185: 0 | X185: 0 | Y185: 0 | Z185: 0 | AA185: 0 | AB185: 0 | AC185: 0 | AD185: 0 | AE185: 0 | AF185: 0 | AG185: 0 | AH185: 0 | AI185: 0 | AJ185: 0 | AK185: 0 | AL185: 0 | AM185: 0 | AN185: 0 | AO185: 0 | AP185: 0 | AQ185: 0 | AR185: 0 | AS185: 0 | AT185: 0 | AU185: 0 | AV185: 0 | AW185: 0 | AX185: 0 | AY185: 0 | AZ185: 0 | BA185: 0 | BB185: 0 | BC185: 0 | BD185: 0 | BE185: 0 | BF185: 0 | BG185: 0 | BH185: 0 | BI185: 0 | BJ185: 0 | BK185: 0 | BL185: 0 | BM185: 0 | BN185: 0 | BO185: 0 | BP185: 0 | BQ185: 0 | BR185: 0 | BS185: 0 | BT185: 0 | BU185: 0 | BV185: 0
D186: Salting diesel | E186: =C167*'Operation and maintenance'!E27*('Calculation factors'!D81/2) -> 0 | F186: litre diesel | G186: 1 | H186: Operation | I186: Diesel | J186: ='Emission factors'!B20 -> Fossil diesel (WTW) | K186: =SUMIF('Emission factors'!B:B,Calculations!J186,'Emission factors'!D:D) -> 3.24 | L186: =VLOOKUP(J186,'Emission factors'!B:C,2,FALSE) -> kg CO2e/litre | M186: 0 | N186: =SUMIF($O$125:$BV$125,"<=" & 'Project description and input'!$C$14,O186:BL186) -> 0 | O186: =IF(MOD(O$125,$G186)=0,$M186,"") -> 0 | P186: 0 | Q186: 0 | R186: 0 | S186: 0 | T186: 0 | U186: 0 | V186: 0 | W186: 0 | X186: 0 | Y186: =IF(MOD(Y$125,$G186)=0,$M186,"") -> 0 | Z186: 0 | AA186: 0 | AB186: 0 | AC186: 0 | AD186: 0 | AE186: 0 | AF186: 0 | AG186: 0 | AH186: 0 | AI186: =IF(MOD(AI$125,$G186)=0,$M186,"") -> 0 | AJ186: 0 | AK186: 0 | AL186: 0 | AM186: 0 | AN186: 0 | AO186: 0 | AP186: 0 | AQ186: 0 | AR186: 0 | AS186: =IF(MOD(AS$125,$G186)=0,$M186,"") -> 0 | AT186: 0 | AU186: 0 | AV186: 0 | AW186: 0 | AX186: 0 | AY186: 0 | AZ186: 0 | BA186: 0 | BB186: 0 | BC186: =IF(MOD(BC$125,$G186)=0,$M186,"") -> 0 | BD186: 0 | BE186: 0 | BF186: 0 | BG186: 0 | BH186: 0 | BI186: 0 | BJ186: 0 | BK186: 0 | BL186: 0 | BM186: =IF(MOD(BM$125,$G186)=0,$M186,"") -> 0 | BN186: 0 | BO186: 0 | BP186: 0 | BQ186: 0 | BR186: 0 | BS186: 0 | BT186: 0 | BU186: 0 | BV186: 0
D187: Salting biodiesel | E187: =C167*'Operation and maintenance'!F27*('Calculation factors'!D81/2) -> 0 | F187: litre biodiesel | G187: 1 | H187: Operation | I187: Biodiesel | J187: ='Emission factors'!B18 -> Biodiesel (WTT) | K187: =SUMIF('Emission factors'!B:B,Calculations!J187,'Emission factors'!D:D) -> 1.92 | L187: =VLOOKUP(J187,'Emission factors'!B:C,2,FALSE) -> kg CO2e/litre | M187: 0 | N187: =SUMIF($O$125:$BV$125,"<=" & 'Project description and input'!$C$14,O187:BL187) -> 0 | O187: 0 | P187: 0 | Q187: 0 | R187: 0 | S187: 0 | T187: 0 | U187: 0 | V187: 0 | W187: 0 | X187: 0 | Y187: 0 | Z187: 0 | AA187: 0 | AB187: 0 | AC187: 0 | AD187: 0 | AE187: 0 | AF187: 0 | AG187: 0 | AH187: 0 | AI187: 0 | AJ187: 0 | AK187: 0 | AL187: 0 | AM187: 0 | AN187: 0 | AO187: 0 | AP187: 0 | AQ187: 0 | AR187: 0 | AS187: 0 | AT187: 0 | AU187: 0 | AV187: 0 | AW187: 0 | AX187: 0 | AY187: 0 | AZ187: 0 | BA187: 0 | BB187: 0 | BC187: 0 | BD187: 0 | BE187: 0 | BF187: 0 | BG187: 0 | BH187: 0 | BI187: 0 | BJ187: 0 | BK187: 0 | BL187: 0 | BM187: 0 | BN187: 0 | BO187: 0 | BP187: 0 | BQ187: 0 | BR187: 0 | BS187: 0 | BT187: 0 | BU187: 0 | BV187: 0
D188: Salting electricity/hydrogen | E188: =C167*'Operation and maintenance'!G27*('Calculation factors'!D81/2) -> 0 | F188: kWh | G188: 1 | H188: Operation | I188: Electricity | J188: ='Emission factors'!B24 -> Electricity 55 years, European mix | K188: =SUMIF('Emission factors'!B:B,Calculations!J188,'Emission factors'!D:D) -> 0.136 | L188: =VLOOKUP(J188,'Emission factors'!B:C,2,FALSE) -> kg CO2e/kWh | M188: 0 | N188: =SUMIF($O$125:$BV$125,"<=" & 'Project description and input'!$C$14,O188:BL188) -> 0 | O188: 0 | P188: 0 | Q188: 0 | R188: 0 | S188: 0 | T188: 0 | U188: 0 | V188: 0 | W188: 0 | X188: 0 | Y188: 0 | Z188: 0 | AA188: 0 | AB188: 0 | AC188: 0 | AD188: 0 | AE188: 0 | AF188: 0 | AG188: 0 | AH188: 0 | AI188: 0 | AJ188: 0 | AK188: 0 | AL188: 0 | AM188: 0 | AN188: 0 | AO188: 0 | AP188: 0 | AQ188: 0 | AR188: 0 | AS188: 0 | AT188: 0 | AU188: 0 | AV188: 0 | AW188: 0 | AX188: 0 | AY188: 0 | AZ188: 0 | BA188: 0 | BB188: 0 | BC188: 0 | BD188: 0 | BE188: 0 | BF188: 0 | BG188: 0 | BH188: 0 | BI188: 0 | BJ188: 0 | BK188: 0 | BL188: 0 | BM188: 0 | BN188: 0 | BO188: 0 | BP188: 0 | BQ188: 0 | BR188: 0 | BS188: 0 | BT188: 0 | BU188: 0 | BV188: 0
D189: Salt | E189: =C167*'Operation and maintenance'!E16 -> 0 | F189: kg salt | G189: 1 | H189: Operation | I189: Salt | J189: ='Emission factors'!B12 -> Salt | K189: =SUMIF('Emission factors'!B:B,Calculations!J189,'Emission factors'!D:D) -> 0.179 | L189: =VLOOKUP(J189,'Emission factors'!B:C,2,FALSE) -> kg CO2e/kg | M189: 0 | N189: =SUMIF($O$125:$BV$125,"<=" & 'Project description and input'!$C$14,O189:BL189) -> 0 | O189: 0 | P189: 0 | Q189: 0 | R189: 0 | S189: 0 | T189: 0 | U189: 0 | V189: 0 | W189: 0 | X189: 0 | Y189: 0 | Z189: 0 | AA189: 0 | AB189: 0 | AC189: 0 | AD189: 0 | AE189: 0 | AF189: 0 | AG189: 0 | AH189: 0 | AI189: 0 | AJ189: 0 | AK189: 0 | AL189: 0 | AM189: 0 | AN189: 0 | AO189: 0 | AP189: 0 | AQ189: 0 | AR189: 0 | AS189: 0 | AT189: 0 | AU189: 0 | AV189: 0 | AW189: 0 | AX189: 0 | AY189: 0 | AZ189: 0 | BA189: 0 | BB189: 0 | BC189: 0 | BD189: 0 | BE189: 0 | BF189: 0 | BG189: 0 | BH189: 0 | BI189: 0 | BJ189: 0 | BK189: 0 | BL189: 0 | BM189: 0 | BN189: 0 | BO189: 0 | BP189: 0 | BQ189: 0 | BR189: 0 | BS189: 0 | BT189: 0 | BU189: 0 | BV189: 0
D190: Salt transport diesel | E190: =C167*'Operation and maintenance'!F16 -> 0 | F190: litre diesel | G190: 1 | H190: Operation | I190: Diesel | J190: ='Emission factors'!B20 -> Fossil diesel (WTW) | K190: =SUMIF('Emission factors'!B:B,Calculations!J190,'Emission factors'!D:D) -> 3.24 | L190: =VLOOKUP(J190,'Emission factors'!B:C,2,FALSE) -> kg CO2e/litre | M190: 0 | N190: =SUMIF($O$125:$BV$125,"<=" & 'Project description and input'!$C$14,O190:BL190) -> 0 | O190: 0 | P190: 0 | Q190: 0 | R190: 0 | S190: 0 | T190: 0 | U190: 0 | V190: 0 | W190: 0 | X190: 0 | Y190: 0 | Z190: 0 | AA190: 0 | AB190: 0 | AC190: 0 | AD190: 0 | AE190: 0 | AF190: 0 | AG190: 0 | AH190: 0 | AI190: 0 | AJ190: 0 | AK190: 0 | AL190: 0 | AM190: 0 | AN190: 0 | AO190: 0 | AP190: 0 | AQ190: 0 | AR190: 0 | AS190: 0 | AT190: 0 | AU190: 0 | AV190: 0 | AW190: 0 | AX190: 0 | AY190: 0 | AZ190: 0 | BA190: 0 | BB190: 0 | BC190: 0 | BD190: 0 | BE190: 0 | BF190: 0 | BG190: 0 | BH190: 0 | BI190: 0 | BJ190: 0 | BK190: 0 | BL190: 0 | BM190: 0 | BN190: 0 | BO190: 0 | BP190: 0 | BQ190: 0 | BR190: 0 | BS190: 0 | BT190: 0 | BU190: 0 | BV190: 0
D191: Salt transport biodiesel | E191: =C167*'Operation and maintenance'!G16 -> 0 | F191: litre biodiesel | G191: 1 | H191: Operation | I191: Biodiesel | J191: ='Emission factors'!B18 -> Biodiesel (WTT) | K191: =SUMIF('Emission factors'!B:B,Calculations!J191,'Emission factors'!D:D) -> 1.92 | L191: =VLOOKUP(J191,'Emission factors'!B:C,2,FALSE) -> kg CO2e/litre | M191: 0 | N191: =SUMIF($O$125:$BV$125,"<=" & 'Project description and input'!$C$14,O191:BL191) -> 0 | O191: 0 | P191: 0 | Q191: 0 | R191: 0 | S191: 0 | T191: 0 | U191: 0 | V191: 0 | W191: 0 | X191: 0 | Y191: 0 | Z191: 0 | AA191: 0 | AB191: 0 | AC191: 0 | AD191: 0 | AE191: 0 | AF191: 0 | AG191: 0 | AH191: 0 | AI191: 0 | AJ191: 0 | AK191: 0 | AL191: 0 | AM191: 0 | AN191: 0 | AO191: 0 | AP191: 0 | AQ191: 0 | AR191: 0 | AS191: 0 | AT191: 0 | AU191: 0 | AV191: 0 | AW191: 0 | AX191: 0 | AY191: 0 | AZ191: 0 | BA191: 0 | BB191: 0 | BC191: 0 | BD191: 0 | BE191: 0 | BF191: 0 | BG191: 0 | BH191: 0 | BI191: 0 | BJ191: 0 | BK191: 0 | BL191: 0 | BM191: 0 | BN191: 0 | BO191: 0 | BP191: 0 | BQ191: 0 | BR191: 0 | BS191: 0 | BT191: 0 | BU191: 0 | BV191: 0
D192: Salt transport electrical/hydrogen | E192: =C167*'Operation and maintenance'!H16 -> 0 | F192: kWh | G192: 1 | H192: Operation | I192: Electricity | J192: ='Emission factors'!B24 -> Electricity 55 years, European mix | K192: =SUMIF('Emission factors'!B:B,Calculations!J192,'Emission factors'!D:D) -> 0.136 | L192: =VLOOKUP(J192,'Emission factors'!B:C,2,FALSE) -> kg CO2e/kWh | M192: 0 | N192: =SUMIF($O$125:$BV$125,"<=" & 'Project description and input'!$C$14,O192:BL192) -> 0 | O192: 0 | P192: 0 | Q192: 0 | R192: 0 | S192: 0 | T192: 0 | U192: 0 | V192: 0 | W192: 0 | X192: 0 | Y192: 0 | Z192: 0 | AA192: 0 | AB192: 0 | AC192: 0 | AD192: 0 | AE192: 0 | AF192: 0 | AG192: 0 | AH192: 0 | AI192: 0 | AJ192: 0 | AK192: 0 | AL192: 0 | AM192: 0 | AN192: 0 | AO192: 0 | AP192: 0 | AQ192: 0 | AR192: 0 | AS192: 0 | AT192: 0 | AU192: 0 | AV192: 0 | AW192: 0 | AX192: 0 | AY192: 0 | AZ192: 0 | BA192: 0 | BB192: 0 | BC192: 0 | BD192: 0 | BE192: 0 | BF192: 0 | BG192: 0 | BH192: 0 | BI192: 0 | BJ192: 0 | BK192: 0 | BL192: 0 | BM192: 0 | BN192: 0 | BO192: 0 | BP192: 0 | BQ192: 0 | BR192: 0 | BS192: 0 | BT192: 0 | BU192: 0 | BV192: 0
D193: Ploughing diesel | E193: =C167*'Operation and maintenance'!E28 -> 0 | F193: litre diesel | G193: 1 | H193: Operation | I193: Diesel | J193: ='Emission factors'!B20 -> Fossil diesel (WTW) | K193: =SUMIF('Emission factors'!B:B,Calculations!J193,'Emission factors'!D:D) -> 3.24 | L193: =VLOOKUP(J193,'Emission factors'!B:C,2,FALSE) -> kg CO2e/litre | M193: 0 | N193: =SUMIF($O$125:$BV$125,"<=" & 'Project description and input'!$C$14,O193:BL193) -> 0 | O193: 0 | P193: 0 | Q193: 0 | R193: 0 | S193: 0 | T193: 0 | U193: 0 | V193: 0 | W193: 0 | X193: 0 | Y193: 0 | Z193: 0 | AA193: 0 | AB193: 0 | AC193: 0 | AD193: 0 | AE193: 0 | AF193: 0 | AG193: 0 | AH193: 0 | AI193: 0 | AJ193: 0 | AK193: 0 | AL193: 0 | AM193: 0 | AN193: 0 | AO193: 0 | AP193: 0 | AQ193: 0 | AR193: 0 | AS193: 0 | AT193: 0 | AU193: 0 | AV193: 0 | AW193: 0 | AX193: 0 | AY193: 0 | AZ193: 0 | BA193: 0 | BB193: 0 | BC193: 0 | BD193: 0 | BE193: 0 | BF193: 0 | BG193: 0 | BH193: 0 | BI193: 0 | BJ193: 0 | BK193: 0 | BL193: 0 | BM193: 0 | BN193: 0 | BO193: 0 | BP193: 0 | BQ193: 0 | BR193: 0 | BS193: 0 | BT193: 0 | BU193: 0 | BV193: 0
D194: Ploughing biodiesel | E194: =C167*'Operation and maintenance'!F28 -> 0 | F194: litre biodiesel | G194: 1 | H194: Operation | I194: Biodiesel | J194: ='Emission factors'!B18 -> Biodiesel (WTT) | K194: =SUMIF('Emission factors'!B:B,Calculations!J194,'Emission factors'!D:D) -> 1.92 | L194: =VLOOKUP(J194,'Emission factors'!B:C,2,FALSE) -> kg CO2e/litre | M194: 0 | N194: =SUMIF($O$125:$BV$125,"<=" & 'Project description and input'!$C$14,O194:BL194) -> 0 | O194: 0 | P194: 0 | Q194: 0 | R194: 0 | S194: 0 | T194: 0 | U194: 0 | V194: 0 | W194: 0 | X194: 0 | Y194: 0 | Z194: 0 | AA194: 0 | AB194: 0 | AC194: 0 | AD194: 0 | AE194: 0 | AF194: 0 | AG194: 0 | AH194: 0 | AI194: 0 | AJ194: 0 | AK194: 0 | AL194: 0 | AM194: 0 | AN194: 0 | AO194: 0 | AP194: 0 | AQ194: 0 | AR194: 0 | AS194: 0 | AT194: 0 | AU194: 0 | AV194: 0 | AW194: 0 | AX194: 0 | AY194: 0 | AZ194: 0 | BA194: 0 | BB194: 0 | BC194: 0 | BD194: 0 | BE194: 0 | BF194: 0 | BG194: 0 | BH194: 0 | BI194: 0 | BJ194: 0 | BK194: 0 | BL194: 0 | BM194: 0 | BN194: 0 | BO194: 0 | BP194: 0 | BQ194: 0 | BR194: 0 | BS194: 0 | BT194: 0 | BU194: 0 | BV194: 0
D195: Ploughing electricity/hydrogen | E195: =C167*'Operation and maintenance'!G28 -> 0 | F195: kWh | G195: 1 | H195: Operation | I195: Electricity | J195: ='Emission factors'!B24 -> Electricity 55 years, European mix | K195: =SUMIF('Emission factors'!B:B,Calculations!J195,'Emission factors'!D:D) -> 0.136 | L195: =VLOOKUP(J195,'Emission factors'!B:C,2,FALSE) -> kg CO2e/kWh | M195: 0 | N195: =SUMIF($O$125:$BV$125,"<=" & 'Project description and input'!$C$14,O195:BL195) -> 0 | O195: 0 | P195: 0 | Q195: 0 | R195: 0 | S195: 0 | T195: 0 | U195: 0 | V195: 0 | W195: 0 | X195: 0 | Y195: 0 | Z195: 0 | AA195: 0 | AB195: 0 | AC195: 0 | AD195: 0 | AE195: 0 | AF195: 0 | AG195: 0 | AH195: 0 | AI195: 0 | AJ195: 0 | AK195: 0 | AL195: 0 | AM195: 0 | AN195: 0 | AO195: 0 | AP195: 0 | AQ195: 0 | AR195: 0 | AS195: 0 | AT195: 0 | AU195: 0 | AV195: 0 | AW195: 0 | AX195: 0 | AY195: 0 | AZ195: 0 | BA195: 0 | BB195: 0 | BC195: 0 | BD195: 0 | BE195: 0 | BF195: 0 | BG195: 0 | BH195: 0 | BI195: 0 | BJ195: 0 | BK195: 0 | BL195: 0 | BM195: 0 | BN195: 0 | BO195: 0 | BP195: 0 | BQ195: 0 | BR195: 0 | BS195: 0 | BT195: 0 | BU195: 0 | BV195: 0
D196: Guard rail | E196: =C167*'Additions road'!D7*'Calculation factors'!D85 -> 0 | F196: kg steel | G196: ='Calculation factors'!D52 -> 30 | H196: Maintenance | I196: Steel | J196: ='Emission factors'!B14 -> Steel | K196: =SUMIF('Emission factors'!B:B,Calculations!J196,'Emission factors'!D:D) -> 2.1235 | L196: =VLOOKUP(J196,'Emission factors'!B:C,2,FALSE) -> kg CO2e/kg | M196: 0 | N196: =SUMIF($O$125:$BV$125,"<=" & 'Project description and input'!$C$14,O196:BL196) -> 0 | O196: =IF(MOD(O$125,$G196)=0,$M196,"") ->  | Y196: =IF(MOD(Y$125,$G196)=0,$M196,"") ->  | AI196: =IF(MOD(AI$125,$G196)=0,$M196,"") ->  | AR196: 0 | AS196: =IF(MOD(AS$125,$G196)=0,$M196,"") ->  | BC196: =IF(MOD(BC$125,$G196)=0,$M196,"") ->  | BM196: =IF(MOD(BM$125,$G196)=0,$M196,"") ->  | BV196: 0
D197: Replacement guard rail diesel | E197: =C167*'Additions road'!E7*'Calculation factors'!D85 -> 0 | F197: litre diesel | G197: ='Calculation factors'!D52 -> 30 | H197: Maintenance | I197: Diesel | J197: ='Emission factors'!B20 -> Fossil diesel (WTW) | K197: =SUMIF('Emission factors'!B:B,Calculations!J197,'Emission factors'!D:D) -> 3.24 | L197: =VLOOKUP(J197,'Emission factors'!B:C,2,FALSE) -> kg CO2e/litre | M197: =(E197*K197)/1000 -> 0 | N197: =SUMIF($O$125:$BV$125,"<=" & 'Project description and input'!$C$14,O197:BL197) -> 0 | AR197: 0 | BV197: 0
D198: Replacement guard rail biodiesel | E198: =C167*'Additions road'!F7*'Calculation factors'!D85 -> 0 | F198: litre biodiesel | G198: ='Calculation factors'!D52 -> 30 | H198: Maintenance | I198: Biodiesel | J198: ='Emission factors'!B18 -> Biodiesel (WTT) | K198: =SUMIF('Emission factors'!B:B,Calculations!J198,'Emission factors'!D:D) -> 1.92 | L198: =VLOOKUP(J198,'Emission factors'!B:C,2,FALSE) -> kg CO2e/litre | M198: 0 | N198: =SUMIF($O$125:$BV$125,"<=" & 'Project description and input'!$C$14,O198:BL198) -> 0 | AR198: 0 | BV198: 0
D199: Replacement guard rail electricity/hydrogen | E199: =C167*'Additions road'!G7*'Calculation factors'!D85 -> 0 | F199: kWh | G199: ='Calculation factors'!D52 -> 30 | H199: Maintenance | I199: Electricity | J199: ='Emission factors'!B24 -> Electricity 55 years, European mix | K199: =SUMIF('Emission factors'!B:B,Calculations!J199,'Emission factors'!D:D) -> 0.136 | L199: =VLOOKUP(J199,'Emission factors'!B:C,2,FALSE) -> kg CO2e/kWh | M199: 0 | N199: =SUMIF($O$125:$BV$125,"<=" & 'Project description and input'!$C$14,O199:BL199) -> 0 | AR199: 0 | BV199: 0
D200: Transport of guard rail diesel | E200: =C167*'Operation and maintenance'!F19*'Calculation factors'!D85 -> 0 | F200: litre diesel | G200: ='Calculation factors'!D52 -> 30 | H200: Maintenance | I200: Diesel | J200: ='Emission factors'!B20 -> Fossil diesel (WTW) | K200: =SUMIF('Emission factors'!B:B,Calculations!J200,'Emission factors'!D:D) -> 3.24 | L200: =VLOOKUP(J200,'Emission factors'!B:C,2,FALSE) -> kg CO2e/litre | M200: 0 | N200: =SUMIF($O$125:$BV$125,"<=" & 'Project description and input'!$C$14,O200:BL200) -> 0 | AR200: 0 | BV200: 0
D201: Transport of guard rail biodiesel | E201: =C167*'Operation and maintenance'!G19*'Calculation factors'!D85 -> 0 | F201: litre biodiesel | G201: ='Calculation factors'!D52 -> 30 | H201: Maintenance | I201: Biodiesel | J201: ='Emission factors'!B18 -> Biodiesel (WTT) | K201: =SUMIF('Emission factors'!B:B,Calculations!J201,'Emission factors'!D:D) -> 1.92 | L201: =VLOOKUP(J201,'Emission factors'!B:C,2,FALSE) -> kg CO2e/litre | M201: 0 | N201: =SUMIF($O$125:$BV$125,"<=" & 'Project description and input'!$C$14,O201:BL201) -> 0 | AR201: 0 | BV201: 0
... 110 more rows

Sheet Operation and maintenance
B1: Operation and maintenance
B2: Background data
B3: AADT | C3: ='Project description and input'!C15 -> 0
B5: Materials, energy demand and transport
B6: Main category | C6: Subcategory | D6: Production factor type | E6: Material demand | F6: Energy demand | J6: Comments
E7: Mass per road distance [kg/m] | F7: Amount of diesel [litre/m] | G7: Amount of bio [litre/m] | H7: Amount of elec. [kWh/m] | I7: Amount of elec. [kWh/(m*m)] | J7: All quantities in this tab are stated per year. For maintenance performed at replacement intervals, the values apply for the years in which maintenance takes place. Construction roads are omitted from all calculations related to operation.
B8: Continous operation | C8: Lighting open main road | D8: Electricity | H8: ='Calculation factors'!D61*'Calculation factors'!D75/1000 -> 34 | J8: Is multiplied by the number of lighting rows and total length of open main road and bridge to find total consumption for the section.
C9: Lighting open secpndary road | D9: Electricity | H9: ='Calculation factors'!D61*'Calculation factors'!D76/1000 -> 0 | J9: Is multiplied by the number of lighting rows and total length of secondary road to find total consumption for the section.
C10: Lighting tunnel | D10: Electricity | H10: ='Calculation factors'!D62 -> 34 | J10: Is multiplied by the number of tubes and tunnel length to find consumption for each tunnel.
C11: Pump operation single tube tunnel | D11: Electricity | H11: ='Calculation factors'!D68*'Calculation factors'!D48+'Calculation factors'!D67*(1-'Calculation factors'!D48) -> 0 | J11: Is multiplied by the total length of single tube tunnels to find the total consumption for the section.
C12: Pump operation double tube tunnel | D12: Electricity | H12: ='Calculation factors'!D68*2*'Calculation factors'!D49+'Calculation factors'!D67*2*(1-'Calculation factors'!D49) -> 0 | J12: Is multiplied by the total length of double tube tunnels to find the total consumption for the section.
C13: Fan operation single tube tunnel | D13: Electricity | H13: ='Calculation factors'!D48*'Calculation factors'!D64/1000*'Operation and maintenance'!C3+(1-'Calculation factors'!D48)*'Calculation factors'!D63/1000*'Operation and maintenance'!C3 -> 0 | J13: Is multiplied by the total length of single tube tunnels to find the total consumption for the section. Formula from "Metoderapport" p. 46
C14: Fan operation double tube tunnel | D14: Electricity | H14: ='Calculation factors'!D49*'Calculation factors'!D66/1000*'Operation and maintenance'!C3+(1-'Calculation factors'!D49)*'Calculation factors'!D65/1000*'Operation and maintenance'!C3 -> 0 | J14: Is multiplied by the total length of double tube tunnels to find the total consumption for the section. Formula from "Metoderapport" p. 46
B15: Seasonal operation | C15: Ditch clearing | D15: Soil masses/vegetation | E15: ='Calculation factors'!D17*'Calculation factors'!D72 -> 172.9 | F15: =E15/1000*'Transport and energy demand'!D5*'Transport and energy demand'!D29*'Transport and energy demand'!N29 -> 0.0482391 | G15: =E15/1000*'Transport and energy demand'!D5*'Transport and energy demand'!D29*'Transport and energy demand'!M29 -> 0.0036309 | H15: =E15/1000*'Transport and energy demand'!D5*'Transport and energy demand'!H29*'Transport and energy demand'!L29 -> 0 | J15: Operating interval with default value of 3 years (can be replaced with project-specific value in the calculation factor tab). Is multiplied by the number of ditches and total section length to find total consumption for the section.
C16: Salt | D16: Salt | E16: ='Calculation factors'!D69*1000/1000 -> 10.5 | F16: =E16/1000*'Transport and energy demand'!D15*'Transport and energy demand'!D29*'Transport and energy demand'!N29 -> 0.09765 | G16: =E16/1000*'Transport and energy demand'!D15*'Transport and energy demand'!D29*'Transport and energy demand'!M29 -> 0.00735 | H16: =E16/1000*'Transport and energy demand'!D15*'Transport and energy demand'!H29*'Transport and energy demand'!L29 -> 0 | J16: Is multiplied by the total section length to find the total consumption for the section.
B17: Maintenance | C17: Lamp posts main road and bridge replacement | D17: Steel | E17: ='Calculation factors'!D74*'Calculation factors'!D75/1000 -> 4.82375 | F17: =(E17/1000)*'Transport and energy demand'!D25*'Transport and energy demand'!D11*'Transport and energy demand'!N25 -> 0.0358887 | G17: =(E17/1000)*'Transport and energy demand'!D25*'Transport and energy demand'!D11*'Transport and energy demand'!M25 -> 0.0027013 | H17: =(E17/1000)*'Transport and energy demand'!H24*'Transport and energy demand'!D11*'Transport and energy demand'!L25 -> 0 | J17: Replacement interval given by lifetime with default value equal to 30 years (can be replaced with project-specific value in the calculation factor tab). Is multiplied by the number of lighting rows and total length of open main road and bridge to find total consumption for the section.
C18: Lamp posts secondary road replacement | D18: Steel | E18: ='Calculation factors'!D74*'Calculation factors'!D76/1000 -> 0 | F18: =(E18/1000)*'Transport and energy demand'!D25*'Transport and energy demand'!D11*'Transport and energy demand'!N25 -> 0 | G18: =(E18/1000)*'Transport and energy demand'!D25*'Transport and energy demand'!D11*'Transport and energy demand'!M25 -> 0 | H18: =(E18/1000)*'Transport and energy demand'!H24*'Transport and energy demand'!D11*'Transport and energy demand'!L25 -> 0 | J18: Replacement interval given by lifetime with default value equal to 30 years (can be replaced with project-specific value in the calculation factor tab). Is multiplied by the number of lighting rows and total length of secondary road and bridge to find total consumption for the section.
C19: Guard rail/safety fence replacement | D19: Steel | E19: ='Calculation factors'!D77 -> 16.5 | F19: =(E19/1000)*'Transport and energy demand'!D25*'Transport and energy demand'!D11*'Transport and energy demand'!N25 -> 0.12276 | G19: =(E19/1000)*'Transport and energy demand'!D25*'Transport and energy demand'!D11*'Transport and energy demand'!M25 -> 0.00924 | H19: =(E19/1000)*'Transport and energy demand'!H24*'Transport and energy demand'!D11*'Transport and energy demand'!L25 -> 0 | J19: Replacement interval given by lifetime with default value equal to 30 years (can be replaced with project-specific value in the calculation factor tab). Is multiplied by the number of safety fences and total section length to find the total consumption for the section.
B21: Construction work
B22: Main category | C22: Category | D22: Type of machinery | E22: Energy demand | H22: Comments
E23: Amount of diesel [litre/m] | F23: Amount of bio [litre/m] | G23: Amount of elec. [kWh/m] | H23: All quantities in this tab are stated per year. For maintenance performed at replacement intervals, the values apply for the years in which maintenance takes place. Construction roads are omitted from all calculations related to operation.
B24: Seasonal operation | C24: Roadside mowing | D24: Loading shovel/tractor | E24: ='Transport and energy demand'!D41/'Transport and energy demand'!D57*'Transport and energy demand'!N41 -> 0.00093 | F24: ='Transport and energy demand'!D41/'Transport and energy demand'!D57*'Transport and energy demand'!M41 -> 7e-05 | G24: ='Transport and energy demand'!H41/'Transport and energy demand'!D57*'Transport and energy demand'!L41 -> 0 | H24: Is multiplied by the total length of open road and the number of ditches to find the total consumption for the section.
C25: Ditch clearing | D25: Excavator | E25: ='Transport and energy demand'!D34/'Transport and energy demand'!D55*'Transport and energy demand'!N34 -> 0.062 | F25: ='Transport and energy demand'!D34/'Transport and energy demand'!D55*'Transport and energy demand'!M34 -> 0.004666666667 | G25: ='Transport and energy demand'!H34/'Transport and energy demand'!D55*'Transport and energy demand'!L34 -> 0 | H25: Operating interval with default value of 3 years (can be replaced with project-specific value in the calculation factor tab). Is multiplied by the number of ditches and total section length to find total consumption for the section.
C26: Sweeping | D26: Loading shovel | E26: ='Transport and energy demand'!D42/'Transport and energy demand'!D56*'Transport and energy demand'!N42 -> 0.0034875 | F26: ='Transport and energy demand'!D42/'Transport and energy demand'!D56*'Transport and energy demand'!M42 -> 0.0002625 | G26: ='Transport and energy demand'!H42/'Transport and energy demand'!D56*'Transport and energy demand'!L42 -> 0 | H26: Is multiplied by section length and number of lanes to find total consumption for each part of the section.
C27: Spreading salt | D27: Salt vehicle (lorry) | E27: ='Transport and energy demand'!D43/1000*'Calculation factors'!D71*'Transport and energy demand'!N43 -> 0.05952 | F27: ='Transport and energy demand'!D43/1000*'Calculation factors'!D71*'Transport and energy demand'!M43 -> 0.00448 | G27: ='Transport and energy demand'!H43/1000*'Calculation factors'!D71*'Transport and energy demand'!L43 -> 0 | H27: Is multiplied by the total length of open main road and bridges and half of the number of lanes to find the total consumption for each part of the section (assuming that two lanes are salted at the same time).
C28: Ploughing | D28: Snowplough | E28: ='Transport and energy demand'!D44/1000*'Calculation factors'!D70*'Transport and energy demand'!N44 -> 0.43134144 | F28: ='Transport and energy demand'!D44/1000*'Calculation factors'!D70*'Transport and energy demand'!M44 -> 0.03246656 | G28: ='Transport and energy demand'!H44/1000*'Calculation factors'!D70*'Transport and energy demand'!L44 -> 0 | H28: Is multiplied by the total length of the open main road and bridges to find the total consumption for each part of the section.
B29: Maintenance | C29: Replacement of guard rail/safety fence | D29: Piling rig/lorry | E29: ='Transport and energy demand'!D40*'Transport and energy demand'!N40 -> 0.372 | F29: ='Transport and energy demand'!D40*'Transport and energy demand'!M40 -> 0.028 | G29: ='Transport and energy demand'!H40*'Transport and energy demand'!L40 -> 0 | H29: Replacement interval given by lifetime with default value equal to 30 years (can be replaced with project-specific value in the calculation factor tab). Is multiplied by the number of safety fences and total section length to find the total consumption for the section.

Sheet Main road
B2: Materials and transport
B3: Category | C3: Material demand | E3: Transport | H3: Comments
C4: Volume per area [m3/m2] | D4: Mass per area [kg/m2] | E4: Amount of diesel [litre/m2] | F4: Amount of bio [litre/m2] | G4: Amount of elec. [kWh/m2]
B5: Wearing course (Ska) | C5: ='Calculation factors'!D19 -> 0.045 | D5: =C5*'Calculation factors'!D7 -> 112.5 | E5: =(D5/1000)*'Transport and energy demand'!D20*'Transport and energy demand'!D7*'Transport and energy demand'!N20 -> 0.062775 | F5: =(D5/1000)*'Transport and energy demand'!D20*'Transport and energy demand'!D7*'Transport and energy demand'!M20 -> 0.004725 | G5: =(D5/1000)*'Transport and energy demand'!H20*'Transport and energy demand'!D7*'Transport and energy demand'!L20 -> 0
B6: Binder course (Agb) | C6: ='Calculation factors'!D20 -> 0.035 | D6: =C6*'Calculation factors'!D7 -> 87.5 | E6: =(D6/1000)*'Transport and energy demand'!D20*'Transport and energy demand'!D7*'Transport and energy demand'!N20 -> 0.048825 | F6: =(D6/1000)*'Transport and energy demand'!D20*'Transport and energy demand'!D7*'Transport and energy demand'!M20 -> 0.003675 | G6: =(D6/1000)*'Transport and energy demand'!H20*'Transport and energy demand'!D7*'Transport and energy demand'!L20 -> 0
B7: Upper base course (Ag) | C7: ='Calculation factors'!D21 -> 0.13 | D7: =C7*'Calculation factors'!D8 -> 312 | E7: =(D7/1000)*'Transport and energy demand'!D21*'Transport and energy demand'!D8*'Transport and energy demand'!N21 -> 0.174096 | F7: =(D7/1000)*'Transport and energy demand'!D21*'Transport and energy demand'!D8*'Transport and energy demand'!M21 -> 0.013104 | G7: =(D7/1000)*'Transport and energy demand'!H21*'Transport and energy demand'!D8*'Transport and energy demand'!L21 -> 0
B8: Lower base course | C8: ='Calculation factors'!D22 -> 0.45 | D8: =C8*'Calculation factors'!D10 -> 697.5 | E8: =(D8/1000)*'Transport and energy demand'!D22*'Transport and energy demand'!D9*'Transport and energy demand'!N22 -> 0.1946025 | F8: =(D8/1000)*'Transport and energy demand'!D22*'Transport and energy demand'!D9*'Transport and energy demand'!M22 -> 0.0146475 | G8: =(D8/1000)*'Transport and energy demand'!H22*'Transport and energy demand'!D9*'Transport and energy demand'!L22 -> 0
B9: Frost protection course | C9: ='Calculation factors'!D23 -> 1.74 | D9: =C9*'Calculation factors'!D9 -> 2697 | E9: =(D9/1000)*'Transport and energy demand'!D22*'Transport and energy demand'!D9*'Transport and energy demand'!N22 -> 0.752463 | F9: =(D9/1000)*'Transport and energy demand'!D22*'Transport and energy demand'!D9*'Transport and energy demand'!M22 -> 0.056637 | G9: =(D9/1000)*'Transport and energy demand'!H22*'Transport and energy demand'!D9*'Transport and energy demand'!L22 -> 0
B12: Construction work
B13: Category | C13: Type of machinery | D13: Construction work | H13: Comments
D14: Construction work [m2/h] | E14: Amount of diesel [litre/m2] | F14: Amount of bio [litre/m2] | G14: Amount of elec. [kWh/m2]
B15: Wearing course | C15: Steamroller | D15: =('Transport and energy demand'!D46*1000)/D5 -> 666.6666667 | E15: =('Transport and energy demand'!D31/D15)*'Transport and energy demand'!N31 -> 0.004185 | F15: =('Transport and energy demand'!D31/D15)*'Transport and energy demand'!M31 -> 0.000315 | G15: =('Transport and energy demand'!H31/D15)*'Transport and energy demand'!L31 -> 0
C16: Tractor | D16: =('Transport and energy demand'!D47*1000)/D5 -> 2666.666667 | E16: =('Transport and energy demand'!D32/D16)*'Transport and energy demand'!N32 -> 0.00174375 | F16: =('Transport and energy demand'!D32/D16)*'Transport and energy demand'!M32 -> 0.00013125 | G16: =('Transport and energy demand'!H32/D16)*'Transport and energy demand'!L32 -> 0
C17: Paver | D17: =('Transport and energy demand'!D48*1000)/D5 -> 33.33333333 | E17: =('Transport and energy demand'!D33/D17)*'Transport and energy demand'!N33 -> 0.0837 | F17: =('Transport and energy demand'!D33/D17)*'Transport and energy demand'!M33 -> 0.0063 | G17: =('Transport and energy demand'!H33/D17)*'Transport and energy demand'!L33 -> 0
B18: Binder course | C18: Steamroller | D18: =('Transport and energy demand'!D46*1000)/D6 -> 857.1428571 | E18: =('Transport and energy demand'!D31/D18)*'Transport and energy demand'!N31 -> 0.003255 | F18: =('Transport and energy demand'!D31/D18)*'Transport and energy demand'!M31 -> 0.000245 | G18: =('Transport and energy demand'!H31/D18)*'Transport and energy demand'!L31 -> 0
C19: Tractor | D19: =('Transport and energy demand'!D47*1000)/D6 -> 3428.571429 | E19: =('Transport and energy demand'!D32/D19)*'Transport and energy demand'!N32 -> 0.00135625 | F19: =('Transport and energy demand'!D32/D19)*'Transport and energy demand'!M32 -> 0.0001020833333 | G19: =('Transport and energy demand'!H32/D19)*'Transport and energy demand'!L32 -> 0
C20: Paver | D20: =('Transport and energy demand'!D48*1000)/D6 -> 42.85714286 | E20: =('Transport and energy demand'!D33/D20)*'Transport and energy demand'!N33 -> 0.0651 | F20: =('Transport and energy demand'!D33/D20)*'Transport and energy demand'!M33 -> 0.0049 | G20: =('Transport and energy demand'!H33/D20)*'Transport and energy demand'!L33 -> 0
B21: Upper base course | C21: Steamroller | D21: =('Transport and energy demand'!D46*1000)/D7 -> 240.3846154 | E21: =('Transport and energy demand'!D31/D21)*'Transport and energy demand'!N31 -> 0.0116064 | F21: =('Transport and energy demand'!D31/D21)*'Transport and energy demand'!M31 -> 0.0008736 | G21: =('Transport and energy demand'!H31/D21)*'Transport and energy demand'!L31 -> 0
C22: Tractor | D22: =('Transport and energy demand'!D47*1000)/D7 -> 961.5384615 | E22: =('Transport and energy demand'!D32/D22)*'Transport and energy demand'!N32 -> 0.004836 | F22: =('Transport and energy demand'!D32/D22)*'Transport and energy demand'!M32 -> 0.000364 | G22: =('Transport and energy demand'!H32/D22)*'Transport and energy demand'!L32 -> 0
C23: Paver | D23: =('Transport and energy demand'!D48*1000)/D7 -> 12.01923077 | E23: =('Transport and energy demand'!D33/D23)*'Transport and energy demand'!N33 -> 0.232128 | F23: =('Transport and energy demand'!D33/D23)*'Transport and energy demand'!M33 -> 0.017472 | G23: =('Transport and energy demand'!H33/D23)*'Transport and energy demand'!L33 -> 0
B24: Lower base course | C24: Excavator | D24: =('Transport and energy demand'!D49*1000)/D8 -> 215.0537634 | E24: =('Transport and energy demand'!D34/D24)*'Transport and energy demand'!N34 -> 0.08649 | F24: =('Transport and energy demand'!D34/D24)*'Transport and energy demand'!M34 -> 0.00651 | G24: =('Transport and energy demand'!H34/D24)*'Transport and energy demand'!L34 -> 0
C25: Coarse crusher | D25: =('Transport and energy demand'!D50*1000)/D8 -> 179.2114695 | E25: =('Transport and energy demand'!D35/D25)*'Transport and energy demand'!N35 -> 0.129735 | F25: =('Transport and energy demand'!D35/D25)*'Transport and energy demand'!M35 -> 0.009765 | G25: =('Transport and energy demand'!H35/D25)*'Transport and energy demand'!L35 -> 0
B26: Frost protection course | C26: Excavator | D26: =('Transport and energy demand'!D49*1000)/D9 -> 55.61735261 | E26: =('Transport and energy demand'!D34/D26)*'Transport and energy demand'!N34 -> 0.334428 | F26: =('Transport and energy demand'!D34/D26)*'Transport and energy demand'!M34 -> 0.025172 | G26: =('Transport and energy demand'!H34/D26)*'Transport and energy demand'!L34 -> 0
C27: Coarse crusher | D27: =('Transport and energy demand'!D50*1000)/D9 -> 46.34779385 | E27: =('Transport and energy demand'!D35/D27)*'Transport and energy demand'!N35 -> 0.501642 | F27: =('Transport and energy demand'!D35/D27)*'Transport and energy demand'!M35 -> 0.037758 | G27: =('Transport and energy demand'!H35/D27)*'Transport and energy demand'!L35 -> 0
C28: Fine crusher | D28: =('Transport and energy demand'!D51*1000)/D9 -> 92.69558769 | E28: =('Transport and energy demand'!D36/D28)*'Transport and energy demand'!N36 -> 0.250821 | F28: =('Transport and energy demand'!D36/D28)*'Transport and energy demand'!M36 -> 0.018879 | G28: =('Transport and energy demand'!H36/D28)*'Transport and energy demand'!L36 -> 0

Sheet Secondary road
B2: Materials and transport
B3: Category | C3: Material demand | E3: Transport | H3: Comments
C4: Volume per area [m3/m2] | D4: Mass per area [kg/m2] | E4: Amount of diesel [litre/m2] | F4: Amount of bio [litre/m2] | G4: Amount of elec. [kWh/m2]
B5: Wearing course (Agb) | C5: ='Calculation factors'!D19 -> 0.045 | D5: =C5*'Calculation factors'!D7 -> 112.5 | E5: =(D5/1000)*'Transport and energy demand'!D20*'Transport and energy demand'!D7*'Transport and energy demand'!N20 -> 0.062775 | F5: =(D5/1000)*'Transport and energy demand'!D20*'Transport and energy demand'!D7*'Transport and energy demand'!M20 -> 0.004725 | G5: =(D5/1000)*'Transport and energy demand'!H20*'Transport and energy demand'!D7*'Transport and energy demand'!L20 -> 0
B6: Binder course (Agb) | C6: ='Calculation factors'!D20 -> 0.035 | D6: =C6*'Calculation factors'!D7 -> 87.5 | E6: =(D6/1000)*'Transport and energy demand'!D20*'Transport and energy demand'!D7*'Transport and energy demand'!N20 -> 0.048825 | F6: =(D6/1000)*'Transport and energy demand'!D20*'Transport and energy demand'!D7*'Transport and energy demand'!M20 -> 0.003675 | G6: =(D6/1000)*'Transport and energy demand'!H20*'Transport and energy demand'!D7*'Transport and energy demand'!L20 -> 0
B7: Upper base course (Ag) | C7: ='Calculation factors'!D21 -> 0.13 | D7: =C7*'Calculation factors'!D8 -> 312 | E7: =(D7/1000)*'Transport and energy demand'!D21*'Transport and energy demand'!D8*'Transport and energy demand'!N21 -> 0.174096 | F7: =(D7/1000)*'Transport and energy demand'!D21*'Transport and energy demand'!D8*'Transport and energy demand'!M21 -> 0.013104 | G7: =(D7/1000)*'Transport and energy demand'!H21*'Transport and energy demand'!D8*'Transport and energy demand'!L21 -> 0
B8: Lower base course | C8: ='Calculation factors'!D22 -> 0.45 | D8: =C8*'Calculation factors'!D10 -> 697.5 | E8: =(D8/1000)*'Transport and energy demand'!D22*'Transport and energy demand'!D9*'Transport and energy demand'!N22 -> 0.1946025 | F8: =(D8/1000)*'Transport and energy demand'!D22*'Transport and energy demand'!D9*'Transport and energy demand'!M22 -> 0.0146475 | G8: =(D8/1000)*'Transport and energy demand'!H22*'Transport and energy demand'!D9*'Transport and energy demand'!L22 -> 0
B9: Frost protection course | C9: ='Calculation factors'!D23 -> 1.74 | D9: =C9*'Calculation factors'!D9 -> 2697 | E9: =(D9/1000)*'Transport and energy demand'!D22*'Transport and energy demand'!D9*'Transport and energy demand'!N22 -> 0.752463 | F9: =(D9/1000)*'Transport and energy demand'!D22*'Transport and energy demand'!D9*'Transport and energy demand'!M22 -> 0.056637 | G9: =(D9/1000)*'Transport and energy demand'!H22*'Transport and energy demand'!D9*'Transport and energy demand'!L22 -> 0
B12: Construction work
B13: Category | C13: Type of machinery | D13: Construction work | H13: Comments
D14: Construction work [m2/h] | E14: Amount of diesel [litre/m2] | F14: Amount of bio [litre/m2] | G14: Amount of elec. [kWh/m2]
B15: Wearing course | C15: Steamroller | D15: =('Transport and energy demand'!D46*1000)/D5 -> 666.6666667 | E15: =('Transport and energy demand'!D31/D15)*'Transport and energy demand'!N31 -> 0.004185 | F15: =('Transport and energy demand'!D31/D15)*'Transport and energy demand'!M31 -> 0.000315 | G15: =('Transport and energy demand'!H31/D15)*'Transport and energy demand'!L31 -> 0
C16: Tractor | D16: =('Transport and energy demand'!D47*1000)/D5 -> 2666.666667 | E16: =('Transport and energy demand'!D32/D16)*'Transport and energy demand'!N32 -> 0.00174375 | F16: =('Transport and energy demand'!D32/D16)*'Transport and energy demand'!M32 -> 0.00013125 | G16: =('Transport and energy demand'!H32/D16)*'Transport and energy demand'!L32 -> 0
C17: Paver | D17: =('Transport and energy demand'!D48*1000)/D5 -> 33.33333333 | E17: =('Transport and energy demand'!D33/D17)*'Transport and energy demand'!N33 -> 0.0837 | F17: =('Transport and energy demand'!D33/D17)*'Transport and energy demand'!M33 -> 0.0063 | G17: =('Transport and energy demand'!H33/D17)*'Transport and energy demand'!L33 -> 0
B18: Binder course | C18: Steamroller | D18: =('Transport and energy demand'!D46*1000)/D6 -> 857.1428571 | E18: =('Transport and energy demand'!D31/D18)*'Transport and energy demand'!N31 -> 0.003255 | F18: =('Transport and energy demand'!D31/D18)*'Transport and energy demand'!M31 -> 0.000245 | G18: =('Transport and energy demand'!H31/D18)*'Transport and energy demand'!L31 -> 0
C19: Tractor | D19: =('Transport and energy demand'!D47*1000)/D6 -> 3428.571429 | E19: =('Transport and energy demand'!D32/D19)*'Transport and energy demand'!N32 -> 0.00135625 | F19: =('Transport and energy demand'!D32/D19)*'Transport and energy demand'!M32 -> 0.0001020833333 | G19: =('Transport and energy demand'!H32/D19)*'Transport and energy demand'!L32 -> 0
C20: Paver | D20: =('Transport and energy demand'!D48*1000)/D6 -> 42.85714286 | E20: =('Transport and energy demand'!D33/D20)*'Transport and energy demand'!N33 -> 0.0651 | F20: =('Transport and energy demand'!D33/D20)*'Transport and energy demand'!M33 -> 0.0049 | G20: =('Transport and energy demand'!H33/D20)*'Transport and energy demand'!L33 -> 0
B21: Upper base course | C21: Steamroller | D21: =('Transport and energy demand'!D46*1000)/D7 -> 240.3846154 | E21: =('Transport and energy demand'!D31/D21)*'Transport and energy demand'!N31 -> 0.0116064 | F21: =('Transport and energy demand'!D31/D21)*'Transport and energy demand'!M31 -> 0.0008736 | G21: =('Transport and energy demand'!H31/D21)*'Transport and energy demand'!L31 -> 0
C22: Tractor | D22: =('Transport and energy demand'!D47*1000)/D7 -> 961.5384615 | E22: =('Transport and energy demand'!D32/D22)*'Transport and energy demand'!N32 -> 0.004836 | F22: =('Transport and energy demand'!D32/D22)*'Transport and energy demand'!M32 -> 0.000364 | G22: =('Transport and energy demand'!H32/D22)*'Transport and energy demand'!L32 -> 0
C23: Paver | D23: =('Transport and energy demand'!D48*1000)/D7 -> 12.01923077 | E23: =('Transport and energy demand'!D33/D23)*'Transport and energy demand'!N33 -> 0.232128 | F23: =('Transport and energy demand'!D33/D23)*'Transport and energy demand'!M33 -> 0.017472 | G23: =('Transport and energy demand'!H33/D23)*'Transport and energy demand'!L33 -> 0
B24: Lower base course | C24: Excavator | D24: =('Transport and energy demand'!D49*1000)/D8 -> 215.0537634 | E24: =('Transport and energy demand'!D34/D24)*'Transport and energy demand'!N34 -> 0.08649 | F24: =('Transport and energy demand'!D34/D24)*'Transport and energy demand'!M34 -> 0.00651 | G24: =('Transport and energy demand'!H34/D24)*'Transport and energy demand'!L34 -> 0
C25: Coarse crusher | D25: =('Transport and energy demand'!D50*1000)/D8 -> 179.2114695 | E25: =('Transport and energy demand'!D35/D25)*'Transport and energy demand'!N35 -> 0.129735 | F25: =('Transport and energy demand'!D35/D25)*'Transport and energy demand'!M35 -> 0.009765 | G25: =('Transport and energy demand'!H35/D25)*'Transport and energy demand'!L35 -> 0
B26: Frost protection course | C26: Excavator | D26: =('Transport and energy demand'!D49*1000)/D9 -> 55.61735261 | E26: =('Transport and energy demand'!D34/D26)*'Transport and energy demand'!N34 -> 0.334428 | F26: =('Transport and energy demand'!D34/D26)*'Transport and energy demand'!M34 -> 0.025172 | G26: =('Transport and energy demand'!H34/D26)*'Transport and energy demand'!L34 -> 0
C27: Coarse crusher | D27: =('Transport and energy demand'!D50*1000)/D9 -> 46.34779385 | E27: =('Transport and energy demand'!D35/D27)*'Transport and energy demand'!N35 -> 0.501642 | F27: =('Transport and energy demand'!D35/D27)*'Transport and energy demand'!M35 -> 0.037758 | G27: =('Transport and energy demand'!H35/D27)*'Transport and energy demand'!L35 -> 0
C28: Fine crusher | D28: =('Transport and energy demand'!D51*1000)/D9 -> 92.69558769 | E28: =('Transport and energy demand'!D36/D28)*'Transport and energy demand'!N36 -> 0.250821 | F28: =('Transport and energy demand'!D36/D28)*'Transport and energy demand'!M36 -> 0.018879 | G28: =('Transport and energy demand'!H36/D28)*'Transport and energy demand'!L36 -> 0

Sheet Construction road
B2: Materials and transport
B3: Category | C3: Material demand | E3: Transport | H3: Comments
C4: Volume per area [m3/m2] | D4: Mass per area [kg/m2] | E4: Amount of diesel [litre/m2] | F4: Amount of bio [litre/m2] | G4: Amount of elec. [kWh/m2]
B5: Upper base course (Ag) | C5: ='Calculation factors'!D21 -> 0.13 | D5: =C5*'Calculation factors'!D8 -> 312 | E5: =(D5/1000)*'Transport and energy demand'!D21*'Transport and energy demand'!D8*'Transport and energy demand'!N21 -> 0.174096 | F5: =(D5/1000)*'Transport and energy demand'!D21*'Transport and energy demand'!D8*'Transport and energy demand'!M21 -> 0.013104 | G5: =(D5/1000)*'Transport and energy demand'!H21*'Transport and energy demand'!D8*'Transport and energy demand'!L21 -> 0
B6: Lower base course | C6: ='Calculation factors'!D22 -> 0.45 | D6: =C6*'Calculation factors'!D10 -> 697.5 | E6: =(D6/1000)*'Transport and energy demand'!D22*'Transport and energy demand'!D9*'Transport and energy demand'!N22 -> 0.1946025 | F6: =(D6/1000)*'Transport and energy demand'!D22*'Transport and energy demand'!D9*'Transport and energy demand'!M22 -> 0.0146475 | G6: =(D6/1000)*'Transport and energy demand'!H22*'Transport and energy demand'!D9*'Transport and energy demand'!L22 -> 0
B9: Construction work
B10: Category | C10: Type of machinery | D10: Construction work | H10: Comments
D11: Construction work [m2/h] | E11: Amount of diesel [litre/m2] | F11: Amount of bio [litre/m2] | G11: Amount of elec. [kWh/m2]
B12: Upper base course | C12: Steamroller | D12: =('Transport and energy demand'!D46*1000)/D5 -> 240.3846154 | E12: =('Transport and energy demand'!D31/D12)*'Transport and energy demand'!N31 -> 0.0116064 | F12: =('Transport and energy demand'!D31/D12)*'Transport and energy demand'!M31 -> 0.0008736 | G12: =('Transport and energy demand'!H31/D12)*'Transport and energy demand'!L31 -> 0
C13: Tractor | D13: =('Transport and energy demand'!D47*1000)/D5 -> 961.5384615 | E13: =('Transport and energy demand'!D32/D13)*'Transport and energy demand'!N32 -> 0.004836 | F13: =('Transport and energy demand'!D32/D13)*'Transport and energy demand'!M32 -> 0.000364 | G13: =('Transport and energy demand'!H32/D13)*'Transport and energy demand'!L32 -> 0
C14: Paver | D14: =('Transport and energy demand'!D48*1000)/D5 -> 12.01923077 | E14: =('Transport and energy demand'!D33/D14)*'Transport and energy demand'!N33 -> 0.232128 | F14: =('Transport and energy demand'!D33/D14)*'Transport and energy demand'!M33 -> 0.017472 | G14: =('Transport and energy demand'!H33/D14)*'Transport and energy demand'!L33 -> 0
B15: Lower base course | C15: Excavator | D15: =('Transport and energy demand'!D49*1000)/D6 -> 215.0537634 | E15: =('Transport and energy demand'!D34/D15)*'Transport and energy demand'!N34 -> 0.08649 | F15: =('Transport and energy demand'!D34/D15)*'Transport and energy demand'!M34 -> 0.00651 | G15: =('Transport and energy demand'!H34/D15)*'Transport and energy demand'!L34 -> 0
C16: Coarse crusher | D16: =('Transport and energy demand'!D50*1000)/D6 -> 179.2114695 | E16: =('Transport and energy demand'!D35/D16)*'Transport and energy demand'!N35 -> 0.129735 | F16: =('Transport and energy demand'!D35/D16)*'Transport and energy demand'!M35 -> 0.009765 | G16: =('Transport and energy demand'!H35/D16)*'Transport and energy demand'!L35 -> 0

Sheet Additions road
B2: Materials and transport
B3: Category | C3: Type of material | D3: Material demand | E3: Energy demand | H3: Comments
D4: Mass per road distance [kg/m] | E4: Amount of diesel [litre/m] | F4: Amount of bio [litre/m] | G4: Amount of elec. [kWh/m]
B5: Lamp posts main section | C5: Steel | D5: ='Calculation factors'!D74*'Calculation factors'!D75/1000 -> 4.82375 | E5: =(D5/1000)*'Transport and energy demand'!D25*'Transport and energy demand'!D11*'Transport and energy demand'!N25 -> 0.0358887 | F5: =(D5/1000)*'Transport and energy demand'!D25*'Transport and energy demand'!D11*'Transport and energy demand'!M25 -> 0.0027013 | G5: =(D5/1000)*'Transport and energy demand'!H24*'Transport and energy demand'!D11*'Transport and energy demand'!L25 -> 0 | H5: Only relevant for open main road and bridges. Per row of lamp posts.
B6: Lamp posts secondary road | C6: Steel | D6: ='Calculation factors'!D74*'Calculation factors'!D76/1000 -> 0 | E6: =(D6/1000)*'Transport and energy demand'!D25*'Transport and energy demand'!D11*'Transport and energy demand'!N25 -> 0 | F6: =(D6/1000)*'Transport and energy demand'!D25*'Transport and energy demand'!D11*'Transport and energy demand'!M25 -> 0 | G6: =(D6/1000)*'Transport and energy demand'!H24*'Transport and energy demand'!D11*'Transport and energy demand'!L25 -> 0 | H6: Only relevant for open secondary roads. Per row of lamp posts.
B7: Guard rail/safety fence | C7: Steel | D7: ='Calculation factors'!D77 -> 16.5 | E7: =(D7/1000)*'Transport and energy demand'!D25*'Transport and energy demand'!D11*'Transport and energy demand'!N25 -> 0.12276 | F7: =(D7/1000)*'Transport and energy demand'!D25*'Transport and energy demand'!D11*'Transport and energy demand'!M25 -> 0.00924 | G7: =(D7/1000)*'Transport and energy demand'!H24*'Transport and energy demand'!D11*'Transport and energy demand'!L25 -> 0
B9: Construction work
B10: Category | C10: Type of machinery | D10: Energy demand | G10: Comments
D11: Amount of diesel [litre/m] | E11: Amount of bio [litre/m] | F11: Amount of elec. [kWh/m]
B12: Mounting of guard rail/safety fence | C12: Piling rig/lorry | D12: ='Transport and energy demand'!D40*'Transport and energy demand'!N40 -> 0.372 | E12: ='Transport and energy demand'!D40*'Transport and energy demand'!M40 -> 0.028 | F12: ='Transport and energy demand'!H40*'Transport and energy demand'!L40 -> 0 | G12: In the calculationg of greenhouse gas emissions it is assumed four safety fences on four lane roads and two on two lane roads.
B13: Marking of roads | C13: Road marking vehicle (pickup) | D13: ='Transport and energy demand'!D38*'Transport and energy demand'!N38 -> 0.005487 | E13: ='Transport and energy demand'!D38*'Transport and energy demand'!M38 -> 0.000413 | F13: ='Transport and energy demand'!H38*'Transport and energy demand'!L38 -> 0
B14: Creating ditches | C14: Excavator | D14: ='Transport and energy demand'!D39*'Transport and energy demand'!N39 -> 37.2 | E14: ='Transport and energy demand'!D39*'Transport and energy demand'!M39 -> 2.8 | F14: ='Transport and energy demand'!H39*'Transport and energy demand'!L39 -> 0

Sheet Tunnel single tube
B1: Tunnel single tube
B2: Background data
B3: Total length of single tube tunnels [m] | C3: =Calculations!C88 -> 0 | D3: (Collected from input tab/calculations)
B4: Number of single tube tunnels | C4: ='Project description and input'!C6 -> 0
B5: Tunnel cross section | C5: ='Calculation factors'!D42 -> 10.5
B7: Materials and transport
B8: Category | C8: Type of material | D8: Material demand | H8: Transport | K8: Comments
D9: Volume per area [m3/m2] | E9: Mass per area [kg/m2] | F9: Amount of material [kg/m] | G9: Amount of material [m2/m] | H9: Amount of diesel [litre/m] | I9: Amount of bio [litre/m] | J9: Amount of elec. [kWh/m]
B10: Construction | C10: Concrete portal | D10: =IFERROR(('Calculation factors'!D44*2*C4)/('Calculation factors'!D42*'Tunnel single tube'!C3),0) -> 0 | E10: =D10*'Calculation factors'!D4 -> 0 | F10: =E10*'Calculation factors'!D42 -> 0 | H10: =(F10/1000)*'Transport and energy demand'!D24*'Transport and energy demand'!D10*'Transport and energy demand'!N24 -> 0 | I10: =(F10/1000)*'Transport and energy demand'!D24*'Transport and energy demand'!D10*'Transport and energy demand'!M24 -> 0 | J10: =(F10/1000)*'Transport and energy demand'!H24*'Transport and energy demand'!D10*'Transport and energy demand'!L24 -> 0
C11: Reinforcement portal | E11: =IFERROR(('Calculation factors'!D46*2*C4)/('Calculation factors'!D42*'Tunnel single tube'!C3),0) -> 0 | F11: =E11*'Calculation factors'!D42 -> 0 | H11: =(F11/1000)*'Transport and energy demand'!D26*'Transport and energy demand'!D12*'Transport and energy demand'!N26 -> 0 | I11: =(F11/1000)*'Transport and energy demand'!D26*'Transport and energy demand'!D12*'Transport and energy demand'!M26 -> 0 | J11: =(F11/1000)*'Transport and energy demand'!H26*'Transport and energy demand'!D12*'Transport and energy demand'!L26 -> 0
C12: Safety bolts | E12: ='Calculation factors'!D32/'Calculation factors'!D42 -> 4.19047619 | F12: ='Calculation factors'!D32*('Calculation factors'!D42/9.5) -> 48.63157895 | H12: =(F12/1000)*'Transport and energy demand'!D25*'Transport and energy demand'!D11*'Transport and energy demand'!N25 -> 0.3618189474 | I12: =(F12/1000)*'Transport and energy demand'!D25*'Transport and energy demand'!D11*'Transport and energy demand'!M25 -> 0.02723368421 | J12: =(F12/1000)*'Transport and energy demand'!H25*'Transport and energy demand'!D11*'Transport and energy demand'!L25 -> 0 | K12: Calculation taken from "Metoderapport"
C13: Frost protection arch | E13: =(VLOOKUP(C5,'Calculation factors'!M43:S53,3,FALSE)*'Calculation factors'!D12*'Calculation factors'!D25)/C5 -> 762.4311905 | F13: =E13*C5 -> 8005.5275 | G13: =VLOOKUP(C5,'Calculation factors'!M43:S53,3,FALSE) -> 22.13 | H13: =(F13/1000)*'Transport and energy demand'!D28*'Transport and energy demand'!D14*'Transport and energy demand'!N28 -> 10.4231968 | I13: =(F13/1000)*'Transport and energy demand'!D28*'Transport and energy demand'!D14*'Transport and energy demand'!M28 -> 0.784541695 | J13: =(F13/1000)*'Transport and energy demand'!D28*'Transport and energy demand'!D14*'Transport and energy demand'!L28 -> 0
B14: Pavement | C14: Wearing course (Ska) | D14: ='Calculation factors'!D19 -> 0.045 | E14: ='Calculation factors'!D7*D14 -> 112.5 | F14: =E14*'Calculation factors'!D42 -> 1181.25 | H14: =(F14/1000)*'Transport and energy demand'!D20*'Transport and energy demand'!D7*'Transport and energy demand'!N20 -> 0.6591375 | I14: =(F14/1000)*'Transport and energy demand'!D20*'Transport and energy demand'!D7*'Transport and energy demand'!M20 -> 0.0496125 | J14: =(F14/1000)*'Transport and energy demand'!H20*'Transport and energy demand'!D7*'Transport and energy demand'!L20 -> 0
C15: Binder course (Ska) | D15: ='Calculation factors'!D20 -> 0.035 | E15: ='Calculation factors'!D7*D15 -> 87.5 | F15: =E15*'Calculation factors'!D42 -> 918.75 | H15: =(F15/1000)*'Transport and energy demand'!D20*'Transport and energy demand'!D7*'Transport and energy demand'!N20 -> 0.5126625 | I15: =(F15/1000)*'Transport and energy demand'!D20*'Transport and energy demand'!D7*'Transport and energy demand'!M20 -> 0.0385875 | J15: =(F15/1000)*'Transport and energy demand'!H20*'Transport and energy demand'!D7*'Transport and energy demand'!L20 -> 0
C16: Upper base course (Ag) | D16: ='Calculation factors'!D21 -> 0.13 | E16: ='Calculation factors'!D8*D16 -> 312 | F16: =E16*'Calculation factors'!D42 -> 3276 | H16: =(F16/1000)*'Transport and energy demand'!D21*'Transport and energy demand'!D8*'Transport and energy demand'!N21 -> 1.828008 | I16: =(F16/1000)*'Transport and energy demand'!D21*'Transport and energy demand'!D8*'Transport and energy demand'!M21 -> 0.137592 | J16: =(F16/1000)*'Transport and energy demand'!H21*'Transport and energy demand'!D8*'Transport and energy demand'!L21 -> 0
C17: Lower base course | D17: ='Calculation factors'!D22 -> 0.45 | E17: ='Calculation factors'!D10*D17 -> 697.5 | F17: =E17*'Calculation factors'!D42 -> 7323.75 | H17: =(F17/1000)*'Transport and energy demand'!D22*'Transport and energy demand'!D9*'Transport and energy demand'!N22 -> 2.04332625 | I17: =(F17/1000)*'Transport and energy demand'!D22*'Transport and energy demand'!D9*'Transport and energy demand'!M22 -> 0.15379875 | J17: =(F17/1000)*'Transport and energy demand'!H22*'Transport and energy demand'!D9*'Transport and energy demand'!L22 -> 0
C18: Frost protection course | D18: ='Calculation factors'!D23 -> 1.74 | E18: ='Calculation factors'!D9*D18 -> 2697 | F18: =E18*'Calculation factors'!D42 -> 28318.5 | H18: =(F18/1000)*'Transport and energy demand'!D22*'Transport and energy demand'!D9*'Transport and energy demand'!N22 -> 7.9008615 | I18: =(F18/1000)*'Transport and energy demand'!D22*'Transport and energy demand'!D9*'Transport and energy demand'!M22 -> 0.5946885 | J18: =(F18/1000)*'Transport and energy demand'!H22*'Transport and energy demand'!D9*'Transport and energy demand'!L22 -> 0
B21: Construction work
B22: Category | C22: Type of machinery | D22: Construction work | H22: Comments
D23: Construction work [m2/h] | E23: Amount of diesel [litre/m2] | F23: Amount of bio [litre/m2] | G23: Amount of elec. [kWh/m2]
B24: Wearing course | C24: Steamroller | D24: =('Transport and energy demand'!D46*1000)/E14 -> 666.6666667 | E24: =('Transport and energy demand'!D31/D24)*'Transport and energy demand'!N31 -> 0.004185 | F24: =('Transport and energy demand'!D31/D24)*'Transport and energy demand'!M31 -> 0.000315 | G24: =('Transport and energy demand'!H31/D24)*'Transport and energy demand'!L31 -> 0
C25: Tractor | D25: =('Transport and energy demand'!D47*1000)/E14 -> 2666.666667 | E25: =('Transport and energy demand'!D32/D25)*'Transport and energy demand'!N32 -> 0.00174375 | F25: =('Transport and energy demand'!D32/D25)*'Transport and energy demand'!M32 -> 0.00013125 | G25: =('Transport and energy demand'!H32/D25)*'Transport and energy demand'!L32 -> 0
C26: Paver | D26: =('Transport and energy demand'!D48*1000)/E14 -> 33.33333333 | E26: =('Transport and energy demand'!D33/D26)*'Transport and energy demand'!N33 -> 0.0837 | F26: =('Transport and energy demand'!D33/D26)*'Transport and energy demand'!M33 -> 0.0063 | G26: =('Transport and energy demand'!H33/D26)*'Transport and energy demand'!L33 -> 0
B27: Binder course | C27: Steamroller | D27: =('Transport and energy demand'!D46*1000)/E15 -> 857.1428571 | E27: =('Transport and energy demand'!D31/D27)*'Transport and energy demand'!N31 -> 0.003255 | F27: =('Transport and energy demand'!D31/D27)*'Transport and energy demand'!M31 -> 0.000245 | G27: =('Transport and energy demand'!H31/D27)*'Transport and energy demand'!L31 -> 0
C28: Tractor | D28: =('Transport and energy demand'!D47*1000)/E15 -> 3428.571429 | E28: =('Transport and energy demand'!D32/D28)*'Transport and energy demand'!N32 -> 0.00135625 | F28: =('Transport and energy demand'!D32/D28)*'Transport and energy demand'!M32 -> 0.0001020833333 | G28: =('Transport and energy demand'!H32/D28)*'Transport and energy demand'!L32 -> 0
C29: Paver | D29: =('Transport and energy demand'!D48*1000)/E15 -> 42.85714286 | E29: =('Transport and energy demand'!D33/D29)*'Transport and energy demand'!N33 -> 0.0651 | F29: =('Transport and energy demand'!D33/D29)*'Transport and energy demand'!M33 -> 0.0049 | G29: =('Transport and energy demand'!H33/D29)*'Transport and energy demand'!L33 -> 0
B30: Upper base course | C30: Steamroller | D30: =('Transport and energy demand'!D46*1000)/E16 -> 240.3846154 | E30: =('Transport and energy demand'!D31/D30)*'Transport and energy demand'!N31 -> 0.0116064 | F30: =('Transport and energy demand'!D31/D30)*'Transport and energy demand'!M31 -> 0.0008736 | G30: =('Transport and energy demand'!H31/D30)*'Transport and energy demand'!L31 -> 0
C31: Tractor | D31: =('Transport and energy demand'!D47*1000)/E16 -> 961.5384615 | E31: =('Transport and energy demand'!D32/D31)*'Transport and energy demand'!N32 -> 0.004836 | F31: =('Transport and energy demand'!D32/D31)*'Transport and energy demand'!M32 -> 0.000364 | G31: =('Transport and energy demand'!H32/D31)*'Transport and energy demand'!L32 -> 0
C32: Paver | D32: =('Transport and energy demand'!D48*1000)/E16 -> 12.01923077 | E32: =('Transport and energy demand'!D33/D32)*'Transport and energy demand'!N33 -> 0.232128 | F32: =('Transport and energy demand'!D33/D32)*'Transport and energy demand'!M33 -> 0.017472 | G32: =('Transport and energy demand'!H33/D32)*'Transport and energy demand'!L33 -> 0
B33: Lower base course | C33: Excavator | D33: =('Transport and energy demand'!D49*1000)/E17 -> 215.0537634 | E33: =('Transport and energy demand'!D34/D33)*'Transport and energy demand'!N34 -> 0.08649 | F33: =('Transport and energy demand'!D34/D33)*'Transport and energy demand'!M34 -> 0.00651 | G33: =('Transport and energy demand'!H34/D33)*'Transport and energy demand'!L34 -> 0
C34: Coarse crusher | D34: =('Transport and energy demand'!D50*1000)/E17 -> 179.2114695 | E34: =('Transport and energy demand'!D35/D34)*'Transport and energy demand'!N35 -> 0.129735 | F34: =('Transport and energy demand'!D35/D34)*'Transport and energy demand'!M35 -> 0.009765 | G34: =('Transport and energy demand'!H35/D34)*'Transport and energy demand'!L35 -> 0
B35: Frost protection course | C35: Excavator | D35: =('Transport and energy demand'!D49*1000)/E18 -> 55.61735261 | E35: =('Transport and energy demand'!D34/D35)*'Transport and energy demand'!N34 -> 0.334428 | F35: =('Transport and energy demand'!D34/D35)*'Transport and energy demand'!M34 -> 0.025172 | G35: =('Transport and energy demand'!H34/D35)*'Transport and energy demand'!L34 -> 0
C36: Coarse crusher | D36: =('Transport and energy demand'!D50*1000)/E18 -> 46.34779385 | E36: =('Transport and energy demand'!D35/D36)*'Transport and energy demand'!N35 -> 0.501642 | F36: =('Transport and energy demand'!D35/D36)*'Transport and energy demand'!M35 -> 0.037758 | G36: =('Transport and energy demand'!H35/D36)*'Transport and energy demand'!L35 -> 0
C37: Fine crusher | D37: =('Transport and energy demand'!D51*1000)/E18 -> 92.69558769 | E37: =('Transport and energy demand'!D36/D37)*'Transport and energy demand'!N36 -> 0.250821 | F37: =('Transport and energy demand'!D36/D37)*'Transport and energy demand'!M36 -> 0.018879 | G37: =('Transport and energy demand'!H36/D37)*'Transport and energy demand'!L36 -> 0

Sheet Tunnel double tube
B1: Tunnel double tube
B2: Background data
B3: Total length of double tube tunnels [m] | C3: =Calculations!C102 -> 0 | D3: Collected from input tab/calculations
B4: Number of double tube tunnels | C4: ='Project description and input'!C7 -> 0
B5: Tunnel cross section | C5: ='Calculation factors'!D43 -> 9.5
B7: Materials and transport
B8: Category | C8: Type of material | D8: Material demand | H8: Transport | K8: Comments
D9: Volume per area [m3/m2] | E9: Mass per area [kg/m2] | F9: Amount of material [kg/m] | G9: Amount of material [m2/m] | H9: Amount of diesel [litre/m] | I9: Amount of bio [litre/m] | J9: Amount of elec. [kWh/m]
B10: Construction | C10: Concrete portal | D10: =IFERROR(('Calculation factors'!D45*2*C4)/('Calculation factors'!D43*C3),0) -> 0 | E10: =D10*'Calculation factors'!D4 -> 0 | F10: =E10*'Calculation factors'!D43 -> 0 | H10: =(F10/1000)*'Transport and energy demand'!D24*'Transport and energy demand'!D10*'Transport and energy demand'!N24 -> 0 | I10: =(F10/1000)*'Transport and energy demand'!D24*'Transport and energy demand'!D10*'Transport and energy demand'!M24 -> 0 | J10: =(F10/1000)*'Transport and energy demand'!H24*'Transport and energy demand'!D10*'Transport and energy demand'!L24 -> 0
C11: Reinforcement portal | E11: =IFERROR(('Calculation factors'!D47*2*C4)/('Calculation factors'!D43*C3),0) -> 0 | F11: =E11*'Calculation factors'!D43 -> 0 | H11: =(F11/1000)*'Transport and energy demand'!D26*'Transport and energy demand'!D12*'Transport and energy demand'!N26 -> 0 | I11: =(F11/1000)*'Transport and energy demand'!D26*'Transport and energy demand'!D12*'Transport and energy demand'!M26 -> 0 | J11: =(F11/1000)*'Transport and energy demand'!H26*'Transport and energy demand'!D12*'Transport and energy demand'!L26 -> 0
C12: Safety bolts | E12: ='Calculation factors'!D32/'Calculation factors'!D43 -> 4.631578947 | F12: ='Calculation factors'!D32*('Calculation factors'!D43/9.5) -> 44 | H12: =(F12/1000)*'Transport and energy demand'!D25*'Transport and energy demand'!D11*'Transport and energy demand'!N25 -> 0.32736 | I12: =(F12/1000)*'Transport and energy demand'!D25*'Transport and energy demand'!D11*'Transport and energy demand'!M25 -> 0.02464 | J12: =(F12/1000)*'Transport and energy demand'!H25*'Transport and energy demand'!D11*'Transport and energy demand'!L25 -> 0 | K12: Calculation taken from "Metoderapport"
C13: Frost protection arch | E13: =(VLOOKUP(C5,'Calculation factors'!M43:S53,3,FALSE)*'Calculation factors'!D12*'Calculation factors'!D25)/C5 -> 801.1810526 | F13: =E13*C5 -> 7611.22 | G13: =(VLOOKUP(C5,'Calculation factors'!M43:S53,3,FALSE)) -> 21.04 | H13: =(F13/1000)*'Transport and energy demand'!D28*'Transport and energy demand'!D14*'Transport and energy demand'!N28 -> 9.90980844 | I13: =(F13/1000)*'Transport and energy demand'!D28*'Transport and energy demand'!D14*'Transport and energy demand'!M28 -> 0.74589956 | J13: =(F13/1000)*'Transport and energy demand'!D28*'Transport and energy demand'!D14*'Transport and energy demand'!L28 -> 0
B14: Pavement | C14: Wearing course (Ska) | D14: ='Calculation factors'!D19 -> 0.045 | E14: ='Calculation factors'!D7*D14 -> 112.5 | F14: =E14*'Calculation factors'!D43 -> 1068.75 | H14: =(F14/1000)*'Transport and energy demand'!D20*'Transport and energy demand'!D7*'Transport and energy demand'!N20 -> 0.5963625 | I14: =(F14/1000)*'Transport and energy demand'!D20*'Transport and energy demand'!D7*'Transport and energy demand'!M20 -> 0.0448875 | J14: =(F14/1000)*'Transport and energy demand'!H20*'Transport and energy demand'!D7*'Transport and energy demand'!L20 -> 0
C15: Binder course (Ska) | D15: ='Calculation factors'!D20 -> 0.035 | E15: ='Calculation factors'!D7*D15 -> 87.5 | F15: =E15*'Calculation factors'!D43 -> 831.25 | H15: =(F15/1000)*'Transport and energy demand'!D20*'Transport and energy demand'!D7*'Transport and energy demand'!N20 -> 0.4638375 | I15: =(F15/1000)*'Transport and energy demand'!D20*'Transport and energy demand'!D7*'Transport and energy demand'!M20 -> 0.0349125 | J15: =(F15/1000)*'Transport and energy demand'!H20*'Transport and energy demand'!D7*'Transport and energy demand'!L20 -> 0
C16: Upper base course (Ag) | D16: ='Calculation factors'!D21 -> 0.13 | E16: ='Calculation factors'!D8*D16 -> 312 | F16: =E16*'Calculation factors'!D43 -> 2964 | H16: =(F16/1000)*'Transport and energy demand'!D21*'Transport and energy demand'!D8*'Transport and energy demand'!N21 -> 1.653912 | I16: =(F16/1000)*'Transport and energy demand'!D21*'Transport and energy demand'!D8*'Transport and energy demand'!M21 -> 0.124488 | J16: =(F16/1000)*'Transport and energy demand'!H21*'Transport and energy demand'!D8*'Transport and energy demand'!L21 -> 0
C17: Lower base course | D17: ='Calculation factors'!D22 -> 0.45 | E17: ='Calculation factors'!D10*D17 -> 697.5 | F17: =E17*'Calculation factors'!D43 -> 6626.25 | H17: =(F17/1000)*'Transport and energy demand'!D22*'Transport and energy demand'!D9*'Transport and energy demand'!N22 -> 1.84872375 | I17: =(F17/1000)*'Transport and energy demand'!D22*'Transport and energy demand'!D9*'Transport and energy demand'!M22 -> 0.13915125 | J17: =(F17/1000)*'Transport and energy demand'!H22*'Transport and energy demand'!D9*'Transport and energy demand'!L22 -> 0
C18: Frost protection course | D18: ='Calculation factors'!D23 -> 1.74 | E18: ='Calculation factors'!D9*D18 -> 2697 | F18: =E18*'Calculation factors'!D43 -> 25621.5 | H18: =(F18/1000)*'Transport and energy demand'!D22*'Transport and energy demand'!D9*'Transport and energy demand'!N22 -> 7.1483985 | I18: =(F18/1000)*'Transport and energy demand'!D22*'Transport and energy demand'!D9*'Transport and energy demand'!M22 -> 0.5380515 | J18: =(F18/1000)*'Transport and energy demand'!H22*'Transport and energy demand'!D9*'Transport and energy demand'!L22 -> 0
B21: Construction work
B22: Category | C22: Type of machinery | D22: Construction work | H22: Comments
D23: Construction work [m2/h] | E23: Amount of diesel [litre/m2] | F23: Amount of bio [litre/m2] | G23: Amount of elec. [kWh/m2]
B24: Wearing course | C24: Steamroller | D24: =('Transport and energy demand'!D46*1000)/E14 -> 666.6666667 | E24: =('Transport and energy demand'!D31/D24)*'Transport and energy demand'!N31 -> 0.004185 | F24: =('Transport and energy demand'!D31/D24)*'Transport and energy demand'!M31 -> 0.000315 | G24: =('Transport and energy demand'!H31/D24)*'Transport and energy demand'!L31 -> 0
C25: Tractor | D25: =('Transport and energy demand'!D47*1000)/E14 -> 2666.666667 | E25: =('Transport and energy demand'!D32/D25)*'Transport and energy demand'!N32 -> 0.00174375 | F25: =('Transport and energy demand'!D32/D25)*'Transport and energy demand'!M32 -> 0.00013125 | G25: =('Transport and energy demand'!H32/D25)*'Transport and energy demand'!L32 -> 0
C26: Paver | D26: =('Transport and energy demand'!D48*1000)/E14 -> 33.33333333 | E26: =('Transport and energy demand'!D33/D26)*'Transport and energy demand'!N33 -> 0.0837 | F26: =('Transport and energy demand'!D33/D26)*'Transport and energy demand'!M33 -> 0.0063 | G26: =('Transport and energy demand'!H33/D26)*'Transport and energy demand'!L33 -> 0
B27: Binder course | C27: Steamroller | D27: =('Transport and energy demand'!D46*1000)/E15 -> 857.1428571 | E27: =('Transport and energy demand'!D31/D27)*'Transport and energy demand'!N31 -> 0.003255 | F27: =('Transport and energy demand'!D31/D27)*'Transport and energy demand'!M31 -> 0.000245 | G27: =('Transport and energy demand'!H31/D27)*'Transport and energy demand'!L31 -> 0
C28: Tractor | D28: =('Transport and energy demand'!D47*1000)/E15 -> 3428.571429 | E28: =('Transport and energy demand'!D32/D28)*'Transport and energy demand'!N32 -> 0.00135625 | F28: =('Transport and energy demand'!D32/D28)*'Transport and energy demand'!M32 -> 0.0001020833333 | G28: =('Transport and energy demand'!H32/D28)*'Transport and energy demand'!L32 -> 0
C29: Paver | D29: =('Transport and energy demand'!D48*1000)/E15 -> 42.85714286 | E29: =('Transport and energy demand'!D33/D29)*'Transport and energy demand'!N33 -> 0.0651 | F29: =('Transport and energy demand'!D33/D29)*'Transport and energy demand'!M33 -> 0.0049 | G29: =('Transport and energy demand'!H33/D29)*'Transport and energy demand'!L33 -> 0
B30: Upper base course | C30: Steamroller | D30: =('Transport and energy demand'!D46*1000)/E16 -> 240.3846154 | E30: =('Transport and energy demand'!D31/D30)*'Transport and energy demand'!N31 -> 0.0116064 | F30: =('Transport and energy demand'!D31/D30)*'Transport and energy demand'!M31 -> 0.0008736 | G30: =('Transport and energy demand'!H31/D30)*'Transport and energy demand'!L31 -> 0
C31: Tractor | D31: =('Transport and energy demand'!D47*1000)/E16 -> 961.5384615 | E31: =('Transport and energy demand'!D32/D31)*'Transport and energy demand'!N32 -> 0.004836 | F31: =('Transport and energy demand'!D32/D31)*'Transport and energy demand'!M32 -> 0.000364 | G31: =('Transport and energy demand'!H32/D31)*'Transport and energy demand'!L32 -> 0
C32: Paver | D32: =('Transport and energy demand'!D48*1000)/E16 -> 12.01923077 | E32: =('Transport and energy demand'!D33/D32)*'Transport and energy demand'!N33 -> 0.232128 | F32: =('Transport and energy demand'!D33/D32)*'Transport and energy demand'!M33 -> 0.017472 | G32: =('Transport and energy demand'!H33/D32)*'Transport and energy demand'!L33 -> 0
B33: Lower base course | C33: Excavator | D33: =('Transport and energy demand'!D49*1000)/E17 -> 215.0537634 | E33: =('Transport and energy demand'!D34/D33)*'Transport and energy demand'!N34 -> 0.08649 | F33: =('Transport and energy demand'!D34/D33)*'Transport and energy demand'!M34 -> 0.00651 | G33: =('Transport and energy demand'!H34/D33)*'Transport and energy demand'!L34 -> 0
C34: Coarse crusher | D34: =('Transport and energy demand'!D50*1000)/E17 -> 179.2114695 | E34: =('Transport and energy demand'!D35/D34)*'Transport and energy demand'!N35 -> 0.129735 | F34: =('Transport and energy demand'!D35/D34)*'Transport and energy demand'!M35 -> 0.009765 | G34: =('Transport and energy demand'!H35/D34)*'Transport and energy demand'!L35 -> 0
B35: Frost protection course | C35: Excavator | D35: =('Transport and energy demand'!D49*1000)/E18 -> 55.61735261 | E35: =('Transport and energy demand'!D34/D35)*'Transport and energy demand'!N34 -> 0.334428 | F35: =('Transport and energy demand'!D34/D35)*'Transport and energy demand'!M34 -> 0.025172 | G35: =('Transport and energy demand'!H34/D35)*'Transport and energy demand'!L34 -> 0
C36: Coarse crusher | D36: =('Transport and energy demand'!D50*1000)/E18 -> 46.34779385 | E36: =('Transport and energy demand'!D35/D36)*'Transport and energy demand'!N35 -> 0.501642 | F36: =('Transport and energy demand'!D35/D36)*'Transport and energy demand'!M35 -> 0.037758 | G36: =('Transport and energy demand'!H35/D36)*'Transport and energy demand'!L35 -> 0
C37: Fine crusher | D37: =('Transport and energy demand'!D51*1000)/E18 -> 92.69558769 | E37: =('Transport and energy demand'!D36/D37)*'Transport and energy demand'!N36 -> 0.250821 | F37: =('Transport and energy demand'!D36/D37)*'Transport and energy demand'!M36 -> 0.018879 | G37: =('Transport and energy demand'!H36/D37)*'Transport and energy demand'!L36 -> 0

Sheet Concrete bridge
B2: Materials and transport
B3: Category | C3: Type of material | D3: Material demand | F3: Transport | I3: Comments
D4: Volume per area [m3/m2] | E4: Mass per area [kg/m2] | F4: Amount of diesel [litre/m2] | G4: Amount of bio [litre/m2] | H4: Amount of elec. [kWh/m2]
B5: Construction | C5: Concrete | D5: ='Calculation factors'!D26 -> 1.29 | E5: ='Calculation factors'!D4*D5 -> 3096 | F5: =(E5/1000)*'Transport and energy demand'!D24*'Transport and energy demand'!D10*'Transport and energy demand'!N24 -> 2.303424 | G5: =(E5/1000)*'Transport and energy demand'!D24*'Transport and energy demand'!D10*'Transport and energy demand'!M24 -> 0.173376 | H5: =(E5/1000)*'Transport and energy demand'!H24*'Transport and energy demand'!D10*'Transport and energy demand'!L24 -> 0
C6: Reinforcement steel | E6: ='Calculation factors'!D28 -> 231 | F6: =(E6/1000)*'Transport and energy demand'!D26*'Transport and energy demand'!D12*'Transport and energy demand'!N26 -> 1.71864 | G6: =(E6/1000)*'Transport and energy demand'!D26*'Transport and energy demand'!D12*'Transport and energy demand'!M26 -> 0.12936 | H6: =(E6/1000)*'Transport and energy demand'!H26*'Transport and energy demand'!D12*'Transport and energy demand'!L26 -> 0
B7: Pavement | C7: Wearing course (Ska) | D7: ='Calculation factors'!D19 -> 0.045 | E7: =D7*'Calculation factors'!D7 -> 112.5 | F7: =(E7/1000)*'Transport and energy demand'!D20*'Transport and energy demand'!D7*'Transport and energy demand'!N20 -> 0.062775 | G7: =(E7/1000)*'Transport and energy demand'!D20*'Transport and energy demand'!D7*'Transport and energy demand'!M20 -> 0.004725 | H7: =(E7/1000)*'Transport and energy demand'!H20*'Transport and energy demand'!D7*'Transport and energy demand'!L20 -> 0
C8: Binder course (Ska) | D8: ='Calculation factors'!D20 -> 0.035 | E8: =D8*'Calculation factors'!D7 -> 87.5 | F8: =(E8/1000)*'Transport and energy demand'!D20*'Transport and energy demand'!D7*'Transport and energy demand'!N20 -> 0.048825 | G8: =(E8/1000)*'Transport and energy demand'!D20*'Transport and energy demand'!D7*'Transport and energy demand'!M20 -> 0.003675 | H8: =(E8/1000)*'Transport and energy demand'!H20*'Transport and energy demand'!D7*'Transport and energy demand'!L20 -> 0
C9: Fuktisolation (Topeka) | D9: ='Calculation factors'!D24 -> 0.012 | E9: =D9*'Calculation factors'!D13 -> 30 | F9: =(E9/1000)*'Transport and energy demand'!D27*'Transport and energy demand'!D13*'Transport and energy demand'!N27 -> 0.03906 | G9: =(E9/1000)*'Transport and energy demand'!D27*'Transport and energy demand'!D13*'Transport and energy demand'!M27 -> 0.00294 | H9: =(E9/1000)*'Transport and energy demand'!H27*'Transport and energy demand'!D13*'Transport and energy demand'!L27 -> 0
B12: Construction work
B13: Category | C13: Type of machinery | D13: Construction work | H13: Comments
D14: Working speed [m2/h] | E14: Amount of diesel [litre/m2] | F14: Amount of bio [litre/m2] | G14: Amount of elec. [kWh/m2]
B15: Construction | C15: Crane first 400 m2 | D15: ='Transport and energy demand'!D52 -> 1.666666667 | G15: =('Transport and energy demand'!H37/D15)*'Transport and energy demand'!L37 -> 29.16 | H15: Assumed 100% elec.
C16: Crane rest of bridge | D16: ='Transport and energy demand'!D53 -> 3.333333333 | G16: =('Transport and energy demand'!H37/D16)*'Transport and energy demand'!L37 -> 14.58 | H16: Assumed 100% elec.
C17: Excavator | D17: =('Transport and energy demand'!D49*1000)/(E5+E6) -> 45.08566276 | E17: =('Transport and energy demand'!D34/D17)*'Transport and energy demand'!N34 -> 0.412548 | F17: =('Transport and energy demand'!D34/D17)*'Transport and energy demand'!M34 -> 0.031052 | G17: =('Transport and energy demand'!H34/D17)*'Transport and energy demand'!L34 -> 0
B18: Wearing course | C18: Steamroller | D18: =('Transport and energy demand'!D46*1000)/E7 -> 666.6666667 | E18: =('Transport and energy demand'!D31/D18)*'Transport and energy demand'!N31 -> 0.004185 | F18: =('Transport and energy demand'!D31/D18)*'Transport and energy demand'!M31 -> 0.000315 | G18: =('Transport and energy demand'!H31/D18)*'Transport and energy demand'!L31 -> 0
C19: Tractor | D19: =('Transport and energy demand'!D47*1000)/E7 -> 2666.666667 | E19: =('Transport and energy demand'!D32/D19)*'Transport and energy demand'!N32 -> 0.00174375 | F19: =('Transport and energy demand'!D32/D19)*'Transport and energy demand'!M32 -> 0.00013125 | G19: =('Transport and energy demand'!H32/D19)*'Transport and energy demand'!L32 -> 0
C20: Paver | D20: =('Transport and energy demand'!D48*1000)/E7 -> 33.33333333 | E20: =('Transport and energy demand'!D33/D20)*'Transport and energy demand'!N33 -> 0.0837 | F20: =('Transport and energy demand'!D33/D20)*'Transport and energy demand'!M33 -> 0.0063 | G20: =('Transport and energy demand'!H33/D20)*'Transport and energy demand'!L33 -> 0
B21: Binder course | C21: Steamroller | D21: =('Transport and energy demand'!D46*1000)/E8 -> 857.1428571 | E21: =('Transport and energy demand'!D31/D21)*'Transport and energy demand'!N31 -> 0.003255 | F21: =('Transport and energy demand'!D31/D21)*'Transport and energy demand'!M31 -> 0.000245 | G21: =('Transport and energy demand'!H31/D21)*'Transport and energy demand'!L31 -> 0
C22: Tractor | D22: =('Transport and energy demand'!D47*1000)/E8 -> 3428.571429 | E22: =('Transport and energy demand'!D32/D22)*'Transport and energy demand'!N32 -> 0.00135625 | F22: =('Transport and energy demand'!D32/D22)*'Transport and energy demand'!M32 -> 0.0001020833333 | G22: =('Transport and energy demand'!H32/D22)*'Transport and energy demand'!L32 -> 0
C23: Paver | D23: =('Transport and energy demand'!D48*1000)/E8 -> 42.85714286 | E23: =('Transport and energy demand'!D33/D23)*'Transport and energy demand'!N33 -> 0.0651 | F23: =('Transport and energy demand'!D33/D23)*'Transport and energy demand'!M33 -> 0.0049 | G23: =('Transport and energy demand'!H33/D23)*'Transport and energy demand'!L33 -> 0
B24: Moisture protection | C24: Steamroller | D24: =('Transport and energy demand'!D46*1000)/E9 -> 2500 | E24: =('Transport and energy demand'!D31/D24)*'Transport and energy demand'!N31 -> 0.001116 | F24: =('Transport and energy demand'!D31/D24)*'Transport and energy demand'!M31 -> 8.4e-05 | G24: =('Transport and energy demand'!H31/D24)*'Transport and energy demand'!L31 -> 0
C25: Tractor | D25: =('Transport and energy demand'!D47*1000)/E9 -> 10000 | E25: =('Transport and energy demand'!D32/D25)*'Transport and energy demand'!N32 -> 0.000465 | F25: =('Transport and energy demand'!D32/D25)*'Transport and energy demand'!M32 -> 3.5e-05 | G25: =('Transport and energy demand'!H32/D25)*'Transport and energy demand'!L32 -> 0
C26: Paver | D26: =('Transport and energy demand'!D48*1000)/E9 -> 125 | E26: =('Transport and energy demand'!D33/D26)*'Transport and energy demand'!N33 -> 0.02232 | F26: =('Transport and energy demand'!D33/D26)*'Transport and energy demand'!M33 -> 0.00168 | G26: =('Transport and energy demand'!H33/D26)*'Transport and energy demand'!L33 -> 0

Sheet Steel bridge
B2: Materials and transport
B3: Category | C3: Type of material | D3: Material demand | F3: Transport | I3: Comments
D4: Volume per area [m3/m2] | E4: Mass per area [kg/m2] | F4: Amount of diesel [litre/m2] | G4: Amount of bio [litre/m2] | H4: Amount of elec. [kWh/m2]
B5: Construction | C5: Concrete | D5: ='Calculation factors'!D27 -> 0.743 | E5: ='Calculation factors'!D4*D5 -> 1783.2 | F5: =(E5/1000)*'Transport and energy demand'!D24*'Transport and energy demand'!D10*'Transport and energy demand'!N24 -> 1.3267008 | G5: =(E5/1000)*'Transport and energy demand'!D24*'Transport and energy demand'!D10*'Transport and energy demand'!M24 -> 0.0998592 | H5: =(E5/1000)*'Transport and energy demand'!H24*'Transport and energy demand'!D10*'Transport and energy demand'!L24 -> 0
C6: Reinforcement steel | E6: ='Calculation factors'!D29 -> 125 | F6: =(E6/1000)*'Transport and energy demand'!D26*'Transport and energy demand'!D12*'Transport and energy demand'!N26 -> 0.93 | G6: =(E6/1000)*'Transport and energy demand'!D26*'Transport and energy demand'!D12*'Transport and energy demand'!M26 -> 0.07 | H6: =(E6/1000)*'Transport and energy demand'!H26*'Transport and energy demand'!D12*'Transport and energy demand'!L26 -> 0
C7: Steel construction | E7: ='Calculation factors'!D31 -> 219 | F7: =(E7/1000)*'Transport and energy demand'!D25*'Transport and energy demand'!D11*'Transport and energy demand'!N25 -> 1.62936 | G7: =(E7/1000)*'Transport and energy demand'!D25*'Transport and energy demand'!D11*'Transport and energy demand'!M25 -> 0.12264 | H7: =(E7/1000)*'Transport and energy demand'!H25*'Transport and energy demand'!D11*'Transport and energy demand'!L25 -> 0
B8: Pavement | C8: Wearing course (Ska) | D8: ='Calculation factors'!D19 -> 0.045 | E8: =D8*'Calculation factors'!D7 -> 112.5 | F8: =(E8/1000)*'Transport and energy demand'!D20*'Transport and energy demand'!D7*'Transport and energy demand'!N20 -> 0.062775 | G8: =(E8/1000)*'Transport and energy demand'!D20*'Transport and energy demand'!D7*'Transport and energy demand'!M20 -> 0.004725 | H8: =(E8/1000)*'Transport and energy demand'!H20*'Transport and energy demand'!D7*'Transport and energy demand'!L20 -> 0
C9: Binder course (Ska) | D9: ='Calculation factors'!D20 -> 0.035 | E9: =D9*'Calculation factors'!D7 -> 87.5 | F9: =(E9/1000)*'Transport and energy demand'!D20*'Transport and energy demand'!D7*'Transport and energy demand'!N20 -> 0.048825 | G9: =(E9/1000)*'Transport and energy demand'!D20*'Transport and energy demand'!D7*'Transport and energy demand'!M20 -> 0.003675 | H9: =(E9/1000)*'Transport and energy demand'!H20*'Transport and energy demand'!D7*'Transport and energy demand'!L20 -> 0
C10: Moisture protection (Topeka) | D10: ='Calculation factors'!D24 -> 0.012 | E10: =D10*'Calculation factors'!D13 -> 30 | F10: =(E10/1000)*'Transport and energy demand'!D27*'Transport and energy demand'!D13*'Transport and energy demand'!N27 -> 0.03906 | G10: =(E10/1000)*'Transport and energy demand'!D27*'Transport and energy demand'!D13*'Transport and energy demand'!M27 -> 0.00294 | H10: =(E10/1000)*'Transport and energy demand'!H27*'Transport and energy demand'!D13*'Transport and energy demand'!L27 -> 0
B13: Construction work
B14: Category | C14: Type of machinery | D14: Construction work | H14: Comments
D15: Working speed [m2/h] | E15: Amount of diesel [litre/m2] | F15: Amount of bio [litre/m2] | G15: Amount of elec. [kWh/m2]
B16: Construction | C16: Crane first 400 m2 | D16: ='Transport and energy demand'!D52 -> 1.666666667 | G16: =('Transport and energy demand'!H37/D16)*'Transport and energy demand'!L37 -> 29.16 | H16: Assumed 100% elec.
C17: Crane rest of bridge | D17: ='Transport and energy demand'!D53 -> 3.333333333 | G17: =('Transport and energy demand'!H37/D17)*'Transport and energy demand'!L37 -> 14.58 | H17: Assumed 100% elec.
C18: Excavator | D18: =('Transport and energy demand'!D49*1000)/(E5+E6+E7) -> 70.51523129 | E18: =('Transport and energy demand'!D34/D18)*'Transport and energy demand'!N34 -> 0.2637728 | F18: =('Transport and energy demand'!D34/D18)*'Transport and energy demand'!M34 -> 0.01985386667 | G18: =('Transport and energy demand'!H34/D18)*'Transport and energy demand'!L34 -> 0
B19: Wearing course | C19: Steamroller | D19: =('Transport and energy demand'!D46*1000)/E8 -> 666.6666667 | E19: =('Transport and energy demand'!D31/D19)*'Transport and energy demand'!N31 -> 0.004185 | F19: =('Transport and energy demand'!D31/D19)*'Transport and energy demand'!M31 -> 0.000315 | G19: =('Transport and energy demand'!H31/D19)*'Transport and energy demand'!L31 -> 0
C20: Tractor | D20: =('Transport and energy demand'!D47*1000)/E8 -> 2666.666667 | E20: =('Transport and energy demand'!D32/D20)*'Transport and energy demand'!N32 -> 0.00174375 | F20: =('Transport and energy demand'!D32/D20)*'Transport and energy demand'!M32 -> 0.00013125 | G20: =('Transport and energy demand'!H32/D20)*'Transport and energy demand'!L32 -> 0
C21: Paver | D21: =('Transport and energy demand'!D48*1000)/E8 -> 33.33333333 | E21: =('Transport and energy demand'!D33/D21)*'Transport and energy demand'!N33 -> 0.0837 | F21: =('Transport and energy demand'!D33/D21)*'Transport and energy demand'!M33 -> 0.0063 | G21: =('Transport and energy demand'!H33/D21)*'Transport and energy demand'!L33 -> 0
B22: Binder course | C22: Steamroller | D22: =('Transport and energy demand'!D46*1000)/E9 -> 857.1428571 | E22: =('Transport and energy demand'!D31/D22)*'Transport and energy demand'!N31 -> 0.003255 | F22: =('Transport and energy demand'!D31/D22)*'Transport and energy demand'!M31 -> 0.000245 | G22: =('Transport and energy demand'!H31/D22)*'Transport and energy demand'!L31 -> 0
C23: Tractor | D23: =('Transport and energy demand'!D47*1000)/E9 -> 3428.571429 | E23: =('Transport and energy demand'!D32/D23)*'Transport and energy demand'!N32 -> 0.00135625 | F23: =('Transport and energy demand'!D32/D23)*'Transport and energy demand'!M32 -> 0.0001020833333 | G23: =('Transport and energy demand'!H32/D23)*'Transport and energy demand'!L32 -> 0
C24: Paver | D24: =('Transport and energy demand'!D48*1000)/E9 -> 42.85714286 | E24: =('Transport and energy demand'!D33/D24)*'Transport and energy demand'!N33 -> 0.0651 | F24: =('Transport and energy demand'!D33/D24)*'Transport and energy demand'!M33 -> 0.0049 | G24: =('Transport and energy demand'!H33/D24)*'Transport and energy demand'!L33 -> 0
B25: Moisture protection | C25: Steamroller | D25: =('Transport and energy demand'!D46*1000)/E10 -> 2500 | E25: =('Transport and energy demand'!D31/D25)*'Transport and energy demand'!N31 -> 0.001116 | F25: =('Transport and energy demand'!D31/D25)*'Transport and energy demand'!M31 -> 8.4e-05 | G25: =('Transport and energy demand'!H31/D25)*'Transport and energy demand'!L31 -> 0
C26: Tractor | D26: =('Transport and energy demand'!D47*1000)/E10 -> 10000 | E26: =('Transport and energy demand'!D32/D26)*'Transport and energy demand'!N32 -> 0.000465 | F26: =('Transport and energy demand'!D32/D26)*'Transport and energy demand'!M32 -> 3.5e-05 | G26: =('Transport and energy demand'!H32/D26)*'Transport and energy demand'!L32 -> 0
C27: Paver | D27: =('Transport and energy demand'!D48*1000)/E10 -> 125 | E27: =('Transport and energy demand'!D33/D27)*'Transport and energy demand'!N33 -> 0.02232 | F27: =('Transport and energy demand'!D33/D27)*'Transport and energy demand'!M33 -> 0.00168 | G27: =('Transport and energy demand'!H33/D27)*'Transport and energy demand'!L33 -> 0

Sheet Culvert
B2: Materials and transport
B3: Category | C3: Type of material | D3: Material demand | F3: Transport | I3: Comments
D4: Volume [m3/m2] | E4: Mass per area [kg/m2] | F4: Amount of diesel [litre/m2] | G4: Amount of bio [litre/m2] | H4: Amount of elec. [kWh/m2]
B5: Construction | C5: Concrete | D5: =('Calculation factors'!D36*2)+('Calculation factors'!D36*'Calculation factors'!D37) -> 1.248 | E5: =(D5*'Calculation factors'!D4) -> 2995.2 | F5: =(E5/1000)*'Transport and energy demand'!D24*'Transport and energy demand'!D10*'Transport and energy demand'!N24 -> 2.2284288 | G5: =(E5/1000)*'Transport and energy demand'!D24*'Transport and energy demand'!D10*'Transport and energy demand'!M24 -> 0.1677312 | H5: =(E5/1000)*'Transport and energy demand'!H24*'Transport and energy demand'!D10*'Transport and energy demand'!L24 -> 0
C6: Reinforcement steel | E6: =E5/'Calculation factors'!D39 -> 230.4 | F6: =(E6/1000)*'Transport and energy demand'!D26*'Transport and energy demand'!D12*'Transport and energy demand'!N26 -> 1.714176 | G6: =(E6/1000)*'Transport and energy demand'!D26*'Transport and energy demand'!D12*'Transport and energy demand'!M26 -> 0.129024 | H6: =(E6/1000)*'Transport and energy demand'!H26*'Transport and energy demand'!D12*'Transport and energy demand'!L26 -> 0
B8: Construction work
B9: Category | C9: Type of machinery | D9: Energy demand | H9: Comments
D10: Working speed [timer/p] | E10: Amount of diesel [litre/p] | F10: Amount of bio [litre/p] | G10: Amount of elec. [kWh/p]
B11: Construction | C11: Tower crane | D11: ='Calculation factors'!D40 -> 18 | E11: - | F11: - | G11: =D11*'Transport and energy demand'!H37*'Transport and energy demand'!L37 -> 874.8

Sheet Vegetation and land use change
B2: Transport
B3: Category | D3: Transport | I3: Comments
D4: Weight [kg/m2] | E4: Weight [kg/m3] | F4: Amount of diesel [litre/m2] | G4: Amount of bio [litre/m2] | H4: Amount of elec. [kWh/m2]
B5: Soil | C5: Soil masses used in project | D5: ='Calculation factors'!D14*'Calculation factors'!D90 -> 390 | F5: =(D5/1000)*'Transport and energy demand'!D17*'Transport and energy demand'!D4*'Transport and energy demand'!N17 -> 0.007254 | G5: =(D5/1000)*'Transport and energy demand'!D17*'Transport and energy demand'!D4*'Transport and energy demand'!M17 -> 0.000546 | H5: =(D5/1000)*'Transport and energy demand'!H17*'Transport and energy demand'!D4*'Transport and energy demand'!L17 -> 0
C6: Soil masses to landfill | D6: ='Calculation factors'!D14*'Calculation factors'!D90 -> 390 | F6: =(D6/1000)*'Transport and energy demand'!D18*'Transport and energy demand'!D5*'Transport and energy demand'!N18 -> 0.10881 | G6: =(D5/1000)*'Transport and energy demand'!D18*'Transport and energy demand'!D5*'Transport and energy demand'!M18 -> 0.00819 | H6: =(D5/1000)*'Transport and energy demand'!H18*'Transport and energy demand'!D5*'Transport and energy demand'!L18 -> 0
B8: Construction work
B9: Category | C9: Energy demand | I9: Comments
C10: Volume per area [m3/m2] | D10: Weight [kg/m2] | E10: Construction work [h/m2] | F10: Amount of diesel [litre/m2] | G10: Amount of bio [litre/m2] | H10: Amount of elec. [kWh/m2]
B11: Removal of vegetation cover | C11: ='Calculation factors'!D90 -> 0.3 | D11: =C11*'Calculation factors'!D14 -> 390 | E11: =((D11/1000)/'Transport and energy demand'!D49)*2 -> 0.0052 | F11: =E11*'Transport and energy demand'!D34*'Transport and energy demand'!N34 -> 0.09672 | G11: =E11*'Transport and energy demand'!D34*'Transport and energy demand'!M34 -> 0.00728 | H11: =E11*'Transport and energy demand'!H34*'Transport and energy demand'!L34 -> 0 | I11: For Construction work [h/m2]: is multiplied woth 2 because the masses are also discharged somewhere.
B13: Land use changes
B14: Type of vegetation
C15: Amount [m2]
B16: Cleared forest - low site quality | C16: ='Project description and input'!C21*'Project description and input'!C24 -> 0
B17: Cleared forest - medium site quality | C17: ='Project description and input'!C21*'Project description and input'!C25 -> 0
B18: Cleared forest - high site quality | C18: ='Project description and input'!C21*'Project description and input'!C26 -> 0
B19: Marsh | C19: ='Project description and input'!C21*'Project description and input'!C27 -> 0
B20: Agricultural land | C20: ='Project description and input'!C21*'Project description and input'!C28 -> 0
B21: Built land | C21: ='Project description and input'!C21*'Project description and input'!C29 -> 0

Sheet Blasting
B2: Blasting and transport
B3: Category | D3: Materials | E3: Transport rock masses | I3: Comments
D4: Weight tovex [kg/fm3] | E4: Weight rock masses [kg/fm3] | F4: Amount of diesel [litre/m3] | G4: Amount of bio [litre/m3] | H4: Amount of elec. [kWh/m3]
B5: Tunnel blasting | C5: Explosives | D5: ='Calculation factors'!D34 -> 2.2 | E5: ='Calculation factors'!D16*D5 -> 5830
B6: Open-air blasting | C6: Explosives | D6: ='Calculation factors'!D33 -> 1 | E6: ='Calculation factors'!D16*D6 -> 2650
C7: Rock masses used in project | E7: ='Calculation factors'!D16 -> 2650 | F7: =(E7/1000)*'Transport and energy demand'!D17*'Transport and energy demand'!D4*'Transport and energy demand'!N17 -> 0.04929 | G7: =(E7/1000)*'Transport and energy demand'!D17*'Transport and energy demand'!D4*'Transport and energy demand'!M17 -> 0.00371 | H7: =(E7/1000)*'Transport and energy demand'!H17*'Transport and energy demand'!D4*'Transport and energy demand'!L17 -> 0
C8: Rock masses to landfill | E8: ='Calculation factors'!D16 -> 2650 | F8: =(E8/1000)*'Transport and energy demand'!D18*'Transport and energy demand'!D5*'Transport and energy demand'!N18 -> 0.73935 | G8: =(E8/1000)*'Transport and energy demand'!D18*'Transport and energy demand'!D5*'Transport and energy demand'!M18 -> 0.05565 | H8: =(E8/1000)*'Transport and energy demand'!H18*'Transport and energy demand'!D5*'Transport and energy demand'!L18 -> 0
C9: Rock masses used in project via crushing plant | E9: ='Calculation factors'!D16 -> 2650 | F9: =(E9/1000)*'Transport and energy demand'!D19*'Transport and energy demand'!D6*'Transport and energy demand'!N19 -> 0.73935 | G9: =(E9/1000)*'Transport and energy demand'!D19*'Transport and energy demand'!D6*'Transport and energy demand'!M19 -> 0.05565 | H9: =(E9/1000)*'Transport and energy demand'!H19*'Transport and energy demand'!D6*'Transport and energy demand'!L19 -> 0
B12: Construction work
B13: Category | C13: Construction work | G13: Comments
C14: Weight [kg/fm3] | D14: Amount of diesel [litre/fm3] | E14: Amount of bio [litre/fm3] | F14: Amount of elec. [kWh/fm3]
B15: Loading of rock masses | C15: ='Calculation factors'!D16 -> 2650 | D15: =(C15/1000)/'Transport and energy demand'!D49*'Transport and energy demand'!D34*'Transport and energy demand'!N34 -> 0.3286 | E15: =(C15/1000)/'Transport and energy demand'!D49*'Transport and energy demand'!D34*'Transport and energy demand'!M34 -> 0.02473333333 | F15: =(C15/1000)/'Transport and energy demand'!D49*'Transport and energy demand'!H34*'Transport and energy demand'!L34 -> 0

Sheet Re-asphalting
B1: Re-asphalting
B2: Background data
B3: Share that is re-asphalted | C3: ='Calculation factors'!D60 -> 0.6
B5: Materials and transport
B6: Category | C6: Material demand | E6: Transport | H6: Comments
C7: Volume/area [m3/m2] | D7: Mass per area [kg/m2] | E7: Amount of diesel [litre/m2] | F7: Amount of bio [litre/m2] | G7: Amount of elec. [kWh/m2]
B8: Wearing course (Ska) | C8: ='Calculation factors'!D19 -> 0.045 | D8: =C8*'Calculation factors'!D6*'Re-asphalting'!C3 -> 67.5 | E8: =(D8/1000)*'Transport and energy demand'!D19*'Transport and energy demand'!D6*'Transport and energy demand'!N19 -> 0.0188325 | F8: =(D8/1000)*'Transport and energy demand'!D19*'Transport and energy demand'!D6*'Transport and energy demand'!M19 -> 0.0014175 | G8: =(D8/1000)*'Transport and energy demand'!H19*'Transport and energy demand'!D6*'Transport and energy demand'!L19 -> 0
B9: Wearing course (Agb) | C9: ='Calculation factors'!D19 -> 0.045 | D9: =C9*'Calculation factors'!D7*C3 -> 67.5 | E9: =(D9/1000)*'Transport and energy demand'!D20*'Transport and energy demand'!D7*'Transport and energy demand'!N20 -> 0.037665 | F9: =(D9/1000)*'Transport and energy demand'!D20*'Transport and energy demand'!D7*'Transport and energy demand'!M20 -> 0.002835 | G9: =(D9/1000)*'Transport and energy demand'!H20*'Transport and energy demand'!D7*'Transport and energy demand'!L20 -> 0
B11: Construction work
B12: Category | C12: Type of machinery | D12: Construction work | H12: Comments
D13: Working speed [m2/h] | E13: Amount of diesel [litre/m2] | F13: Amount of bio [litre/m2] | G13: Amount of elec. [kWh/m2]
B14: Removal | C14: Excavator | D14: =('Transport and energy demand'!D49*1000)/D9 -> 2222.222222 | E14: =('Transport and energy demand'!D34/D14)*'Transport and energy demand'!N34 -> 0.00837 | F14: =('Transport and energy demand'!D34/D14)*'Transport and energy demand'!M34 -> 0.00063 | G14: =('Transport and energy demand'!H34/D14)*'Transport and energy demand'!L34 -> 0
B15: Asphalting | C15: Steamroller | D15: =('Transport and energy demand'!D46*1000)/D9 -> 1111.111111 | E15: =('Transport and energy demand'!D31/D15)*'Transport and energy demand'!N31 -> 0.002511 | F15: =('Transport and energy demand'!D31/D15)*'Transport and energy demand'!M31 -> 0.000189 | G15: =('Transport and energy demand'!H31/D15)*'Transport and energy demand'!L31 -> 0
C16: Tractor | D16: =('Transport and energy demand'!D47*1000)/D9 -> 4444.444444 | E16: =('Transport and energy demand'!D32/D16)*'Transport and energy demand'!N32 -> 0.00104625 | F16: =('Transport and energy demand'!D32/D16)*'Transport and energy demand'!M32 -> 7.875e-05 | G16: =('Transport and energy demand'!H32/D16)*'Transport and energy demand'!L32 -> 0
C17: Paver | D17: =('Transport and energy demand'!D48*1000)/D9 -> 55.55555556 | E17: =('Transport and energy demand'!D33/D17)*'Transport and energy demand'!N33 -> 0.05022 | F17: =('Transport and energy demand'!D33/D17)*'Transport and energy demand'!M33 -> 0.00378 | G17: =('Transport and energy demand'!H33/D17)*'Transport and energy demand'!L33 -> 0

Sheet Beregningsfaktorer arbeidsfane (hidden)
A1: OK? | B1: Faktor | C1: Gammel verdi | D1: Enhet | E1: Fane | F1: Bruksområde | G1: Kategori | H1: Dokumentasjon gammel verdi | I1: VegLCA | J1: Dokumentasjon VegLCA | K1: Kommentar | L1: Vurdering | M1: Foreslått ny verdi | N1: Enhet | O1: Dokumentasjon verdi i oppdatert verktøy | P1: Evt. kommentar ny verdi i verktøy | Q1: Evt. lenker kilder
B2: Massetettheter
A3: OK | B3: Betong massetetthet | C3: 2400 | D3: kg/m3 | E3: Tunnel (begge) | F3: Beregning av dieselforbruk transport m.m. | G3: Massetetthet | H3: Ingen | I3: 2400 | J3: Norsk betongforening Publikasjon 37: Lavkarbonbetong (2015) | K3: Samme i VegLCA, god dokumentasjon | L3: Beholde | M3: =IF(L3="Beholde",C3,IF(L3="Fjerne","-","")) -> 2400 | N3: =IF(L3="Beholde",D3,IF(L3="Fjerne","-",IF(OR(L3="Oppdatere",L3="Legge til",L3="Bake inn i annen faktor"),D3,""))) -> kg/m3 | O3: Norsk betongforening Publikasjon 37: Lavkarbonbetong (2015)
A4: OK | B4: Armeringsstål massetetthet | C4: 7800 | D4: kg/m3 | E4: Tunnel (begge) | F4: Brukes ikke | G4: Massetetthet | H4: Ingen | I4: 7400 | J4: Densities of solids, The engineering toolbox (men denne oppgir 7850?) | K4: 7850 i metoderapport og på engineering toolbox, foreslår å bruke det. VegLCA bør vurdere oppdatering. | L4: Oppdatere | M4: 7850 | N4: =IF(L4="Beholde",D4,IF(L4="Fjerne","-",IF(OR(L4="Oppdatere",L4="Legge til",L4="Bake inn i annen faktor"),D4,""))) -> kg/m3 | O4: Metoderapport s. 8, Engineering Toolbox, https://www.engineeringtoolbox.com/metal-alloys-densities-d_50.html
A5: OK | B5: Sikringsbolter massetetthet | C5: 7800 | D5: kg/m3 | E5: Tunnel (begge) | F5: Brukes ikke | G5: Massetetthet | H5: Ingen | I5: 7400 | J5: Densities of solids, The engineering toolbox (men denne oppgir 7850?) | K5: Samme som armeringsstål - bare ha én for stål. 7850 i metoderapport og på engineering toolbox, foreslår å bruke det. VegLCA bør vurdere oppdatering. | L5: Fjerne | M5: =IF(L5="Beholde",C5,IF(L5="Fjerne","-","")) -> - | N5: - | O5: =IF(OR(L5="Fjerne",L5="Bake inn i annen faktor"),"-","") -> -
A6: OK | B6: Asfaltbetong massetetthet | C6: 2500 | D6: kg/m3 | E6: Tunnel (begge) | F6: Beregning av dieselforbruk transport m.m. | G6: Massetetthet | H6: Ingen | I6: 2500 | J6: Klimamodul EFFEKT 6.74 | K6: Til slitelag, bindlag og skulder. Anbefalt verdi etter samkjøring. Står i metoderapport s. 34. | L6: Beholde | M6: 2500 | N6: kg/m3 | O6: Metoderapport s. 34
A7: OK | B7: Asfaltgrus massetetthet | C7: 2400 | D7: kg/m3 | E7: Tunnel (begge) | F7: Beregning av dieselforbruk transport m.m. for bærelag | G7: Massetetthet | H7: Metoderapport s. 32 | I7: 2400 | J7: Klimamodul EFFEKT 6.74 | K7: Til bærelag. Verdi i metoderapport er for AP, mens Ag har 2,65. Beholder 2400 for å sørge for høyest mulig grad av samsvar | L7: Beholde | M7: 2400 | N7: kg/m3 | O7: Klimamodul EFFEKT 6.74
A8: OK | B8: Pukk/grus frostsikring massetetthet | C8: 1800 | D8: kg/m3 | F8: Beregning av dieselforbruk transport m.m. | G8: Massetetthet | H8: Ingen | I8: 1500 | J8: Forsterkningslag i kult fra metoderapport s. 32 | K8: VegLCA er ikke oppdatert etter anbefalt verdi i samkjøringsprosjekt | L8: Oppdatere | M8: 1550 | N8: kg/m3 | O8: Anbefalt verdi i samkjøringsprosjekt, snitt av minimums- og maksimumsverdi (1,4-1,7) i EPDer
A9: OK | B9: Pukk/grus forsterkningslag massetetthet | C9: 1500 | D9: kg/m3 | E9: Tunnel (begge) | F9: Beregning av dieselforbruk transport m.m. | G9: Massetetthet | H9: Forsterkningslag i kult fra metoderapport s. 32 | I9: 1500 | J9: Forsterkningslag i kult fra metoderapport s. 32 | K9: VegLCA er ikke oppdatert etter anbefalt verdi i samkjøringsprosjekt | L9: Oppdatere | M9: 1550 | N9: kg/m3 | O9: Anbefalt verdi i samkjøringsprosjekt, snitt av minimums- og maksimumsverdi (1,4-1,7) i EPDer | Q9: https://www.epd-norge.no/getfile.php/139362-1537176670/EPDer/Byggevarer/Asfalt/NEPD-1257-403_Crushed-Stone-Bergkrossprodukter_1_1.pdf | R9: https://www.epd-norge.no/getfile.php/138731-1520978061/EPDer/Byggevarer/Asfalt/527_Crushed-stone-construction-aggregate-products--Oslo-and-Baerum_no.pdf
A10: OK | B10: XPS massetetthet | C10: 25 | D10: kg/m3 | E10: Utslippsfaktorer | F10: Beregning av massetetthet XPS-/betongelement brukt til frostsikring i tunnel | G10: Massetetthet | H10: Ingen | I10: 35 | J10: Antakelser basert på produsentdata fra Foamular, PakBoard, Thermals) | K10: Oppdatere til VegLCA sin faktor for å sørge for høyest mulig grad av samsvar, i tillegg til manglende dokumentasjon for vår faktor. 35 kg/m3 samsvarer godt med informasjon på nett. | L10: Oppdatere | M10: 35 | N10: kg/m3 | O10: VegLCA (kommunikasjon med leverandører)
A11: OK | B11: XPS-/betongelement til frostsikring i tunnel massetetthet | C11: 1800 | D11: kg/m3 | E11: Tunnel (begge) | F11: Beregning av dieselforbruk transport m.m. | G11: Massetetthet | H11: Ingen | I11: IR | J11: =IF(I11="IR","-","") -> - | K11: Estimert som gjennomsnittet av massetetthetene til betong og XPS basert på EPD fra Ølen betong der elementene består av 50 mm XPS og 150 mm betong (150 * 2400 + 50 * 25)/200 = 1800 kg/m3. Usikkert hvor massetetthet til XPS er hentet fra. I samkjøringsprosjekt står det at massetetthet til XPS ikke er relevant i NIRAS' verktøy. Foreslår å heller benytte 35 kg/m3 som i VegLCA | L11: Oppdatere | M11: =(50*M10+150*M3)/(M24*1000) -> 1808.75 | N11: kg/m3 | O11: EPD XPS-/betongelement Ølen betong
A12: OK | B12: Topeka massetetthet | C12: IR | D12: kg/m3 | F12: Beregning av dieselforbruk transport m.m. | G12: Massetetthet | H12: - | I12: 2500 | J12: Samme som asfalt, dvs. Klimamodul EFFEKT | L12: Legge til | M12: 2500 | N12: kg/m3 | O12: Metoderapport s. 34, bruker samme som asfaltbetong
A13: OK | B13: Vegetasjonsdekke massetetthet | C13: 2000 | D13: kg/m3 | E13: Fjerning av vegetasjon | G13: Massetetthet | L13: Oppdatere | M13: 1300 | N13: kg/m3 | O13: Metoderapport s. 32
A14: OK | B14: Myr massetetthet | G14: Massetetthet | L14: Oppdatere | M14: 150 | N14: kg/m3 | O14: "Utredning myr", Hadsel kommune (Asplan Viak, 2017)
A15: OK | B15: Massetetthet sprengstein | C15: 2650 | D15: kg/m3 | E15: Masser | G15: Massetetthet | L15: Beholde | M15: 2650 | N15: kg/m3 | O15: Metoderapport s. 32
A16: OK | B16: Masser fra grøfterensk massetetthet | C16: 1600 | D16: kg/m3 | E16: Drift | G16: Massetetthet | L16: Oppdatere | M16: 1300 | N16: kg/m3 | O16: Metoderapport s. 32
B17: Materialtykkelser/-mengder
A18: OK | B18: Slitelag tykkelse | C18: 0.045 | D18: m | E18: Vei, tunnel (begge), bru (begge), asfalt annet | F18: Beregning av materialforbruk og transport m.m. | G18: Materialtykkelse | H18: N200 | I18: IR | J18: - | L18: Beholde | M18: 0.045 | N18: m | O18: N200
A19: OK | B19: Bindlag tykkelse | C19: 0.035 | D19: m | E19: Vei, tunnel (begge), bru (begge), asfalt annet | F19: Beregning av materialforbruk og transport m.m. | G19: Materialtykkelse | H19: N200 | I19: IR | J19: - | L19: Beholde | M19: 0.035 | N19: m | O19: N200
A20: OK | B20: Bærelag tykkelse | C20: 0.13 | D20: m | E20: Vei, tunnel (begge), bru (begge), asfalt annet | F20: Beregning av materialforbruk og transport m.m. | G20: Materialtykkelse | H20: N200 | I20: IR | J20: - | L20: Beholde | M20: 0.13 | N20: m | O20: N200
A21: OK | B21: Forsterkningslag tykkelse | C21: 0.45 | D21: m | E21: Vei, tunnel (begge), bru (begge), asfalt annet | F21: Beregning av materialforbruk og transport m.m. | G21: Materialtykkelse | H21: N200 | I21: IR | J21: - | L21: Beholde | M21: 0.45 | N21: m | O21: N200
A22: OK | B22: Frostsikringslag vei tykkelse | C22: 1,74 eller 1,09 | D22: m | E22: Vei, asfalt annet | F22: Beregning av materialforbruk og transport m.m. | G22: Materialtykkelse | H22: N200 | I22: IR | J22: - | K22: Avhenger av andel av veien plassert på fjell. Dersom fjell: 1,09. Foreslår å heller sette standard tykkelse 1,74 og evt. redusere i hht. N200 basert på klimasone og telefarlighetsklasse | L22: Oppdatere | M22: 1.74 | N22: m | O22: N200
A23: OK | B23: Topeka tykkelse | C23: IR | D23: m | E23: Bru | F23: Beregning av materialforbruk og transport m.m. | G23: Materialtykkelse | H23: - | I23: 0.012 | J23: Ikke kommentert | K23: VegLCA bruker det samme i beregningene, men det er ikke eksplisitt | L23: Legge til | M23: 0.012 | N23: m | O23: SVV Håndbok R762 | P23: R: endret fra 0,12 til 0,012, antar at det var en skrivefeil?
A24: OK | B24: Frostsikringselement tunnel tykkelse | C24: 0.2 | D24: m | E24: Tunnel (begge) | F24: Beregning av materialforbruk og transport m.m. | G24: Materialtykkelse | H24: EPD for element fra Ølen Betong | I24: IR | J24: - | K24: Standardelement til frostsikring av tunnel fra Ølen Betong, basert på EPD: Element for samferdselstunneler med 150 mm tykkelse i betong og 50 mm XPS 200 kpa isolasjon. | L24: Beholde | M24: 0.2 | N24: m | O24: EPD for element fra Ølen Betong
A25: OK | B25: Mengde sprengstoff sprengning i dagen | C25: 1 | D25: kg/fm3 | E25: Bru (begge), masser | F25: Beregning av utslipp knyttet sprenging | G25: Materialmengde | H25: Metoderapport | I25: IR | J25: =IF(I25="IR","-","") -> - | L25: Beholde | M25: =IF(L25="Beholde",C25,IF(L25="Fjerne","-","")) -> 1 | N25: kg/fm3 | O25: Metoderapport og dokumentasjon EFFEKT 2015 (SVV Rapport 358) | P25: EFFEKT og Metoderapport oppgir ikke kilden de har brukt, og verdien bør derfor sokumenteres bedre i samtlige verktøy
A26: OK | B26: Mengde sprengstoff sprengning tunnel | C26: 2.2 | D26: kg/fm3 | E26: Masser | F26: Beregning av utslipp knyttet sprenging | G26: Materialmengde | H26: NIRAS erfaringstall og rapport fra 2009 mener 2,2 kg sprengstoff | I26: IR | J26: =IF(I26="IR","-","") -> - | K26: "200% høyere sprengstofforbruk i tunnel. Antar dobbelt så mye arbeid som for vei i dagen" - stemmer ikke helt? | L26: Beholde | M26: =IF(L26="Beholde",C26,IF(L26="Fjerne","-","")) -> 2.2 | N26: kg/fm3 | O26: Metoderapport og dokumentasjon EFFEKT 2015 (SVV Rapport 358). | P26: Dette tallet ser ut til å være noe høyt sammenliknet med andre kilder på nett. EFFEKT og Metoderapport oppgir ikke kilden de har brukt, og verdien bør derfor sokumenteres bedre i samtlige verktøy
A27: OK | B27: Asfaltbetong bru tykkelse | C27: 0.08 | D27: m | E27: Bru (begge) | F27: Beregning av materialforbruk og transport m.m. | G27: Materialtykkelse | H27: Ingen | I27: IR | J27: - | K27: Naturlig å anta samme tykkelse som slitelag + bindlag på vei --> 0,08 m. Legger ikke inn en egen faktor for dette. | L27: Fjerne | M27: =IF(L27="Beholde",C27,IF(L27="Fjerne","-","")) -> - | N27: - | O27: N200 (i N400 henvises det til N200 for bindlag og slitelag)
A28: OK | B28: Fuktisolering bru mengde | C28: 1.9 | D28: kg/m2 | E28: Bru (begge) | F28: Beregning av materialforbruk og transport m.m. | G28: Materialmengde | H28: Samkjøringsprosjekt | I28: IR | J28: - | K28: Samkjøringsprosjektet sier 0,94 m2 fuktisolering per m2 bru og at laget består av polymermodifisert bitumen og sand. Erstatter med Topeka | L28: Fjerne | M28: - | N28: - | O28: =IF(OR(L28="Fjerne",L28="Bake inn i annen faktor"),"-","") -> -
A29: OK | B29: Frostsikring bru tykkelse | C29: 0.035 | D29: m | E29: Bru (begge) | F29: Beregning av materialforbruk og transport m.m. | G29: Materialtykkelse | H29: Ingen | I29: IR | J29: - | K29: "Frostsikringslag med plater av ekstrudert polystyren (XPS) Antatt tykkelse 100 mm. Tetthet: 25 kg/m3". Erstatter med Topeka | L29: Fjerne | M29: - | N29: - | O29: -
A30: OK | B30: Betongmengde til betongbru | C30: 1.14 | D30: m3/m2 | E30: Betongbru | F30: Material- og transportutslipp forbundet med betong | G30: Materialmengde | H30: Fra samkjørings-prosjekt og Metoderapport | I30: IR | J30: - | K30: Verdi ser ut til å være basert på gjennomsnitt for 10 betongbruer i fellesprosjektet E16. Finner ikke dokumentasjon på dette og velger derfor å benytte gjennomsnitt fra samtlige 12 betongbruer i Metoderapporten | L30: Oppdatere | M30: 1.29 | N30: m3/m2 | O30: Metoderapport s. 47, gjennomsnitt for samtlige betongbruer, ikke vektet etter areal av bru
A31: OK | B31: Betongmengde til stålbru | C31: 0.00094 | D31: m3/m2 | E31: Stålbru | F31: Material- og transportutslipp forbundet med betong | G31: Materialmengde | H31: Fra samkjørings-prosjekt og Metoderapport | I31: IR | J31: - | K31: Verdi ser ut til å være basert på gjennomsnitt for 10 betongbruer i fellesprosjektet E16. Finner ikke dokumentasjon på dette og velger derfor å benytte gjennomsnitt fra samtlige 8 stålbruer i Metoderapporten | L31: Oppdatere | M31: 0.743 | N31: m3/m2 | O31: Metoderapport s. 47, gjennomsnitt for samtlige stålbruer, ikke vektet etter areal av bru
A32: OK | B32: Mengde armeringsstål til betongbru | C32: 180 | D32: kg/m2 | E32: Betongbru | F32: Material- og transportutslipp forbundet med stål | G32: Materialmengde | H32: Samkjøringsprosjekt | I32: IR | J32: - | K32: Verdi ser ut til å være basert på gjennomsnitt for 10 betongbruer i fellesprosjektet E16. Finner ikke dokumentasjon på dette og velger derfor å benytte gjennomsnitt fra samtlige 12 betongbruer i Metoderapporten | L32: Oppdatere | M32: 231 | N32: kg/m2 | O32: Metoderapport s. 47, gjennomsnitt for samtlige betongbruer, ikke vektet etter areal av bru
A33: OK | B33: Mengde armeringsstål til stålbru | C33: 90 | D33: kg/m2 | E33: Stålbru | F33: Material- og transportutslipp forbundet med stål | G33: Materialmengde | H33: Samkjøringsprosjekt | I33: IR | J33: - | K33: Verdi ser ut til å være basert på gjennomsnitt for 10 betongbruer i fellesprosjektet E16. Finner ikke dokumentasjon på dette og velger derfor å benytte gjennomsnitt fra samtlige 8 stålbruer i Metoderapporten | L33: Oppdatere | M33: 125 | N33: kg/m2 | O33: Metoderapport s. 47, gjennomsnitt for samtlige stålbruer, ikke vektet etter areal av bru
A34: OK | B34: Mengde konstruksjonsstål til betongbru | C34: 18 | D34: kg/m2 | E34: Betongbru | F34: Material- og transportutslipp forbundet med stål | G34: Materialmengde | H34: Samkjøringsprosjekt | I34: IR | J34: - | K34: Verdi ser ut til å være basert på gjennomsnitt for 10 betongbruer i fellesprosjektet E16. Finner ikke dokumentasjon på dette og velger derfor å benytte gjennomsnitt fra samtlige 12 betongbruer i Metoderapporten | L34: Oppdatere | M34: 0 | N34: kg/m2 | O34: Metoderapport s. 47, gjennomsnitt for samtlige betongbruer, ikke vektet etter areal av bru
A35: OK | B35: Mengde konstruksjonsstål til stålbru | C35: 300 | D35: kg/m2 | E35: Stålbru | F35: Material- og transportutslipp forbundet med stål | G35: Materialmengde | H35: Samkjøringsprosjekt | I35: IR | J35: - | K35: Usikker på dokumentasjon på dette. Velger derfor å benytte gjennomsnitt fra samtlige 8 stålbruer i Metoderapporten | L35: Oppdatere | M35: 219 | N35: kg/m2 | O35: Metoderapport s. 47, gjennomsnitt for samtlige stålbruer, ikke vektet etter areal av bru
A36: OK | B36: Masse som må sprenges for bygging av bru | C36: 0.02 | D36: m3/m2 | E36: Bru (begge) | F36: Beregning av utslipp knyttet sprenging | G36: Materialmengde | H36: Ingen | I36: IR | J36: - | K36: Gitt i samkjøringsprosjekt, trolig basert på gjennomsnitt for 10 betongbruer i fellesprosjektet E16. Finner ikke dokumentasjon for å verifisere dette, men i mangel på andre tilgjengelige data, beholdes tallet. | L36: Fjerne | M36: =IF(L36="Beholde",C36,IF(L36="Fjerne","-","")) -> - | N36: - | O36: Samkjøring, bør verifiseres
